Service Area,Service Division,Expense Type,Expense Code,Detailed Expense Type,Payment Date,Transaction Number,Amount Exc Vat,Supplier Name
Assistant Chief Executive,Partnerships & Community Engagement Div.,Supplies and Services,384086,Miscellaneous Expenses,01-Apr-2016,3108799-12NB,500.00,GROUNDWORK NORTH EAST.
Children and Adult Services,Planning & Service Strategy,Supplies and Services,338089,Services,01-Apr-2016,3108855-6721REPROVISION,640.00,KLENZA LTD T/A PROJECT MANAGEMENT SOFTWARE CENTRE (PMSC).
Dedicated Schools Grant,Dedicated Schools Grant,Third Party Payments,440080,Other Third Party Payments,01-Apr-2016,3108725-SLINV/00000785,"2,558.06",DARLINGTON COLLEGE.
Children and Adult Services,Education,Transport,230008,Contract Hire,01-Apr-2016,3108660-119-MARCH2016,"1,764.00",BG TAXIS.
Children and Adult Services,Planning & Service Strategy,Supplies and Services,338089,Services,01-Apr-2016,3108725-SUNV/00000743,"34,380.00",DARLINGTON COLLEGE.
Children and Adult Services,Education,Transport,230007,Contract Hire,01-Apr-2016,3108667-27-MARCH2016,720.00,BL TAXIS.
Children and Adult Services,Education,Transport,230007,Contract Hire,01-Apr-2016,3108902-08-MARCH2016,"1,062.00",MR KJB BOWERY T/A KJB TAXIS.
Children and Adult Services,Education,Third Party Payments,440999,Other Third Party Payments,01-Apr-2016,3108827-JD/DCC/1601,"2,697.84",JACK DRUM ARTS LTD.
Children and Adult Services,Childrens Services,Third Party Payments,425040,Rendered by Voluntary Organisations,01-Apr-2016,3108771-0000057995,"3,232.99",FIVE RIVERS CHILD CARE LTD.
Dedicated Schools Grant,Dedicated Schools Grant,Transport,230010,Contract Hire,01-Apr-2016,3108829-L107EMAR16,800.00,JAFFAS TAXIS.
Children and Adult Services,Education,Construction Work,908105,Construction work,01-Apr-2016,3108781-107495646,"7,293.88",GATESHEAD COUNCIL.
Children and Adult Services,Education,Fees,901002,Professional fees,01-Apr-2016,3108781-107495655,"2,106.15",GATESHEAD COUNCIL.
Children and Adult Services,Education,Fees,901002,Professional fees,01-Apr-2016,3108781-107495664,"5,369.28",GATESHEAD COUNCIL.
Children and Adult Services,Education,Fees,901002,Professional fees,01-Apr-2016,3108781-107495673,"26,160.00",GATESHEAD COUNCIL.
Children and Adult Services,Education,Fees,901002,Professional fees,01-Apr-2016,3108781-107495691,"5,170.85",GATESHEAD COUNCIL.
Children and Adult Services,Education,Transport,230008,Contract Hire,01-Apr-2016,3108894-KDC010316,"2,840.50",MJ TIMNEY T/A KDC & C&M TAXIS.
Children and Adult Services,Education,Transport,230008,Contract Hire,01-Apr-2016,3109070-DCC6/A090,"1,302.00",WEZ CABS.
Children and Adult Services,Childrens Services,Supplies and Services,304649,Equipment and Materials,01-Apr-2016,3109084-498476316,689.58,YORKSHIRE PURCHASING ORGANISATION.
Children and Adult Services,Education,Transport,230008,Contract Hire,01-Apr-2016,3108767-A060-018,552.50,FERRYHILL VILLAGE TRAVEL.
Children and Adult Services,Education,Transport,230008,Contract Hire,01-Apr-2016,3108767-E046-018,"2,684.00",FERRYHILL VILLAGE TRAVEL.
Children and Adult Services,Education,Transport,230008,Contract Hire,01-Apr-2016,3108767-S007-040,"2,107.00",FERRYHILL VILLAGE TRAVEL.
Children and Adult Services,Education,Transport,230008,Contract Hire,01-Apr-2016,3108900-2014-211,"1,537.82",MR D KEMP T/A ACE EXECUTIVE.
Children and Adult Services,Public Health,Third Party Payments,460803,Contract Payments,01-Apr-2016,3108947-14136/16,"5,000.00",PIONEERING CARE PARTNERSHIP.
Children and Adult Services,Education,Transport,230008,Contract Hire,01-Apr-2016,3108675-BZ00183,"1,326.00",BREZ`S TAXIS.
Children and Adult Services,Education,Transport,230008,Contract Hire,01-Apr-2016,3108680-BIL0075,"1,416.95",CA MUSGROVE.
Children and Adult Services,Education,Transport,230007,Contract Hire,01-Apr-2016,3108794-0090806,792.00,GRADYS TAXIS.
Children and Adult Services,Education,Transport,230008,Contract Hire,01-Apr-2016,3108829-E136MAR,560.00,JAFFAS TAXIS.
Children and Adult Services,Education,Transport,230008,Contract Hire,01-Apr-2016,3108838-2016/01,"1,229.40",JM HUMBLE COACH HIRE.
Children and Adult Services,Education,Transport,230008,Contract Hire,01-Apr-2016,3108632-266142,"1,062.00",ALAN SOUTHERN T/A ALANS TAXIS PELTON FELL.
Children and Adult Services,Education,Transport,230008,Contract Hire,01-Apr-2016,3108632-388142,680.00,ALAN SOUTHERN T/A ALANS TAXIS PELTON FELL.
Children and Adult Services,Education,Transport,230008,Contract Hire,01-Apr-2016,3108632-388242,"1,229.25",ALAN SOUTHERN T/A ALANS TAXIS PELTON FELL.
Children and Adult Services,Childrens Services,Supplies and Services,308011,Furniture,01-Apr-2016,3108633-155037,"1,074.00",ALBANY CONTRACT FURNITURE.
Children and Adult Services,Education,Transport,235005,Public Transport,01-Apr-2016,3108644-110307,557.20,ARRIVA NORTH EAST LTD.
Children and Adult Services,Childrens Services,Third Party Payments,425040,Rendered by Voluntary Organisations,01-Apr-2016,3108774-125915,730.00,FOSTER CARES LTD.
Children and Adult Services,Childrens Services,Third Party Payments,425040,Rendered by Voluntary Organisations,01-Apr-2016,3108774-125920,"1,180.00",FOSTER CARES LTD.
Children and Adult Services,Childrens Services,Third Party Payments,425040,Rendered by Voluntary Organisations,01-Apr-2016,3108774-125923,820.00,FOSTER CARES LTD.
Children and Adult Services,Childrens Services,Third Party Payments,425040,Rendered by Voluntary Organisations,01-Apr-2016,3108774-125924,730.00,FOSTER CARES LTD.
Children and Adult Services,Childrens Services,Third Party Payments,425040,Rendered by Voluntary Organisations,01-Apr-2016,3108774-125930,730.00,FOSTER CARES LTD.
Children and Adult Services,Childrens Services,Third Party Payments,425040,Rendered by Voluntary Organisations,01-Apr-2016,3108774-125932,730.00,FOSTER CARES LTD.
Children and Adult Services,Childrens Services,Third Party Payments,425040,Rendered by Voluntary Organisations,01-Apr-2016,3108774-125936,730.00,FOSTER CARES LTD.
Children and Adult Services,Childrens Services,Third Party Payments,425040,Rendered by Voluntary Organisations,01-Apr-2016,3108774-125942,730.00,FOSTER CARES LTD.
Children and Adult Services,Childrens Services,Third Party Payments,425040,Rendered by Voluntary Organisations,01-Apr-2016,3108774-125943,730.00,FOSTER CARES LTD.
Children and Adult Services,Childrens Services,Third Party Payments,425040,Rendered by Voluntary Organisations,01-Apr-2016,3108774-125948,700.00,FOSTER CARES LTD.
Children and Adult Services,Childrens Services,Third Party Payments,425040,Rendered by Voluntary Organisations,01-Apr-2016,3108774-125953,760.00,FOSTER CARES LTD.
Children and Adult Services,Childrens Services,Third Party Payments,425019,Rendered by Voluntary Organisations,01-Apr-2016,3108811-WI6987,"20,371.43",HESLEY CARE GROUP LTD.
Children and Adult Services,Education,Transport,230008,Contract Hire,01-Apr-2016,3108848-MAR-16,864.00,KD TAXIS.
Children and Adult Services,Central Charges (CYPS),Creditors,952258,Creditor-West Durham Cluster,01-Apr-2016,3108893-BSIS02,840.00,MISS BETHANY E COYLE.
Dedicated Schools Grant,Dedicated Schools Grant,Transport,230010,Contract Hire,01-Apr-2016,3108953-160305,"1,581.00",MR STEVEN PRATT T/A PRATTS TAXIS LTD.
Children and Adult Services,Childrens Services,Fees,901002,Professional fees,01-Apr-2016,3109063-599696,"6,712.50",WARD HADAWAY.
Dedicated Schools Grant,Dedicated Schools Grant,Transport,230010,Contract Hire,01-Apr-2016,3109069-487842,778.00,WENDYS` TAXIS.
Children and Adult Services,Childrens Services,Supplies and Services,384199,Miscellaneous Expenses,01-Apr-2016,3109077-EDB356,"4,900.00",WINGATE & STATION TOWN FAMILY CENTRE.
Children and Adult Services,Childrens Services,Supplies and Services,384199,Miscellaneous Expenses,01-Apr-2016,3109077-EDB357,"4,900.00",WINGATE & STATION TOWN FAMILY CENTRE.
Children and Adult Services,Childrens Services,Supplies and Services,384199,Miscellaneous Expenses,01-Apr-2016,3109077-EDB358,"4,900.00",WINGATE & STATION TOWN FAMILY CENTRE.
Children and Adult Services,Education,Transport,230007,Contract Hire,01-Apr-2016,3108616-31601,"1,278.00",24/7 TAXI SERVICES LTD.
Children and Adult Services,Education,Transport,230008,Contract Hire,01-Apr-2016,3108616-31602,"1,728.85",24/7 TAXI SERVICES LTD.
Children and Adult Services,Education,Transport,230008,Contract Hire,01-Apr-2016,3108616-31603,"1,176.66",24/7 TAXI SERVICES LTD.
Children and Adult Services,Childrens Services,Third Party Payments,425019,Rendered by Voluntary Organisations,01-Apr-2016,3108624-10026,"73,002.75",ACORN CARE & EDUCATION.
Children and Adult Services,Education,Transport,230008,Contract Hire,01-Apr-2016,3108626-7/16A,944.82,ADVANCE TRAVEL.
Children and Adult Services,Education,Transport,230008,Contract Hire,01-Apr-2016,3108650-DCC10,"1,440.00",ATLAS TAXIS BISHOP AUCKLAND.
Children and Adult Services,Head of Adults,Supplies and Services,338367,Services,01-Apr-2016,3108685-29894,675.00,CARE ABILITY.
Children and Adult Services,Head of Adults,Supplies and Services,338367,Services,01-Apr-2016,3108685-29895,675.00,CARE ABILITY.
Children and Adult Services,Head of Adults,Supplies and Services,338366,Services,01-Apr-2016,3108685-30619,817.35,CARE ABILITY.
Children and Adult Services,Head of Adults,Supplies and Services,338366,Services,01-Apr-2016,3108685-30621,"4,712.25",CARE ABILITY.
Children and Adult Services,Head of Adults,Supplies and Services,338366,Services,01-Apr-2016,3108685-30622,"1,484.70",CARE ABILITY.
Children and Adult Services,Head of Adults,Supplies and Services,338366,Services,01-Apr-2016,3108685-30624,"2,317.25",CARE ABILITY.
Children and Adult Services,Head of Adults,Supplies and Services,338366,Services,01-Apr-2016,3108685-30625,"3,034.00",CARE ABILITY.
Children and Adult Services,Head of Adults,Supplies and Services,338366,Services,01-Apr-2016,3108685-30626,534.95,CARE ABILITY.
Children and Adult Services,Education,Transport,230007,Contract Hire,01-Apr-2016,3108701-45323,"1,201.39",CJ GRIERSON T/A GRIERSONS COACHES.
Children and Adult Services,Education,Transport,230007,Contract Hire,01-Apr-2016,3108701-45324,"4,118.76",CJ GRIERSON T/A GRIERSONS COACHES.
Children and Adult Services,Education,Transport,230007,Contract Hire,01-Apr-2016,3108701-45325,"1,908.00",CJ GRIERSON T/A GRIERSONS COACHES.
Children and Adult Services,Education,Transport,230007,Contract Hire,01-Apr-2016,3108701-45326,"2,520.00",CJ GRIERSON T/A GRIERSONS COACHES.
Children and Adult Services,Education,Transport,230007,Contract Hire,01-Apr-2016,3108701-45327,"2,250.00",CJ GRIERSON T/A GRIERSONS COACHES.
Children and Adult Services,Education,Transport,230007,Contract Hire,01-Apr-2016,3108701-45328,"2,340.00",CJ GRIERSON T/A GRIERSONS COACHES.
Children and Adult Services,Education,Transport,230007,Contract Hire,01-Apr-2016,3108701-45329,"4,506.48",CJ GRIERSON T/A GRIERSONS COACHES.
Children and Adult Services,Education,Transport,235005,Public Transport,01-Apr-2016,3108791-57040,"2,400.00",GO GATESHEAD LTD.
Children and Adult Services,Childrens Services,Third Party Payments,425040,Rendered by Voluntary Organisations,01-Apr-2016,3109023-27284,"3,631.43",TEAM FOSTERING.
Dedicated Schools Grant,Dedicated Schools Grant,Transport,230010,Contract Hire,01-Apr-2016,3109043-17009,619.00,TRAVEL 6.
Dedicated Schools Grant,Dedicated Schools Grant,Transport,230010,Contract Hire,01-Apr-2016,3109043-22004,696.00,TRAVEL 6.
Children and Adult Services,Education,Transport,230006,Contract Hire,01-Apr-2016,3108618-540A,608.00,A BARKER.
Children and Adult Services,Education,Transport,230008,Contract Hire,01-Apr-2016,3108650-DCC2,"2,197.76",ATLAS TAXIS BISHOP AUCKLAND.
Children and Adult Services,Education,Transport,230008,Contract Hire,01-Apr-2016,3108650-DCC4,"2,025.00",ATLAS TAXIS BISHOP AUCKLAND.
Children and Adult Services,Education,Transport,230008,Contract Hire,01-Apr-2016,3108650-DCC7,"2,100.00",ATLAS TAXIS BISHOP AUCKLAND.
Children and Adult Services,Education,Transport,230008,Contract Hire,01-Apr-2016,3108650-DCC8,"1,530.00",ATLAS TAXIS BISHOP AUCKLAND.
Children and Adult Services,Education,Transport,230008,Contract Hire,01-Apr-2016,3108721-1457,"1,062.00",DA TAXIS.
Children and Adult Services,Education,Transport,235005,Public Transport,01-Apr-2016,3108783-3120,"9,090.00",GEM TRAVEL.
Children and Adult Services,Education,Transport,230007,Contract Hire,01-Apr-2016,3108817-0037,756.16,HUNTER BROTHERS (TANTOBIE) LTD.
Children and Adult Services,Education,Transport,230007,Contract Hire,01-Apr-2016,3108817-0038,"1,266.16",HUNTER BROTHERS (TANTOBIE) LTD.
Children and Adult Services,Education,Transport,230007,Contract Hire,01-Apr-2016,3108817-0041,692.64,HUNTER BROTHERS (TANTOBIE) LTD.
Children and Adult Services,Education,Transport,230008,Contract Hire,01-Apr-2016,3108835-2498,"1,860.12",JEFF ANDERSON COACHES LTD.
Children and Adult Services,Education,Transport,230008,Contract Hire,01-Apr-2016,3108835-2499,"2,112.66",JEFF ANDERSON COACHES LTD.
Children and Adult Services,Education,Transport,230008,Contract Hire,01-Apr-2016,3108835-2500,"2,382.84",JEFF ANDERSON COACHES LTD.
Children and Adult Services,Education,Transport,230007,Contract Hire,01-Apr-2016,3108835-2501,"1,700.82",JEFF ANDERSON COACHES LTD.
Children and Adult Services,Education,Transport,230007,Contract Hire,01-Apr-2016,3108835-2502,"1,863.00",JEFF ANDERSON COACHES LTD.
Children and Adult Services,Childrens Services,Third Party Payments,440062,Other Third Party Payments,01-Apr-2016,3108837-1093,"1,229.00",JIGSAW THERAPY SERVICES.
Children and Adult Services,Education,Transport,230007,Contract Hire,01-Apr-2016,3108939-1489,"2,160.00",PAUL WATSON TRAVEL.
Children and Adult Services,Childrens Services,Third Party Payments,425040,Rendered by Voluntary Organisations,01-Apr-2016,3108963-1409,"7,196.34",REACH OUT CARE LTD.
Children and Adult Services,Education,Transport,230006,Contract Hire,01-Apr-2016,3109067-5432,"1,422.00",WEARDALE PRIVATE HIRE.
Children and Adult Services,Education,Transport,230008,Contract Hire,01-Apr-2016,3108647-528,"1,180.99",AT TAXIS LTD.
Children and Adult Services,Education,Transport,230007,Contract Hire,01-Apr-2016,3108647-529,588.00,AT TAXIS LTD.
Children and Adult Services,Education,Transport,230006,Contract Hire,01-Apr-2016,3108647-531,"1,530.00",AT TAXIS LTD.
Children and Adult Services,Education,Transport,230007,Contract Hire,01-Apr-2016,3108670-47A,924.00,BOBS TAXIS.
Children and Adult Services,Education,Transport,230007,Contract Hire,01-Apr-2016,3108704-867,850.00,CLIVE HUBERY.
Children and Adult Services,Education,Transport,230007,Contract Hire,01-Apr-2016,3108834-895,850.00,JDS PRIVATE HIRE DURHAM.
Children and Adult Services,Education,Transport,230008,Contract Hire,01-Apr-2016,3108834-899,"2,040.00",JDS PRIVATE HIRE DURHAM.
Children and Adult Services,Education,Transport,230008,Contract Hire,01-Apr-2016,3108834-900,"1,435.00",JDS PRIVATE HIRE DURHAM.
Children and Adult Services,Education,Transport,230008,Contract Hire,01-Apr-2016,3108834-901,"2,210.00",JDS PRIVATE HIRE DURHAM.
Children and Adult Services,Education,Transport,230008,Contract Hire,01-Apr-2016,3108834-902,"2,330.00",JDS PRIVATE HIRE DURHAM.
Children and Adult Services,Education,Supplies and Services,338027,Services,01-Apr-2016,3108918-762,600.00,NORTH EAST ENVIRONMENT NETWORK LTD T/A (OASES).
Children and Adult Services,Childrens Services,Supplies and Services,384302,Miscellaneous Expenses,01-Apr-2016,3109029-105,"2,808.00",THE LAURELS CHILD CARE.
Children and Adult Services,Education,Transport,230008,Contract Hire,01-Apr-2016,3109045-014,756.00,TRIDENT TAXIS.
Children and Adult Services,Education,Transport,230008,Contract Hire,01-Apr-2016,3108617-24,"1,093.27",A & P TAXIS.
Children and Adult Services,Education,Transport,230007,Contract Hire,01-Apr-2016,3108663-07,990.00,BILL`S TAXIS.
Children and Adult Services,Education,Transport,230008,Contract Hire,01-Apr-2016,3108809-3A,"1,202.06",HENRYS TAXIS.
Children and Adult Services,Education,Transport,230008,Contract Hire,01-Apr-2016,3108876-94,"3,565.00",M BUTCHER T/A KIDDI CABS.
Children and Adult Services,Education,Transport,230007,Contract Hire,01-Apr-2016,3108899-18,720.00,MR BW YOUNG T/A ESH TAXIS.
Children and Adult Services,Education,Transport,230007,Contract Hire,01-Apr-2016,3108903-7,"1,080.00",MR REES WILKINSON T/A B & L MINIBUS HIRE.
Neighbourhood Services,Technical Services,Fees,901002,Professional fees,01-Apr-2016,3108627-28241236,"5,350.50",AECOM LTD.
Neighbourhood Services,Technical Services,Supplies and Services,304221,Equipment and Materials,01-Apr-2016,3108630-22807831,"1,236.44",AGGREGATE INDUSTRIES UK LTD.
Neighbourhood Services,Technical Services,Supplies and Services,304221,Equipment and Materials,01-Apr-2016,3108630-22807832,"1,846.68",AGGREGATE INDUSTRIES UK LTD.
Neighbourhood Services,Culture & Sport,Premises,120037,Energy Costs,01-Apr-2016,3108681-27807483,"1,038.46",CALOR GAS LTD.
Neighbourhood Services,Culture & Sport,Premises,120021,Energy Costs,01-Apr-2016,3108681-278080213,810.71,CALOR GAS LTD.
Neighbourhood Services,Culture & Sport,Supplies and Services,324001,Provisions,01-Apr-2016,3108686-842456765,"2,737.31",CARLSBERG UK LTD.
Neighbourhood Services,Culture & Sport,Supplies and Services,332029,Printing Stationery and Gen Off Exps,01-Apr-2016,3108696-S019712,507.50,CHIQUITOS.
Neighbourhood Services,Culture & Sport,Supplies and Services,324001,Provisions,01-Apr-2016,3108706-9102795681,693.72,COCA COLA ENTERPRISES LTD.
Neighbourhood Services,Direct Services,Vehicles Equipment Furniture and Fittings,912701,Computer equipment,01-Apr-2016,3108732-7402274489,596.16,DELL COMPUTER CORPORATION LTD.
Neighbourhood Services,Culture & Sport,Supplies and Services,338066,Services,01-Apr-2016,3108746-292417,800.00,DURHAM UNIVERSITY.
Neighbourhood Services,Direct Services,Third Party Payments,430100,Rendered by Private Contractors,01-Apr-2016,3108764-2443,835.00,F WARREN (ELECTRICAL) LTD.
Neighbourhood Services,Technical Services,Supplies and Services,304259,Equipment and Materials,01-Apr-2016,3108772-OP/I080246,537.00,FLEMING & CO (MACHINERY) LTD.
Neighbourhood Services,Direct Services,Premises,120037,Energy Costs,01-Apr-2016,3108773-0000010006,"1,505.00",FOREVER FUELS LTD
Neighbourhood Services,Technical Services,Supplies and Services,304357,Equipment and Materials,01-Apr-2016,3108780-DCC270316,"12,139.23",GAP GROUP LTD.
Neighbourhood Services,Projects and Business services,Supplies and Services,304252,Equipment and Materials,01-Apr-2016,3108784-SI/72506,"1,320.00",GEOTECHNICAL INSTRUMENTS (UK) LTD.
Neighbourhood Services,Technical Services,Stock,926900,Stock in hand-Inventory system,01-Apr-2016,3108798-06/593126,"2,037.76",GREENHAM TRADING LTD.
Neighbourhood Services,Technical Services,Stock,926900,Stock in hand-Inventory system,01-Apr-2016,3108798-06/594145,"1,051.99",GREENHAM TRADING LTD.
Neighbourhood Services,Projects and Business services,Third Party Payments,430114,Rendered by Private Contractors,01-Apr-2016,3108825-102794,"2,412.33",J & B RECYCLING LTD.
Neighbourhood Services,Direct Services,Supplies and Services,304221,Equipment and Materials,01-Apr-2016,3108844-BAI259119,"3,855.60",JT DOVE LTD.
Neighbourhood Services,Technical Services,Stock,926900,Stock in hand-Inventory system,01-Apr-2016,3108844-STI433570,859.52,JT DOVE LTD.
Neighbourhood Services,Technical Services,Stock,926900,Stock in hand-Inventory system,01-Apr-2016,3108844-STI433690,529.10,JT DOVE LTD.
Neighbourhood Services,Technical Services,Supplies and Services,304358,Equipment and Materials,01-Apr-2016,3108852-1267,543.50,KEVIN SNOWDON GROUNDWORKS LTD.
Neighbourhood Services,Technical Services,Supplies and Services,304358,Equipment and Materials,01-Apr-2016,3108852-1268,765.50,KEVIN SNOWDON GROUNDWORKS LTD.
Neighbourhood Services,Technical Services,Supplies and Services,304358,Equipment and Materials,01-Apr-2016,3108852-1270,"1,936.00",KEVIN SNOWDON GROUNDWORKS LTD.
Neighbourhood Services,Technical Services,Supplies and Services,304358,Equipment and Materials,01-Apr-2016,3108852-1272,"3,791.00",KEVIN SNOWDON GROUNDWORKS LTD.
Neighbourhood Services,Technical Services,Supplies and Services,304358,Equipment and Materials,01-Apr-2016,3108852-1273,"2,090.00",KEVIN SNOWDON GROUNDWORKS LTD.
Neighbourhood Services,Technical Services,Supplies and Services,304358,Equipment and Materials,01-Apr-2016,3108852-1274,"4,488.00",KEVIN SNOWDON GROUNDWORKS LTD.
Neighbourhood Services,Technical Services,Supplies and Services,304358,Equipment and Materials,01-Apr-2016,3108852-1275,"2,580.00",KEVIN SNOWDON GROUNDWORKS LTD.
Neighbourhood Services,Technical Services,Supplies and Services,304358,Equipment and Materials,01-Apr-2016,3108852-1276,"4,574.00",KEVIN SNOWDON GROUNDWORKS LTD.
Neighbourhood Services,Technical Services,Supplies and Services,304358,Equipment and Materials,01-Apr-2016,3108852-1277,565.50,KEVIN SNOWDON GROUNDWORKS LTD.
Neighbourhood Services,Technical Services,Supplies and Services,304358,Equipment and Materials,01-Apr-2016,3108852-1278,664.00,KEVIN SNOWDON GROUNDWORKS LTD.
Neighbourhood Services,Technical Services,Supplies and Services,304358,Equipment and Materials,01-Apr-2016,3108852-1279,915.50,KEVIN SNOWDON GROUNDWORKS LTD.
Neighbourhood Services,Technical Services,Supplies and Services,304358,Equipment and Materials,01-Apr-2016,3108852-1280,744.00,KEVIN SNOWDON GROUNDWORKS LTD.
Neighbourhood Services,Technical Services,Supplies and Services,304358,Equipment and Materials,01-Apr-2016,3108852-1282,"3,130.00",KEVIN SNOWDON GROUNDWORKS LTD.
Neighbourhood Services,Culture & Sport,Supplies and Services,384700,Miscellaneous Expenses,01-Apr-2016,3108861,"45,000.00",LEISUREWORKS.
Neighbourhood Services,Direct Services,Premises,145009,Cleaning and Domestic Supplies,01-Apr-2016,3108914-57096,575.50,NIRAMAX GROUP LTD.
Neighbourhood Services,Culture & Sport,Vehicles Equipment Furniture and Fittings,912521,Purchase-furniture and fittings,01-Apr-2016,3108915-12490241,756.84,NISBETS PLC.
Neighbourhood Services,Technical Services,Stock,926900,Stock in hand-Inventory system,01-Apr-2016,3108923-1903326,508.68,NORTHERN TOOLS & ACCESSORIES.
Neighbourhood Services,Technical Services,Stock,926900,Stock in hand-Inventory system,01-Apr-2016,3108923-1905463,647.65,NORTHERN TOOLS & ACCESSORIES.
Neighbourhood Services,Technical Services,Stock,926900,Stock in hand-Inventory system,01-Apr-2016,3108923-7057009,819.00,NORTHERN TOOLS & ACCESSORIES.
Neighbourhood Services,Technical Services,Stock,926900,Stock in hand-Inventory system,01-Apr-2016,3108937-XL165918,"5,112.73",PARK ELECTRICAL DISTRIBUTORS LTD.
Neighbourhood Services,Technical Services,Stock,926900,Stock in hand-Inventory system,01-Apr-2016,3108937-XL165999,595.11,PARK ELECTRICAL DISTRIBUTORS LTD.
Neighbourhood Services,Technical Services,Third Party Payments,430100,Rendered by Private Contractors,01-Apr-2016,3108959-86212,550.00,PROTECTOR SECURITY GROUP LTD.
Neighbourhood Services,Technical Services,Third Party Payments,430100,Rendered by Private Contractors,01-Apr-2016,3108974-942,666.00,SCHMUCK WHORLTON LTD.
Neighbourhood Services,Direct Services,Transport,230005,Contract Hire,01-Apr-2016,3108983-10676113,630.00,SHB HIRE LTD.
Neighbourhood Services,Direct Services,Supplies and Services,304259,Equipment and Materials,01-Apr-2016,3108984-CD970309192,825.12,SHERRIFF AMENITY.
Neighbourhood Services,Technical Services,Supplies and Services,304358,Equipment and Materials,01-Apr-2016,3108985-2016013,840.90,SHIREHAVEN LTD.
Neighbourhood Services,Direct Services,Transport,215025,Running Costs of Vehicles,01-Apr-2016,3108995-105/16/4969,"2,239.66",SOCIETE GENERALE EQUIPMENT FINANCE LTD.
Neighbourhood Services,Technical Services,Stock,926900,Stock in hand-Inventory system,01-Apr-2016,3108997-270118284,913.20,SOVEREIGN CHEMICALS LTD.
Neighbourhood Services,Technical Services,Stock,926900,Stock in hand-Inventory system,01-Apr-2016,3108997-270118285,516.20,SOVEREIGN CHEMICALS LTD.
Neighbourhood Services,Direct Services,Third Party Payments,430100,Rendered by Private Contractors,01-Apr-2016,3109031-0000091194,"6,511.62",THE SEKURA GROUP.
Neighbourhood Services,Direct Services,Third Party Payments,430100,Rendered by Private Contractors,01-Apr-2016,3109031-0000091196,"6,768.87",THE SEKURA GROUP.
Neighbourhood Services,Technical Services,Employees,040149,Recruitment Instruction and Training,01-Apr-2016,3109047-60005296,"1,600.00",TYNESIDE TRAINING SERVICES LTD.
Neighbourhood Services,Technical Services,Supplies and Services,304221,Equipment and Materials,01-Apr-2016,3109054-INV035857,"4,956.48",URBIS SCHREDER LTD.
Neighbourhood Services,Direct Services,Supplies and Services,304221,Equipment and Materials,01-Apr-2016,3109056-6890208234,"18,321.75",VIESSMANN LTD.
Neighbourhood Services,Technical Services,Stock,926900,Stock in hand-Inventory system,01-Apr-2016,3109079-30931003,"1,305.07",WOLSELEY UK LTD.
Regeneration & Economic Development,Transport and Contracted Services,Premises,108099,Service Repairs and Maintenance,01-Apr-2016,3108703-17573,750.00,CLEARVIWEW INTELLIGENCE.
Regeneration & Economic Development,Spatial Policy Planning Assets & Environment,Premises,125009,Rents,01-Apr-2016,3108728-004,"17,793.75",DAVISON PROPERTY INVESTMENTS LTD.
Regeneration & Economic Development,Economic Development and Housing,Fees,901002,Professional fees,01-Apr-2016,3108781-107495682,"4,997.06",GATESHEAD COUNCIL.
Regeneration & Economic Development,Spatial Policy Planning Assets & Environment,Third Party Payments,440999,Other Third Party Payments,01-Apr-2016,3108891-4015,"10,338.83",MICROCOPY SYSTEMS LTD.
Regeneration & Economic Development,Spatial Policy Planning Assets & Environment,Third Party Payments,440999,Other Third Party Payments,01-Apr-2016,3108891-4020,"1,530.47",MICROCOPY SYSTEMS LTD.
Regeneration & Economic Development,Spatial Policy Planning Assets & Environment,Third Party Payments,440999,Other Third Party Payments,01-Apr-2016,3108891-4022,"2,391.90",MICROCOPY SYSTEMS LTD.
Regeneration & Economic Development,Economic Development and Housing,Cap Exp on Grants & Other Financial Assistance (REFCUS),918401,Capital grants,01-Apr-2016,3108901-RED-03-2016-288,"13,832.14",REDACTED - PAYMENT TO INDIVIDUAL
Regeneration & Economic Development,Economic Development and Housing,Supplies and Services,384199,Miscellaneous Expenses,01-Apr-2016,3108910-NM30741,"2,400.00",NEW MIND INTERNET CONSULTANCY LTD.
Regeneration & Economic Development,Economic Development and Housing,Supplies and Services,384199,Miscellaneous Expenses,01-Apr-2016,3108912-7494,"3,400.00",NEWCASTLE GATESHEAD INITIATIVE.
Regeneration & Economic Development,Economic Development and Housing,Cap Exp on Grants & Other Financial Assistance (REFCUS),918401,Capital grants,01-Apr-2016,3108970-RED-03-2016-289,"4,380.00",SAFA DEVELOPMENTS LTD.
Regeneration & Economic Development,Spatial Policy Planning Assets & Environment,Supplies and Services,384199,Miscellaneous Expenses,01-Apr-2016,3109025-4100526003,600.00,TELFORD`S COUNTRYSIDE & LANDSCAPE CONTRACTORS.
Regeneration & Economic Development,Economic Development and Housing,Cap Exp on Grants & Other Financial Assistance (REFCUS),918401,Capital grants,01-Apr-2016,3109036-RED-03-2016-269,"2,900.00",THYSSENKRUPP ENCASA A DIVISION OF THYSSENKRUPP ACCESS LTD.
Resources,I.C.T. Services,Debtors,930167,Debtor-Telephone Holding Account,01-Apr-2016,3108653-102074,"70,053.47",AZZURRI COMMUNICATIONS LTD.
Resources,Financial Services,Supplies and Services,332029,Printing Stationery and Gen Off Exps,01-Apr-2016,3108693-CFH006806,"14,866.93",CFH TOTAL DOCUMENT MANAGEMENT LTD.
Resources,Financial Services,Supplies and Services,332029,Printing Stationery and Gen Off Exps,01-Apr-2016,3108693-CFH006811,"64,113.51",CFH TOTAL DOCUMENT MANAGEMENT LTD.
Resources,I.C.T. Services,Premises,120009,Energy Costs,01-Apr-2016,3108699-2821010401,"7,582.48",CITY OF SUNDERLAND.
Resources,I.C.T. Services,Supplies and Services,342051,Computers and Communications,01-Apr-2016,3108700-M/IC033121,534.70,CIVICA UK LTD.
Resources,I.C.T. Services,Stock,926900,Stock in hand-Inventory system,01-Apr-2016,3108732-7402277476,"5,130.00",DELL COMPUTER CORPORATION LTD.
Resources,I.C.T. Services,Vehicles Equipment Furniture and Fittings,912701,Computer equipment,01-Apr-2016,3108732-7402277837,"9,680.00",DELL COMPUTER CORPORATION LTD.
Resources,Legal & Democratic Services,Supplies and Services,338057,Services,01-Apr-2016,3108740-PB89,"1,936.00",DR PAUL BARRETT.
Resources,Legal & Democratic Services,Supplies and Services,338057,Services,01-Apr-2016,3108741-PB88,"1,355.20",DR PAUL BARRETT.
Resources,I.C.T. Services,Supplies and Services,304303,Equipment and Materials,01-Apr-2016,3108821-2804314,"1,540.00",INSIGHT DIRECT (UK) LTD.
Resources,I.C.T. Services,Supplies and Services,304303,Equipment and Materials,01-Apr-2016,3108892-0000089026,506.00,MILLENNIUM BUSINESS SYSTEMS LTD.
Resources,Legal & Democratic Services,Supplies and Services,338059,Services,01-Apr-2016,3108919-12556,"1,250.00",NORTH EAST REGIONAL EMPLOYERS ORGANISATION (NEREO).
Resources,Human Resources,Supplies and Services,338027,Services,01-Apr-2016,3108919-12557,"1,275.00",NORTH EAST REGIONAL EMPLOYERS ORGANISATION (NEREO).
Resources,I.C.T. Services,Supplies and Services,332029,Printing Stationery and Gen Off Exps,01-Apr-2016,3108952-627947,522.00,POTTS PRINTERS LTD.
Assistant Chief Executive,Policy & Communications Division,Supplies and Services,377015,County Durham Development,04-Apr-2016,3109130-16074,710.00,BH1 PROMOTIONS LTD.
Assistant Chief Executive,Partnerships & Community Engagement Div.,Supplies and Services,384085,Miscellaneous Expenses,04-Apr-2016,3109157-HODM02-16,"1,000.00",CATCHGATE HORTICULTURAL & PLANTER SOCIETY.
Assistant Chief Executive,Partnerships & Community Engagement Div.,Supplies and Services,384085,Miscellaneous Expenses,04-Apr-2016,3109493-WILC01-16,600.00,SELBY CLOSE SOCIAL CLUB.
Assistant Chief Executive,Partnerships & Community Engagement Div.,Supplies and Services,384199,Miscellaneous Expenses,04-Apr-2016,3109514-12510,"10,000.00",ST CHAD`S COLLEGE.
Children and Adult Services,Childrens Services,Supplies and Services,384491,Miscellaneous Expenses,04-Apr-2016,3109236-16CCT369FIRSTAID2,792.00,EMERALD NURSERY.
Children and Adult Services,Childrens Services,Supplies and Services,384491,Miscellaneous Expenses,04-Apr-2016,3109236-16CCT373FIRSTAID3,864.00,EMERALD NURSERY.
Children and Adult Services,Commissioning inc Supporting People,Debtors,930138,Debtor IC+ Residential Care Voids - CCG,04-Apr-2016,3109234-CAS-03-2016-181,"3,036.44",EMBRACE ALL LTD.
Children and Adult Services,Childrens Services,Supplies and Services,364999,Grants to Voluntary Organisations,04-Apr-2016,3109247-CAS-03-2016-140,"3,000.00",FERRYHILL LADDER CENTRE LTD.
Children and Adult Services,Commissioning inc Supporting People,Debtors,930138,Debtor IC+ Residential Care Voids - CCG,04-Apr-2016,3109368-CAS-03-2016-180,"1,725.25",MARIA MALLABAND NURSING HOMES LTD.
Children and Adult Services,Childrens Services,Premises,135005,Water Services,04-Apr-2016,3109432-306820420029012,"2,509.85",NORTHUMBRIAN WATER LTD.
Children and Adult Services,Commissioning inc Supporting People,Debtors,930138,Debtor IC+ Residential Care Voids - CCG,04-Apr-2016,3109448-CAS-03-2016-182,"3,243.47",PELTON GRANGE CARE HOME.
Children and Adult Services,Commissioning inc Supporting People,Debtors,930138,Debtor IC+ Residential Care Voids - CCG,04-Apr-2016,3109450-CAS-03-2016-184,"1,518.22",PERFECT CARE LTD T/A BELMONT GRANGE CARE HOME.
Children and Adult Services,Education,Employees,040001,Recruitment Instruction and Training,04-Apr-2016,3109542-TARINV/15416712,710.10,TES GLOBAL LTD.
Children and Adult Services,Central Charges (CYPS),Debtors,930062,Debtor-school meals suspense,04-Apr-2016,3109534-SI-TSD-1000833,"2,693,899.94",TAYLOR SHAW LTD.
Children and Adult Services,Head of Adults,Premises,125009,Rents,04-Apr-2016,3109216-GLSRENTS16-17,"4,612.79",DERWENTSIDE HOMES LTD.
Children and Adult Services,Planning & Service Strategy,Supplies and Services,384956,Miscellaneous Expenses,04-Apr-2016,3109268-INV-01602038,835.00,GLASSTAP LTD.
Children and Adult Services,Childrens Services,Supplies and Services,384638,Miscellaneous Expenses,04-Apr-2016,3109261-2016-03-052,"3,000.00",GATEWAY NORTH EAST.
Children and Adult Services,Education,Transport,230007,Contract Hire,04-Apr-2016,3109388-CEW2MARCH12,612.00,MOOR PRIVATE HIRE.
Children and Adult Services,Childrens Services,Supplies and Services,384638,Miscellaneous Expenses,04-Apr-2016,3109595-2016-03-001,"3,000.00",WEAR MENCAP.
Children and Adult Services,Head of Adults,Supplies and Services,338045,Services,04-Apr-2016,3109089-203906/FEB,"1,500.00",39 E CS.
Children and Adult Services,Education,Transport,235073,Public Transport,04-Apr-2016,3109165-342210-010,516.60,REDACTED - PAYMENT TO INDIVIDUAL
Children and Adult Services,Education,Transport,230008,Contract Hire,04-Apr-2016,3109397-103-V50-76,"1,994.78",MR GS ANDERSON.
Children and Adult Services,Education,Transport,230008,Contract Hire,04-Apr-2016,3109400-A069/03/16,"1,200.80",MR M ALLISON T/A MACBETH TAXIS/COACHES.
Children and Adult Services,Education,Transport,230008,Contract Hire,04-Apr-2016,3109400-N053/03/16,"1,548.00",MR M ALLISON T/A MACBETH TAXIS/COACHES.
Children and Adult Services,Education,Transport,230008,Contract Hire,04-Apr-2016,3109400-N059/03/16,"1,440.00",MR M ALLISON T/A MACBETH TAXIS/COACHES.
Children and Adult Services,Childrens Services,Supplies and Services,384491,Miscellaneous Expenses,04-Apr-2016,3109118-CRECHE242,784.89,AUCKLAND YOUTH & COMMUNITY ASSOCIATION.
Children and Adult Services,Education,Transport,230008,Contract Hire,04-Apr-2016,3109206-OSMAR1601,"1,817.10",DALELINK PRIVATE HIRE.
Children and Adult Services,Education,Construction Work,908105,Construction work,04-Apr-2016,3109313-DURH/0685,"13,300.12",INSPIREDSPACES DURHAM LTD.
Children and Adult Services,Education,Construction Work,908105,Construction work,04-Apr-2016,3109313-DURH/0686,"51,300.31",INSPIREDSPACES DURHAM LTD.
Children and Adult Services,Central Charges (CYPS),Creditors,952123,Creditor-Governorth,04-Apr-2016,3109178-17032016,695.00,COMMUNICATING EXCELLENCE.
Children and Adult Services,Education,Transport,230008,Contract Hire,04-Apr-2016,3109213-0316/001,"1,271.16",DCM TAXIS.
Children and Adult Services,Education,Vehicles Equipment Furniture and Fittings,912549,Lease-equipment,04-Apr-2016,3109277-INV-1811,"1,000.00",GYM TECH NORTH EAST.
Children and Adult Services,Planning & Service Strategy,Supplies and Services,338089,Services,04-Apr-2016,3109138-6063562,"3,900.00",BOND SOLON TRAINING LTD.
Children and Adult Services,Childrens Services,Third Party Payments,425041,Rendered by Voluntary Organisations,04-Apr-2016,3109197-2393662,"20,286.54",CROYDON COUNCIL.
Children and Adult Services,Education,Transport,230007,Contract Hire,04-Apr-2016,3109372-1194/07,540.00,MARTIN`S TAXIS.
Children and Adult Services,Education,Transport,230008,Contract Hire,04-Apr-2016,3109376-MARCHE2,"1,440.00",MICHAEL A BODDY T/A MBS TAXIS.
Children and Adult Services,Education,Transport,230008,Contract Hire,04-Apr-2016,3109376-MARCHE3,"1,593.90",MICHAEL A BODDY T/A MBS TAXIS.
Children and Adult Services,Education,Transport,230008,Contract Hire,04-Apr-2016,3109388-CEW2/14,"1,445.00",MOOR PRIVATE HIRE.
Children and Adult Services,Education,Transport,230008,Contract Hire,04-Apr-2016,3109557-TS20-39,"1,615.20",TOP STAR TRAVEL.
Children and Adult Services,Childrens Services,Premises,150005,Apportioned Exps of Operational Blds,04-Apr-2016,3109575-DCC0044,"1,027.60",TYNE VIEW PROPERTY MANAGEMENT LTD.
Children and Adult Services,Education,Transport,230008,Contract Hire,04-Apr-2016,3109094-l31/SD,"1,840.00",AABAT TAXIS.
Children and Adult Services,Commissioning inc Supporting People,Third Party Payments,479111,Purchase of Care,04-Apr-2016,3109296-CES012,"3,333.33",HOMECARE SUPPORT LTD T/A THE HUMAN SUPPORT GROUP.
Children and Adult Services,Education,Transport,230008,Contract Hire,04-Apr-2016,3109328-N191/7,"2,268.00",KD TAXIS.
Children and Adult Services,Head of Adults,Premises,125009,Rents,04-Apr-2016,3109334-416654,782.50,KNIGHT FRANK LLP.
Children and Adult Services,Education,Transport,230008,Contract Hire,04-Apr-2016,3109370-031601,"3,189.00",MARK & JOHN CHISHOLM T/A (CHEVRON).
Dedicated Schools Grant,Dedicated Schools Grant,Transport,230010,Contract Hire,04-Apr-2016,3109370-031604,"1,368.00",MARK & JOHN CHISHOLM T/A (CHEVRON).
Children and Adult Services,Education,Transport,230008,Contract Hire,04-Apr-2016,3109370-031605,"1,052.82",MARK & JOHN CHISHOLM T/A (CHEVRON).
Children and Adult Services,Education,Transport,230008,Contract Hire,04-Apr-2016,3109370-031606,855.00,MARK & JOHN CHISHOLM T/A (CHEVRON).
Dedicated Schools Grant,Dedicated Schools Grant,Transport,230010,Contract Hire,04-Apr-2016,3109370-031607,"1,368.00",MARK & JOHN CHISHOLM T/A (CHEVRON).
Dedicated Schools Grant,Dedicated Schools Grant,Transport,230010,Contract Hire,04-Apr-2016,3109370-031609,"1,280.00",MARK & JOHN CHISHOLM T/A (CHEVRON).
Children and Adult Services,Education,Transport,230008,Contract Hire,04-Apr-2016,3109371-300316,"1,170.00",MARK MUSGROVE T/A MARKS TAXIS.
Children and Adult Services,Education,Transport,230008,Contract Hire,04-Apr-2016,3109377-INV-99,"2,076.00",MICHAEL COBB (T/A HAIL TAXIS).
Children and Adult Services,Central Charges (CYPS),Creditors,952258,Creditor-West Durham Cluster,04-Apr-2016,3109383-BSIS03,735.00,MISS BETHANY E COYLE.
Dedicated Schools Grant,Dedicated Schools Grant,Third Party Payments,440080,Other Third Party Payments,04-Apr-2016,3109420-101213,"1,416.68",NISAI VIRTUAL ACADEMY LTD.
Children and Adult Services,Childrens Services,Supplies and Services,304259,Equipment and Materials,04-Apr-2016,3109478-070100,"1,337.95",ROMPA LTD.
Children and Adult Services,Education,Supplies and Services,328041,Clothing Uniforms and Laundry,04-Apr-2016,3109525-456176,"2,197.40",SWIFT INDUSTRIAL SUPPLIES LTD.
Children and Adult Services,Education,Transport,230008,Contract Hire,04-Apr-2016,3109529-31103A,"1,499.04",T MOORE & SON.
Children and Adult Services,Education,Transport,230007,Contract Hire,04-Apr-2016,3109529-31203B,648.00,T MOORE & SON.
Children and Adult Services,Education,Transport,230007,Contract Hire,04-Apr-2016,3109529-31303C,"1,440.00",T MOORE & SON.
Children and Adult Services,Education,Transport,230007,Contract Hire,04-Apr-2016,3109529-31403D,568.80,T MOORE & SON.
Children and Adult Services,Education,Transport,230007,Contract Hire,04-Apr-2016,3109529-33203A,"3,554.62",T MOORE & SON.
Children and Adult Services,Childrens Services,Premises,150005,Apportioned Exps of Operational Blds,04-Apr-2016,3109575-DCC027,629.09,TYNE VIEW PROPERTY MANAGEMENT LTD.
Children and Adult Services,Childrens Services,Fees,901002,Professional fees,04-Apr-2016,3109590-603596,"1,500.00",WARD HADAWAY.
Children and Adult Services,Head of Adults,Premises,125009,Rents,04-Apr-2016,3109600-383091,"1,172.55",WHITTLE JONES (GROUP) LTD.
Children and Adult Services,Head of Adults,Premises,125009,Rents,04-Apr-2016,3109600-383508,"6,265.00",WHITTLE JONES (GROUP) LTD.
Children and Adult Services,Childrens Services,Premises,125009,Rents,04-Apr-2016,3109600-387649,612.00,WHITTLE JONES (GROUP) LTD.
Children and Adult Services,Commissioning inc Supporting People,Supplies and Services,384540,Miscellaneous Expenses,04-Apr-2016,3109105-34163,"1,173.00",ALLWAG PROMOTIONS LTD.
Children and Adult Services,Head of Adults,Supplies and Services,338366,Services,04-Apr-2016,3109155-30672,669.35,CARE ABILITY.
Children and Adult Services,Childrens Services,Supplies and Services,384491,Miscellaneous Expenses,04-Apr-2016,3109236-16CFH,960.00,EMERALD NURSERY.
Children and Adult Services,Education,Transport,230007,Contract Hire,04-Apr-2016,3109258-18265,"23,554.31",GARNETTS LTD (COACHES).
Children and Adult Services,Education,Transport,230007,Contract Hire,04-Apr-2016,3109378-00830,"1,440.00",MICHAELS TRAVEL.
Children and Adult Services,Childrens Services,Employees,080025,Agency Staff,04-Apr-2016,3109457-24462,"1,480.00",PK EDUCATION.
Children and Adult Services,Education,Transport,230008,Contract Hire,04-Apr-2016,3109135-1403,"1,433.95",BOBBY DOVE.
Children and Adult Services,Education,Transport,230008,Contract Hire,04-Apr-2016,3109202-1458,999.36,DA TAXIS.
Children and Adult Services,Education,Transport,230008,Contract Hire,04-Apr-2016,3109202-1459,"1,843.34",DA TAXIS.
Children and Adult Services,Education,Transport,230008,Contract Hire,04-Apr-2016,3109202-1460,"1,092.06",DA TAXIS.
Children and Adult Services,Education,Transport,230008,Contract Hire,04-Apr-2016,3109202-1461,"1,020.00",DA TAXIS.
Children and Adult Services,Education,Transport,230008,Contract Hire,04-Apr-2016,3109210-2769,"1,452.31",DAVES MINIBUSES.
Children and Adult Services,Education,Transport,230008,Contract Hire,04-Apr-2016,3109210-2770,"1,298.63",DAVES MINIBUSES.
Children and Adult Services,Education,Transport,230009,Contract Hire,04-Apr-2016,3109250-0355,540.00,FMR SILVA PITA.
Children and Adult Services,Education,Transport,230007,Contract Hire,04-Apr-2016,3109250-0356,522.00,FMR SILVA PITA.
Children and Adult Services,Education,Transport,230007,Contract Hire,04-Apr-2016,3109302-0039,"1,365.27",HUNTER BROTHERS (TANTOBIE) LTD.
Children and Adult Services,Education,Transport,230007,Contract Hire,04-Apr-2016,3109329-2018,792.00,KEN HINDS.
Children and Adult Services,Childrens Services,Premises,125009,Rents,04-Apr-2016,3109338-5299,"15,884.00",LANGLEY MOOR B3 LTD.
Children and Adult Services,Education,Transport,230008,Contract Hire,04-Apr-2016,3109343-1063,"1,260.00",LD TAXIS.
Children and Adult Services,Education,Transport,230007,Contract Hire,04-Apr-2016,3109344-1723,"2,252.34",LEE`S COACHES LTD.
Children and Adult Services,Education,Transport,230008,Contract Hire,04-Apr-2016,3109353-2536,"2,042.00",LOCAL TRANSPORT LTD.
Children and Adult Services,Childrens Services,Third Party Payments,460160,Contract Payments,04-Apr-2016,3109381-0102,"2,950.00",MILLER ROADWAYS.
Children and Adult Services,Education,Transport,230008,Contract Hire,04-Apr-2016,3109402-0001,864.00,MR PM MULLEN T/A CATHEDRAL TAXIS.
Dedicated Schools Grant,Dedicated Schools Grant,Transport,230010,Contract Hire,04-Apr-2016,3109403-2899,672.00,MR S BOWERS.
Children and Adult Services,Education,Transport,230008,Contract Hire,04-Apr-2016,3109403-2900,944.64,MR S BOWERS.
Children and Adult Services,Education,Transport,230008,Contract Hire,04-Apr-2016,3109403-2902,"1,298.63",MR S BOWERS.
Children and Adult Services,Education,Transport,230008,Contract Hire,04-Apr-2016,3109440-6452,"1,492.48",OVERLANDER LTD.
Children and Adult Services,Education,Transport,230008,Contract Hire,04-Apr-2016,3109440-6460,"1,679.04",OVERLANDER LTD.
Children and Adult Services,Education,Transport,230008,Contract Hire,04-Apr-2016,3109440-6492,"1,660.68",OVERLANDER LTD.
Children and Adult Services,Planning & Service Strategy,Employees,040149,Recruitment Instruction and Training,04-Apr-2016,3109499-1736,514.70,SIGNIS LTD.
Children and Adult Services,Head of Adults,Supplies and Services,338045,Services,04-Apr-2016,3109505-DCC1,"1,557.07",SMART OCCUPATIONAL THERAPY LTD.
Children and Adult Services,Head of Adults,Premises,106082,Centrally Controlled Rep and Maint,04-Apr-2016,3109560-3365,530.00,TOTAL FIRE MAINTENANCE LTD.
Children and Adult Services,Planning & Service Strategy,Premises,106080,Centrally Controlled Rep and Maint,04-Apr-2016,3109159-697,605.48,CATHEDRAL LOCK & SAFE SERVICES LTD.
Children and Adult Services,Education,Transport,230007,Contract Hire,04-Apr-2016,3109201-176,612.00,D MCDONNELL.
Children and Adult Services,Education,Transport,230006,Contract Hire,04-Apr-2016,3109203-175,874.50,DA TRAVEL.
Children and Adult Services,Education,Transport,230008,Contract Hire,04-Apr-2016,3109203-177,"1,092.00",DA TRAVEL.
Children and Adult Services,Education,Transport,230008,Contract Hire,04-Apr-2016,3109211-109,630.00,DAVES TAXIS.
Children and Adult Services,Education,Transport,230008,Contract Hire,04-Apr-2016,3109211-110,"2,430.00",DAVES TAXIS.
Children and Adult Services,Education,Transport,230008,Contract Hire,04-Apr-2016,3109321-891,"1,178.61",JDS PRIVATE HIRE DURHAM.
Children and Adult Services,Education,Transport,230008,Contract Hire,04-Apr-2016,3109355-83A,"1,508.22",LORRAINES TAXIS.
Children and Adult Services,Education,Transport,230007,Contract Hire,04-Apr-2016,3109389-007,"1,440.00",MORGAN`S TRAVEL.
Children and Adult Services,Education,Transport,230007,Contract Hire,04-Apr-2016,3109517-355,"1,813.50",STEPHEN MAUDE LTD T/A MAUDES COACHES.
Children and Adult Services,Education,Transport,230007,Contract Hire,04-Apr-2016,3109517-356,"1,995.12",STEPHEN MAUDE LTD T/A MAUDES COACHES.
Children and Adult Services,Education,Transport,230007,Contract Hire,04-Apr-2016,3109517-357,"1,906.38",STEPHEN MAUDE LTD T/A MAUDES COACHES.
Children and Adult Services,Education,Transport,230007,Contract Hire,04-Apr-2016,3109517-358,"1,340.90",STEPHEN MAUDE LTD T/A MAUDES COACHES.
Children and Adult Services,Education,Transport,230007,Contract Hire,04-Apr-2016,3109363-47,"1,080.00",M BEHAN T/A M & M`S TAXIS.
Children and Adult Services,Education,Transport,230008,Contract Hire,04-Apr-2016,3109365-18,"1,190.00",MALCOLM CARR T/A CARLY CABS.
Children and Adult Services,Education,Transport,230008,Contract Hire,04-Apr-2016,3109375-23,"1,485.00",MAURICE & SONS.
Neighbourhood Services,Technical Services,Supplies and Services,304221,Equipment and Materials,04-Apr-2016,3109098-22801527,"7,520.23",AGGREGATE INDUSTRIES UK LTD.
Neighbourhood Services,Technical Services,Supplies and Services,304221,Equipment and Materials,04-Apr-2016,3109098-22813957,"1,394.52",AGGREGATE INDUSTRIES UK LTD.
Neighbourhood Services,Technical Services,Supplies and Services,304221,Equipment and Materials,04-Apr-2016,3109098-22820607,989.90,AGGREGATE INDUSTRIES UK LTD.
Neighbourhood Services,Direct Services,Third Party Payments,430100,Rendered by Private Contractors,04-Apr-2016,3109107-6210,"17,699.00",AMBIENT AIR CONDITIONING UK LTD T/A AMBIENT HVAC.
Neighbourhood Services,Technical Services,Third Party Payments,430100,Rendered by Private Contractors,04-Apr-2016,3109125-1547003,"7,901.03",BCE NORTHERN LTD.
Neighbourhood Services,Technical Services,Third Party Payments,430100,Rendered by Private Contractors,04-Apr-2016,3109125-1550002,"24,604.60",BCE NORTHERN LTD.
Neighbourhood Services,Direct Services,Supplies and Services,304259,Equipment and Materials,04-Apr-2016,3109141-160325,681.00,BRAMBLEDOWN LANDSCAPE SERVICES LTD.
Neighbourhood Services,Culture & Sport,Premises,145023,Cleaning and Domestic Supplies,04-Apr-2016,3109142-22SI2212556,686.20,BRENNTAG UK LTD.
Neighbourhood Services,Direct Services,Construction Work,908105,Construction work,04-Apr-2016,3109145-90234888,"146,465.55",BRITISH GAS ENERGY PERFORMANCE.
Neighbourhood Services,Direct Services,Supplies and Services,304221,Equipment and Materials,04-Apr-2016,3109147-INV187707,"2,264.00",BROXAP LTD.
Neighbourhood Services,Culture & Sport,Supplies and Services,324117,Provisions,04-Apr-2016,3109156-842467687,"1,430.14",CARLSBERG UK LTD.
Neighbourhood Services,Culture & Sport,Premises,106080,Centrally Controlled Rep and Maint,04-Apr-2016,3109159-796,"4,602.53",CATHEDRAL LOCK & SAFE SERVICES LTD.
Neighbourhood Services,Direct Services,Premises,108301,Service Repairs and Maintenance,04-Apr-2016,3109159-800,"1,903.47",CATHEDRAL LOCK & SAFE SERVICES LTD.
Neighbourhood Services,Direct Services,Premises,108301,Service Repairs and Maintenance,04-Apr-2016,3109159-801,"2,800.23",CATHEDRAL LOCK & SAFE SERVICES LTD.
Neighbourhood Services,Direct Services,Third Party Payments,430100,Rendered by Private Contractors,04-Apr-2016,3109161-139013,590.00,CDS SECURITY LTD.
Neighbourhood Services,Direct Services,Supplies and Services,304259,Equipment and Materials,04-Apr-2016,3109164-151914,"1,440.00",CHAS LONG & SON (AGGREGATES) LTD.
Neighbourhood Services,Culture & Sport,Third Party Payments,430100,Rendered by Private Contractors,04-Apr-2016,3109180-PSINV00363,"4,768.25",COMPETITION LINE UK LTD.
Neighbourhood Services,Culture & Sport,Third Party Payments,430100,Rendered by Private Contractors,04-Apr-2016,3109180-PSINV00364,"17,959.19",COMPETITION LINE UK LTD.
Neighbourhood Services,Culture & Sport,Third Party Payments,430100,Rendered by Private Contractors,04-Apr-2016,3109180-PSINV00365,"24,962.20",COMPETITION LINE UK LTD.
Neighbourhood Services,Culture & Sport,Third Party Payments,430100,Rendered by Private Contractors,04-Apr-2016,3109180-PSINV00366,"26,165.40",COMPETITION LINE UK LTD.
Neighbourhood Services,Culture & Sport,Third Party Payments,430100,Rendered by Private Contractors,04-Apr-2016,3109180-PSINV00367,"6,959.71",COMPETITION LINE UK LTD.
Neighbourhood Services,Culture & Sport,Premises,145023,Cleaning and Domestic Supplies,04-Apr-2016,3109198-401433390,566.63,CRYOSERVICE LTD T/A AIR PRODUCTS..
Neighbourhood Services,Technical Services,Third Party Payments,430127,Rendered by Private Contractors,04-Apr-2016,3109200-18,"1,468.50",D & L HOPPS.
Neighbourhood Services,Culture & Sport,Premises,106099,Centrally Controlled Rep and Maint,04-Apr-2016,3109207-SIN139308,"2,640.00",DALESAUNA LTD.
Neighbourhood Services,Culture & Sport,Supplies and Services,332029,Printing Stationery and Gen Off Exps,04-Apr-2016,3109243-SINV00085909,"1,678.00",EXTERION MEDIA.
Neighbourhood Services,Technical Services,Supplies and Services,304221,Equipment and Materials,04-Apr-2016,3109245-115644,"1,142.40",FABRIKAT (NOTTINGHAM) LTD.
Neighbourhood Services,Technical Services,Supplies and Services,336005,Advertising,04-Apr-2016,3109260-107495486,"3,685.00",GATESHEAD COUNCIL.
Neighbourhood Services,Direct Services,Supplies and Services,304259,Equipment and Materials,04-Apr-2016,3109272-INV054644,"1,098.25",GOTT TECHNICAL SERVICES LTD.
Neighbourhood Services,Projects and Business services,Third Party Payments,430103,Rendered by Private Contractors,04-Apr-2016,3109273-03-2016-035,821.00,GREAT NORTH AIR AMBULANCE SERVICE TRADING CO LTD.
Neighbourhood Services,Technical Services,Stock,926900,Stock in hand-Inventory system,04-Apr-2016,3109274-06/594176,685.80,GREENHAM TRADING LTD.
Neighbourhood Services,Direct Services,Third Party Payments,430100,Rendered by Private Contractors,04-Apr-2016,3109278-2859/INVNo1,"3,237.00",H MALONE & SONS LTD.
Neighbourhood Services,Direct Services,Transport,215005,Running Costs of Vehicles,04-Apr-2016,3109281-0000008677,"9,879.22",HARVEST ENERGY LTD.
Neighbourhood Services,Direct Services,Transport,215005,Running Costs of Vehicles,04-Apr-2016,3109281-0000008688,"20,191.73",HARVEST ENERGY LTD.
Neighbourhood Services,Direct Services,Transport,215005,Running Costs of Vehicles,04-Apr-2016,3109281-0000009981,"28,285.20",HARVEST ENERGY LTD.
Neighbourhood Services,Technical Services,Third Party Payments,430100,Rendered by Private Contractors,04-Apr-2016,3109288-2499,"22,920.05",HIGHWAY CONSTRUCTION SERVICES LTD.
Neighbourhood Services,Technical Services,Stock,926900,Stock in hand-Inventory system,04-Apr-2016,3109305-SI03116571,"1,446.00",ICI DULUX DECORATOR CENTRES.
Neighbourhood Services,Technical Services,Third Party Payments,430100,Rendered by Private Contractors,04-Apr-2016,3109318-12300,"5,174.60",JACK COUPE & SONS LTD T/A COUPE LINE.
Neighbourhood Services,Technical Services,Supplies and Services,304221,Equipment and Materials,04-Apr-2016,3109326-CNI24176/D,"3,406.60",JT DOVE LTD.
Neighbourhood Services,Technical Services,Supplies and Services,304221,Equipment and Materials,04-Apr-2016,3109326-CNI24208/D,517.80,JT DOVE LTD.
Neighbourhood Services,Technical Services,Stock,926900,Stock in hand-Inventory system,04-Apr-2016,3109326-STI433568,539.01,JT DOVE LTD.
Neighbourhood Services,Technical Services,Stock,926900,Stock in hand-Inventory system,04-Apr-2016,3109326-STI433681,"1,574.53",JT DOVE LTD.
Neighbourhood Services,Technical Services,Construction Work,908108,Capital - Surface Dressing,04-Apr-2016,3109331-16231,"12,336.89",KIELY BROS LTD.
Neighbourhood Services,Projects and Business services,Supplies and Services,304357,Equipment and Materials,04-Apr-2016,3109361-33,960.00,M & E & MR WALTON.
Neighbourhood Services,Technical Services,Supplies and Services,304221,Equipment and Materials,04-Apr-2016,3109408-0000050583,"1,262.58",NAL LTD.
Neighbourhood Services,Direct Services,Premises,125009,Rents,04-Apr-2016,3109412-5400511/BUS/200823,"2,158.46",NETWORK RAIL.
Neighbourhood Services,Direct Services,Supplies and Services,304259,Equipment and Materials,04-Apr-2016,3109414-062971,899.90,NEW ROW FARM NURSERIES.
Neighbourhood Services,Technical Services,Construction Work,908201,Capital - Public Utilities - Electricity Services,04-Apr-2016,3109429-RED-03-2016-285,"10,911.33",NORTHERN POWERGRID (NORTHEAST) LTD.
Neighbourhood Services,Direct Services,Supplies and Services,304259,Equipment and Materials,04-Apr-2016,3109430-7057000,"2,112.00",NORTHERN TOOLS & ACCESSORIES.
Neighbourhood Services,Technical Services,Supplies and Services,304221,Equipment and Materials,04-Apr-2016,3109431-17636,630.24,NORTHUMBRIAN ROADS LTD.
Neighbourhood Services,EnvironmentHealth & Consumer Protection,Premises,135005,Water Services,04-Apr-2016,3109432-10230970002X067,922.74,NORTHUMBRIAN WATER LTD.
Neighbourhood Services,Direct Services,Premises,135005,Water Services,04-Apr-2016,3109432-210201890024009,797.22,NORTHUMBRIAN WATER LTD.
Neighbourhood Services,Culture & Sport,Premises,135005,Water Services,04-Apr-2016,3109432-260100800019093,"1,202.04",NORTHUMBRIAN WATER LTD.
Neighbourhood Services,Redundant Technical Services,Premises,135005,Water Services,04-Apr-2016,3109432-313796730013005,749.15,NORTHUMBRIAN WATER LTD.
Neighbourhood Services,Culture & Sport,Premises,145023,Cleaning and Domestic Supplies,04-Apr-2016,3109434-CN19191080,"1,414.68",OCS GROUP UK LTD T/A CANNON HYGIENE.
Neighbourhood Services,Culture & Sport,Supplies and Services,304259,Equipment and Materials,04-Apr-2016,3109442-237718,859.40,PALINTEST LTD.
Neighbourhood Services,Technical Services,Stock,926900,Stock in hand-Inventory system,04-Apr-2016,3109444-XL164747,"2,197.80",PARK ELECTRICAL DISTRIBUTORS LTD.
Neighbourhood Services,Technical Services,Stock,926900,Stock in hand-Inventory system,04-Apr-2016,3109444-XL164836,"1,850.24",PARK ELECTRICAL DISTRIBUTORS LTD.
Neighbourhood Services,Culture & Sport,Supplies and Services,332029,Printing Stationery and Gen Off Exps,04-Apr-2016,3109446-27069,"1,874.00",PBL PRINT.
Neighbourhood Services,Technical Services,Third Party Payments,430100,Rendered by Private Contractors,04-Apr-2016,3109463-1121,"1,624.00",PREMIER TRAFFIC MANAGEMENT LTD.
Neighbourhood Services,Technical Services,Third Party Payments,430100,Rendered by Private Contractors,04-Apr-2016,3109463-138709,"57,922.55",PREMIER TRAFFIC MANAGEMENT LTD.
Neighbourhood Services,Technical Services,Supplies and Services,372009,Subscriptions,04-Apr-2016,3109470-086549,865.00,RICS BOOKS.
Neighbourhood Services,Culture & Sport,Supplies and Services,384700,Miscellaneous Expenses,04-Apr-2016,3109492-03-2016-067,"1,387.50",SECONDS OUT BOXING ACADEMY..
Neighbourhood Services,Technical Services,Supplies and Services,304221,Equipment and Materials,04-Apr-2016,3109502-70410,"4,732.62",SIMMONSIGNS LTD.
Neighbourhood Services,Technical Services,Supplies and Services,304221,Equipment and Materials,04-Apr-2016,3109502-70417,"1,735.20",SIMMONSIGNS LTD.
Neighbourhood Services,Technical Services,Stock,926900,Stock in hand-Inventory system,04-Apr-2016,3109506-188396,"1,740.00",SNAPFAST.
Neighbourhood Services,Technical Services,Stock,926900,Stock in hand-Inventory system,04-Apr-2016,3109506-188409,765.60,SNAPFAST.
Neighbourhood Services,Technical Services,Stock,926900,Stock in hand-Inventory system,04-Apr-2016,3109506-188410,"1,893.60",SNAPFAST.
Neighbourhood Services,Culture & Sport,Supplies and Services,304252,Equipment and Materials,04-Apr-2016,3109509-SIN036972,565.00,SOUND ASSOCIATES LTD.
Neighbourhood Services,Direct Services,Supplies and Services,304221,Equipment and Materials,04-Apr-2016,3109528-1911936,"2,759.99",T CROSSLING & CO LTD.
Neighbourhood Services,Technical Services,Supplies and Services,304221,Equipment and Materials,04-Apr-2016,3109567-618214,899.90,TRAFFIC MANAGEMENT PRODUCTS LTD (TMP).
Neighbourhood Services,Direct Services,Third Party Payments,430100,Rendered by Private Contractors,04-Apr-2016,3109574-DCC/GT/6,993.20,TYNE VALLEY FLOORING & CARPETS.
Neighbourhood Services,Technical Services,Supplies and Services,304221,Equipment and Materials,04-Apr-2016,3109576-158814,"1,167.98",TYNEDALE ROADSTONE LTD.
Neighbourhood Services,Technical Services,Supplies and Services,304221,Equipment and Materials,04-Apr-2016,3109576-158815,927.60,TYNEDALE ROADSTONE LTD.
Neighbourhood Services,Direct Services,Supplies and Services,304221,Equipment and Materials,04-Apr-2016,3109581-6890208646,"3,688.00",VIESSMANN LTD.
Neighbourhood Services,Culture & Sport,Supplies and Services,312013,Newspapers Books and Periodicals,04-Apr-2016,3109598-156060,"18,373.78",WF HOWES LTD.
Neighbourhood Services,Technical Services,Supplies and Services,304221,Equipment and Materials,04-Apr-2016,3109605-N83454,"2,391.33",WILLIAMSON CONSTRUCTION EQUIPMENT LTD.
Neighbourhood Services,Technical Services,Stock,926900,Stock in hand-Inventory system,04-Apr-2016,3109607-368609,560.00,WM SMITH & SONS (BARNARD CASTLE) LTD.
Neighbourhood Services,Direct Services,Supplies and Services,304221,Equipment and Materials,04-Apr-2016,3109608-31144609,"1,124.79",WOLSELEY UK LTD.
Neighbourhood Services,Direct Services,Premises,125009,Rents,04-Apr-2016,3109612-00016239,"2,000.00",YOUNGS RPS LLP.
Regeneration & Economic Development,Transport and Contracted Services,Third Party Payments,430106,Rendered by Private Contractors,04-Apr-2016,3109115-110422,"86,138.42",ARRIVA NORTH EAST LTD.
Regeneration & Economic Development,Economic Development and Housing,Supplies and Services,304259,Equipment and Materials,04-Apr-2016,3109134-FLLA3381040,831.39,BNP PARIBAS LEASE GROUP (RENTALS).
Regeneration & Economic Development,Transport and Contracted Services,Supplies and Services,304259,Equipment and Materials,04-Apr-2016,3109225-20014542,"2,992.00",DURHAM POLICE & CRIME COMMISSIONER.
Regeneration & Economic Development,Transport and Contracted Services,Supplies and Services,304259,Equipment and Materials,04-Apr-2016,3109225-20014543,"2,945.72",DURHAM POLICE & CRIME COMMISSIONER.
Regeneration & Economic Development,Transport and Contracted Services,Supplies and Services,304259,Equipment and Materials,04-Apr-2016,3109225-20014544,"3,760.00",DURHAM POLICE & CRIME COMMISSIONER.
Regeneration & Economic Development,Economic Development and Housing,Supplies and Services,344033,Telephones,04-Apr-2016,3109253-128846,"1,098.22",FREEDOM COMMUNICATIONS (UK) LTD.
Regeneration & Economic Development,Transport and Contracted Services,Third Party Payments,430106,Rendered by Private Contractors,04-Apr-2016,3109270-57416,"2,450.00",GO GATESHEAD LTD.
Regeneration & Economic Development,Transport and Contracted Services,Third Party Payments,430106,Rendered by Private Contractors,04-Apr-2016,3109291-014050,"4,759.11",HODGSONS COACH OPERATORS LTD.
Regeneration & Economic Development,Transport and Contracted Services,Supplies and Services,336005,Advertising,04-Apr-2016,3109366-16/059,500.00,MANTIS MEDIA T/A AYCLIFFE TODAY.
Regeneration & Economic Development,Economic Development and Housing,Supplies and Services,340001,Postages,04-Apr-2016,3109411-RED-03-2016-286,"3,000.00",NEOPOST LTD.
Regeneration & Economic Development,Economic Development and Housing,Supplies and Services,384199,Miscellaneous Expenses,04-Apr-2016,3109413-NM30745,"13,800.00",NEW MIND INTERNET CONSULTANCY LTD.
Regeneration & Economic Development,Economic Development and Housing,Supplies and Services,384199,Miscellaneous Expenses,04-Apr-2016,3109413-NM30747,704.00,NEW MIND INTERNET CONSULTANCY LTD.
Regeneration & Economic Development,Economic Development and Housing,Supplies and Services,384199,Miscellaneous Expenses,04-Apr-2016,3109413-NM30748,528.00,NEW MIND INTERNET CONSULTANCY LTD.
Regeneration & Economic Development,Spatial Policy Planning Assets & Environment,Supplies and Services,336005,Advertising,04-Apr-2016,3109418-14677311,804.59,NEWSQUEST (YORKSHIRE & NORTH EAST) LTD.
Regeneration & Economic Development,Transport and Contracted Services,Supplies and Services,336005,Advertising,04-Apr-2016,3109418-14677337,559.54,NEWSQUEST (YORKSHIRE & NORTH EAST) LTD.
Regeneration & Economic Development,Economic Development and Housing,Supplies and Services,338027,Services,04-Apr-2016,3109419-36,"2,400.00",NIMIS IT SERVICES LTD.
Regeneration & Economic Development,Economic Development and Housing,Premises,135005,Water Services,04-Apr-2016,3109432-210029660111010,"1,607.40",NORTHUMBRIAN WATER LTD.
Regeneration & Economic Development,Economic Development and Housing,Premises,135005,Water Services,04-Apr-2016,3109432-210043580235008,520.20,NORTHUMBRIAN WATER LTD.
Regeneration & Economic Development,Economic Development and Housing,Premises,135005,Water Services,04-Apr-2016,3109432-210206120023007,"2,115.00",NORTHUMBRIAN WATER LTD.
Regeneration & Economic Development,Transport and Contracted Services,Premises,135005,Water Services,04-Apr-2016,3109432-260100600056006,"2,493.10",NORTHUMBRIAN WATER LTD.
Regeneration & Economic Development,Transport and Contracted Services,Premises,135005,Water Services,04-Apr-2016,3109432-260100600065006,"4,142.80",NORTHUMBRIAN WATER LTD.
Regeneration & Economic Development,Transport and Contracted Services,Premises,135005,Water Services,04-Apr-2016,3109432-260100700014061,"7,543.23",NORTHUMBRIAN WATER LTD.
Regeneration & Economic Development,Transport and Contracted Services,Premises,135005,Water Services,04-Apr-2016,3109432-260101200027043,"2,290.18",NORTHUMBRIAN WATER LTD.
Regeneration & Economic Development,Transport and Contracted Services,Premises,135005,Water Services,04-Apr-2016,3109432-260101200036048,"1,033.74",NORTHUMBRIAN WATER LTD.
Regeneration & Economic Development,Transport and Contracted Services,Premises,135005,Water Services,04-Apr-2016,3109432-304203880011017,"2,493.10",NORTHUMBRIAN WATER LTD.
Regeneration & Economic Development,Economic Development and Housing,Premises,135005,Water Services,04-Apr-2016,3109432-309921230048014,799.05,NORTHUMBRIAN WATER LTD.
Regeneration & Economic Development,Transport and Contracted Services,Premises,135005,Water Services,04-Apr-2016,3109432-310651060014009,"1,333.50",NORTHUMBRIAN WATER LTD.
Regeneration & Economic Development,Transport and Contracted Services,Premises,135005,Water Services,04-Apr-2016,3109432-31075594001X008,749.15,NORTHUMBRIAN WATER LTD.
Regeneration & Economic Development,Economic Development and Housing,Premises,135005,Water Services,04-Apr-2016,3109432-313778460019005,"2,115.00",NORTHUMBRIAN WATER LTD.
Regeneration & Economic Development,Transport and Contracted Services,Premises,135005,Water Services,04-Apr-2016,3109432-314999810010006,749.15,NORTHUMBRIAN WATER LTD.
Regeneration & Economic Development,Transport and Contracted Services,Premises,135005,Water Services,04-Apr-2016,3109432-31499981002X004,749.15,NORTHUMBRIAN WATER LTD.
Regeneration & Economic Development,Economic Development and Housing,Construction Work,908105,Construction work,04-Apr-2016,3109438-A144988,609.39,OPENREACH LLU.
Regeneration & Economic Development,Transport and Contracted Services,Third Party Payments,430106,Rendered by Private Contractors,04-Apr-2016,3109468-2033,"6,950.00",R COOPER T/A DC TAXIS.
Resources,I.C.T. Services,Supplies and Services,332029,Printing Stationery and Gen Off Exps,04-Apr-2016,3109099-223922,669.00,AGNE LTD T/A ALPHAGRAPHICS.
Resources,I.C.T. Services,Supplies and Services,332029,Printing Stationery and Gen Off Exps,04-Apr-2016,3109099-223938,"1,184.00",AGNE LTD T/A ALPHAGRAPHICS.
Resources,I.C.T. Services,Supplies and Services,342051,Computers and Communications,04-Apr-2016,3109153-6003274369,"185,833.23",CAPITA EDUCATION SERVICES.
Resources,Financial Services,Employees,040149,Recruitment Instruction and Training,04-Apr-2016,3109170-304039-CIP,"1,730.40",CIPFA LTD.
Resources,Financial Services,Employees,040149,Recruitment Instruction and Training,04-Apr-2016,3109171-5184638,"1,730.40",CIPFA LTD.
Resources,I.C.T. Services,Premises,120037,Energy Costs,04-Apr-2016,3109281-0000008680,"1,013.88",HARVEST ENERGY LTD.
Resources,I.C.T. Services,Supplies and Services,304303,Equipment and Materials,04-Apr-2016,3109309-SIN380039,"1,064.00",INFORMATION & DATA NETWORK SUPPLIES LTD (IDN).
Resources,I.C.T. Services,Supplies and Services,304303,Equipment and Materials,04-Apr-2016,3109312-2808427,900.00,INSIGHT DIRECT (UK) LTD.
Resources,Corporate Services Financing,Debtors,930165,Debtor-Housing Benefit Overpaid Recovered,04-Apr-2016,3109398-RES-03-2016-271,"1,057.30",REDACTED - PAYMENT TO INDIVIDUAL
Resources,Corporate Finance,Supplies and Services,336005,Advertising,04-Apr-2016,3109418-14671720,"2,866.34",NEWSQUEST (YORKSHIRE & NORTH EAST) LTD.
Resources,I.C.T. Services,Vehicles Equipment Furniture and Fittings,912701,Computer equipment,04-Apr-2016,3109527-123404,"4,710.00",SWITCHSHOP LTD.
Resources,I.C.T. Services,Supplies and Services,304303,Equipment and Materials,04-Apr-2016,3109556-0000075465,712.43,TOOLSTATION LTD.
Assistant Chief Executive,Policy & Communications Division,Supplies and Services,312010,Newspapers Books and Periodicals,05-Apr-2016,3110297-000006040587,"1,480.68",BRITISH TELECOMMUNICATIONS PLC.
Children and Adult Services,Education,Receipts In Advance,954013,Capital contributions-receipts in advance,05-Apr-2016,3110691-NEI-INC-03-2016-030,"3,358.20",THE SHOTTON HALL LEARNING TRUST.
Children and Adult Services,Childrens Services,Supplies and Services,364301,Grants to Voluntary Organisations,05-Apr-2016,3110250-CAS-04-2016-008,829.00,REDACTED - PAYMENT TO INDIVIDUAL
Children and Adult Services,Head of Adults,Cash,936005,Cheque reconciliation extra care,05-Apr-2016,3110317-CAS-04-2016-011,"1,300.00",CHESTER VIEW EXTRA CARE.
Children and Adult Services,Head of Adults,Third Party Payments,472101,Purchase of Care,05-Apr-2016,3110350-CAS-04-2016-006,"21,871.63",CRESCENT HOMECARE LTD.
Dedicated Schools Grant,Dedicated Schools Grant,Central Support and Capital,689996,Unclassified,05-Apr-2016,3110459-CAS-04-2016-001,"58,350.00",HOPE WOOD ACADEMY.
Children and Adult Services,Childrens Services,Supplies and Services,364301,Grants to Voluntary Organisations,05-Apr-2016,3110480-CAS-03-2016-173,622.09,REDACTED - PAYMENT TO INDIVIDUAL
Children and Adult Services,Head of Adults,Cash,936005,Cheque reconciliation extra care,05-Apr-2016,3110522-CAS-04-2016-015,500.00,MAPLE COURT EXTRA CARE.
Children and Adult Services,Childrens Services,Supplies and Services,372009,Subscriptions,05-Apr-2016,3110638-AYCLIFFE2016/17,750.00,SECURE ACCOMMODATION NETWORK.
Children and Adult Services,Childrens Services,Transfer Payments,515207,Social Services Clients,05-Apr-2016,3110275-SIN0022873,995.50,BEAMISH MUSEUM LTD.
Children and Adult Services,Childrens Services,Supplies and Services,344033,Telephones,05-Apr-2016,3110297-NE19493805,914.29,BRITISH TELECOMMUNICATIONS PLC.
Children and Adult Services,Childrens Services,Supplies and Services,372009,Subscriptions,05-Apr-2016,3110338-FMLA/10014,"9,633.10",CORAMBAAF LTD T/A CORAM ACADEMY LTD.
Children and Adult Services,Childrens Services,Third Party Payments,440037,Other Third Party Payments,05-Apr-2016,3110396-CROOK14357,592.00,EMERALD NURSERY.
Children and Adult Services,Childrens Services,Transport,230005,Contract Hire,05-Apr-2016,3110543-KDC010216A,880.00,MJ TIMNEY T/A KDC & C&M TAXIS.
Children and Adult Services,Head of Adults,Employees,080025,Agency Staff,05-Apr-2016,3110684-4810006952,"1,627.42",TEES ESK & WEAR VALLEYS NHS FOUNDATION TRUST.
Children and Adult Services,Education,Third Party Payments,440999,Other Third Party Payments,05-Apr-2016,3110411-PD/16/02,"5,152.00",FIRST POINT TRAINING T/A POSITIVE DIRECTIONS.
Children and Adult Services,Childrens Services,Supplies and Services,384199,Miscellaneous Expenses,05-Apr-2016,3110591-22650567,"2,548.00",PARK RETAIL LTD.
Children and Adult Services,Public Health,Third Party Payments,460803,Contract Payments,05-Apr-2016,3110723-SINV5677,"4,166.74",VOLUNTEERING MATTERS.
Children and Adult Services,Childrens Services,Third Party Payments,440029,Other Third Party Payments,05-Apr-2016,3109881-1092219,775.47,REDACTED - PAYMENT TO INDIVIDUAL
Children and Adult Services,Childrens Services,Employees,080025,Agency Staff,05-Apr-2016,3110316-2322838,"1,030.00",CELSIAN.
Children and Adult Services,Head of Adults,Supplies and Services,304259,Equipment and Materials,05-Apr-2016,3110640-0316009,"39,245.00",SENSORY GURU LTD.
Children and Adult Services,Childrens Services,Transport,230005,Contract Hire,05-Apr-2016,3110245-M33/ZC,739.06,AABAT TAXIS.
Children and Adult Services,Education,Supplies and Services,308013,Furniture,05-Apr-2016,3110253-SG1432,"3,615.45",AIKEN FLOORING CONTRACTS LTD.
Children and Adult Services,Planning & Service Strategy,Supplies and Services,338091,Services,05-Apr-2016,3110380-292253,"14,521.00",DURHAM UNIVERSITY.
Children and Adult Services,Childrens Services,Supplies and Services,384491,Miscellaneous Expenses,05-Apr-2016,3110732-201612,780.00,WHEATLEY HILL COMMUNITY NURSERY LTD.
Children and Adult Services,Education,Transport,230008,Contract Hire,05-Apr-2016,3110360-2772,"1,800.00",DAVES MINIBUSES.
Children and Adult Services,Childrens Services,Supplies and Services,384199,Miscellaneous Expenses,05-Apr-2016,3110408-0084,850.00,FEEL GOOD FACTORY CIC.
Children and Adult Services,Childrens Services,Supplies and Services,384199,Miscellaneous Expenses,05-Apr-2016,3110408-0085,560.00,FEEL GOOD FACTORY CIC.
Children and Adult Services,Childrens Services,Supplies and Services,384199,Miscellaneous Expenses,05-Apr-2016,3110408-0086,750.00,FEEL GOOD FACTORY CIC.
Children and Adult Services,Childrens Services,Supplies and Services,384871,Miscellaneous Expenses,05-Apr-2016,3110408-0088,"2,160.00",FEEL GOOD FACTORY CIC.
Children and Adult Services,Childrens Services,Supplies and Services,384871,Miscellaneous Expenses,05-Apr-2016,3110408-0091,900.00,FEEL GOOD FACTORY CIC.
Children and Adult Services,Planning & Service Strategy,Supplies and Services,338091,Services,05-Apr-2016,3110474-9626,786.00,IT TRAINING SOLUTIONS LTD.
Children and Adult Services,Childrens Services,Transport,230005,Contract Hire,05-Apr-2016,3110512-2508,"1,750.00",LOCAL TRANSPORT LTD.
Children and Adult Services,Planning & Service Strategy,Supplies and Services,338094,Services,05-Apr-2016,3110688-3419,"1,182.00",THE DURHAM CENTRE LTD.
Children and Adult Services,Planning & Service Strategy,Supplies and Services,338094,Services,05-Apr-2016,3110688-3649,"1,505.00",THE DURHAM CENTRE LTD.
Children and Adult Services,Planning & Service Strategy,Supplies and Services,338094,Services,05-Apr-2016,3110688-3668,743.00,THE DURHAM CENTRE LTD.
Children and Adult Services,Public Health,Supplies and Services,338094,Services,05-Apr-2016,3110688-3683,501.15,THE DURHAM CENTRE LTD.
Children and Adult Services,Childrens Services,Transport,235073,Public Transport,05-Apr-2016,3110318-285,655.70,CHEVRON TAXIS LTD.
Neighbourhood Services,Technical Services,Supplies and Services,304221,Equipment and Materials,05-Apr-2016,3110251-22807835,774.29,AGGREGATE INDUSTRIES UK LTD.
Neighbourhood Services,Technical Services,Supplies and Services,304221,Equipment and Materials,05-Apr-2016,3110251-22807839,"7,536.54",AGGREGATE INDUSTRIES UK LTD.
Neighbourhood Services,Culture & Sport,Supplies and Services,384199,Miscellaneous Expenses,05-Apr-2016,3110257-003676,"7,839.50",AMERICAN EXPRESS SERVICES EUROPE LTD.
Neighbourhood Services,Culture & Sport,Supplies and Services,312013,Newspapers Books and Periodicals,05-Apr-2016,3110257-003691,"3,194.68",AMERICAN EXPRESS SERVICES EUROPE LTD.
Neighbourhood Services,Direct Services,Transport,215025,Running Costs of Vehicles,05-Apr-2016,3110309-6002002452,"4,025.00",CAPITA TREASURY SOLUTIONS LTD T/A CAPITA ASSET SERVICES.
Neighbourhood Services,Direct Services,Transport,210057,Repair and Maintenance of Vehicles,05-Apr-2016,3110365-DE10941605,732.96,DENNIS EAGLE LTD.
Neighbourhood Services,Direct Services,Supplies and Services,304259,Equipment and Materials,05-Apr-2016,3110391-059-182180,"19,155.10",EDMUNDSON ELECTRICAL LTD.
Neighbourhood Services,Direct Services,Transport,230005,Contract Hire,05-Apr-2016,3110398-8128145,"1,021.95",ENTERPRISE FLEX-E-RENT T/A BURNT TREE GROUP LTD.
Neighbourhood Services,Direct Services,Transport,230005,Contract Hire,05-Apr-2016,3110398-8128147,"1,021.95",ENTERPRISE FLEX-E-RENT T/A BURNT TREE GROUP LTD.
Neighbourhood Services,Direct Services,Transport,230005,Contract Hire,05-Apr-2016,3110398-8128153,"1,021.95",ENTERPRISE FLEX-E-RENT T/A BURNT TREE GROUP LTD.
Neighbourhood Services,Direct Services,Transport,230005,Contract Hire,05-Apr-2016,3110398-8128160,520.68,ENTERPRISE FLEX-E-RENT T/A BURNT TREE GROUP LTD.
Neighbourhood Services,Direct Services,Premises,145009,Cleaning and Domestic Supplies,05-Apr-2016,3110407-1203484,939.70,FCC RECYCLING (UK)  LTD.
Neighbourhood Services,Direct Services,Transport,210057,Repair and Maintenance of Vehicles,05-Apr-2016,3110424-C05418,897.56,GEESINK NORBA LTD.
Neighbourhood Services,Technical Services,Supplies and Services,304260,Equipment and Materials,05-Apr-2016,3110444-0000009432,723.36,HARVEST ENERGY LTD.
Neighbourhood Services,Direct Services,Third Party Payments,430101,Rendered by Private Contractors,05-Apr-2016,3110455-5067729601,900.00,HI Q TYRESERVICES.
Neighbourhood Services,Technical Services,Third Party Payments,430127,Rendered by Private Contractors,05-Apr-2016,3110477-5305090,595.50,JA GILSON (AGRICULTURAL CONTRACTORS) LTD.
Neighbourhood Services,Culture & Sport,Supplies and Services,338047,Services,05-Apr-2016,3110492-KCC16-S-034,791.36,KESTON COBBLERS CLUB.
Neighbourhood Services,Culture & Sport,Supplies and Services,384540,Miscellaneous Expenses,05-Apr-2016,3110507-03-2016-069,"7,818.00",LEISUREWORKS.
Neighbourhood Services,Technical Services,Third Party Payments,430100,Rendered by Private Contractors,05-Apr-2016,3110521-5249,"4,096.80",MAKEPEACE MOTORS.
Neighbourhood Services,Technical Services,Third Party Payments,430100,Rendered by Private Contractors,05-Apr-2016,3110521-5250,"1,315.40",MAKEPEACE MOTORS.
Neighbourhood Services,Technical Services,Supplies and Services,304221,Equipment and Materials,05-Apr-2016,3110526-ZDB0024925,"5,106.06",MARSHALLS MONO LTD.
Neighbourhood Services,Technical Services,Supplies and Services,304221,Equipment and Materials,05-Apr-2016,3110526-ZDB0025123,696.14,MARSHALLS MONO LTD.
Neighbourhood Services,Technical Services,Third Party Payments,430100,Rendered by Private Contractors,05-Apr-2016,3110537-5499,"22,403.15",MILES MACADAM LTD.
Neighbourhood Services,Technical Services,Creditors,952029,Creditor-returnable bonds,05-Apr-2016,3110538-NEI-INC-03-2016-036,"1,000.00",MILLER HOMES (NORTH EAST) LTD.
Neighbourhood Services,Direct Services,Stock,926004,Stock,05-Apr-2016,3110559-51255,695.04,MTS BOBCAT.
Neighbourhood Services,Direct Services,Supplies and Services,384199,Miscellaneous Expenses,05-Apr-2016,3110561-03-2016-084,"14,950.00",MURTON PARISH COUNCIL.
Neighbourhood Services,Direct Services,Stock,926004,Stock,05-Apr-2016,3110563-INVDUR00312473,524.10,NE TRUCK SPARES LTD.
Neighbourhood Services,Culture & Sport,Supplies and Services,338047,Services,05-Apr-2016,3110564-01/16,"2,100.00",NEIL ARMSTRONG..
Neighbourhood Services,Direct Services,Third Party Payments,430100,Rendered by Private Contractors,05-Apr-2016,3110568-03-2016-068,"13,490.93",NEWCASTLE UPON TYNE CITY COUNCIL.
Neighbourhood Services,Technical Services,Supplies and Services,384194,Miscellaneous Expenses,05-Apr-2016,3110573-58004,"2,375.00",NIRAMAX GROUP LTD.
Neighbourhood Services,Technical Services,Third Party Payments,460351,Contract Payments,05-Apr-2016,3110578-034006,523.56,NORTHERN DISPOSAL SERVICES LTD.
Neighbourhood Services,Direct Services,Transport,230005,Contract Hire,05-Apr-2016,3110580-SL03769496INV,606.10,NORTHGATE VEHICLE HIRE LTD.
Neighbourhood Services,Direct Services,Transport,230005,Contract Hire,05-Apr-2016,3110580-SL03769511INV,522.00,NORTHGATE VEHICLE HIRE LTD.
Neighbourhood Services,Technical Services,Third Party Payments,430100,Rendered by Private Contractors,05-Apr-2016,3110581-913703826,975.00,NORTHUMBRIAN WATER LTD.
Neighbourhood Services,Direct Services,Transport,210057,Repair and Maintenance of Vehicles,05-Apr-2016,3110588-SIP057514,635.00,OWEN SPRINGS LTD.
Neighbourhood Services,Culture & Sport,Supplies and Services,338047,Services,05-Apr-2016,3110599-INV15713,756.96,PICTUREHOUSE ENTERTAINMENT LTD.
Neighbourhood Services,Culture & Sport,Supplies and Services,338047,Services,05-Apr-2016,3110599-INV15714,"1,701.33",PICTUREHOUSE ENTERTAINMENT LTD.
Neighbourhood Services,Direct Services,Premises,108251,Service Repairs and Maintenance,05-Apr-2016,3110609-5621,"6,571.90",QW SECURITY LTD.
Neighbourhood Services,Direct Services,Supplies and Services,384199,Miscellaneous Expenses,05-Apr-2016,3110622-1/2016,"1,100.00",SE LANDSCAPING & GARDEN SERVICES.
Neighbourhood Services,Direct Services,Transport,210057,Repair and Maintenance of Vehicles,05-Apr-2016,3110656-SI-2019464,963.00,SPALDINGS (UK) LTD.
Neighbourhood Services,Culture & Sport,Supplies and Services,332029,Printing Stationery and Gen Off Exps,05-Apr-2016,3110669-3855,"4,800.00",STARK HARTLEY ATKINSON LTD.
Neighbourhood Services,Culture & Sport,Supplies and Services,332029,Printing Stationery and Gen Off Exps,05-Apr-2016,3110669-3860,"2,800.00",STARK HARTLEY ATKINSON LTD.
Neighbourhood Services,EnvironmentHealth & Consumer Protection,Supplies and Services,338027,Services,05-Apr-2016,3110671-779,850.00,STM ENVIRONMENTAL LTD.
Neighbourhood Services,Technical Services,Supplies and Services,304221,Equipment and Materials,05-Apr-2016,3110672-080134,"1,359.12",STONEGRAVE AGGREGATES LTD.
Neighbourhood Services,Culture & Sport,Supplies and Services,338047,Services,05-Apr-2016,3110676-02669,"4,715.13",SWEENEY ENTERTAINMENTS.
Neighbourhood Services,Technical Services,Supplies and Services,304221,Equipment and Materials,05-Apr-2016,3110707-158658,732.92,TYNEDALE ROADSTONE LTD.
Neighbourhood Services,Culture & Sport,Supplies and Services,384956,Miscellaneous Expenses,05-Apr-2016,3110709-UKAPPL98121,"1,755.62",UKACTIVE.
Neighbourhood Services,Culture & Sport,Supplies and Services,312013,Newspapers Books and Periodicals,05-Apr-2016,3110710-I599118,"1,518.48",ULVERSCROFT LARGE PRINT BOOKS LTD.
Neighbourhood Services,Culture & Sport,Supplies and Services,338047,Services,05-Apr-2016,3110713-22314079113-1,642.99,UNIVERSAL PICTURES INTERNATIONAL UK & EIRE LTD.
Neighbourhood Services,Culture & Sport,Supplies and Services,338047,Services,05-Apr-2016,3110713-22314079113-3,645.58,UNIVERSAL PICTURES INTERNATIONAL UK & EIRE LTD.
Neighbourhood Services,Direct Services,Stock,926004,Stock,05-Apr-2016,3110744-17835,524.00,WOODALL NICHOLSON LTD T/A MELLOR COACHCRAFT LTD.
Neighbourhood Services,Direct Services,Transport,210057,Repair and Maintenance of Vehicles,05-Apr-2016,3110751-101881,580.14,ZOELLER WASTE SYSTEMS LTD.
Neighbourhood Services,Direct Services,Stock,926004,Stock,05-Apr-2016,3110751-101894,980.66,ZOELLER WASTE SYSTEMS LTD.
Neighbourhood Services,Direct Services,Stock,926004,Stock,05-Apr-2016,3110751-101903,539.30,ZOELLER WASTE SYSTEMS LTD.
Regeneration & Economic Development,Economic Development and Housing,Supplies and Services,384899,Miscellaneous Expenses,05-Apr-2016,3110286-RED-04-2016-028,810.00,BLAIZE.
Regeneration & Economic Development,Economic Development and Housing,Cap Exp on Grants & Other Financial Assistance (REFCUS),918401,Capital grants,05-Apr-2016,3110304-RED-04-2016-015,"18,095.00",CAMERONS BREWERY LTD.
Regeneration & Economic Development,Economic Development and Housing,Cap Exp on Grants & Other Financial Assistance (REFCUS),918401,Capital grants,05-Apr-2016,3110305-RED-04-2016-005,"1,600.00",CANARY WHARF PROPERTY MANAGEMENT LTD.
Regeneration & Economic Development,Economic Development and Housing,Supplies and Services,384199,Miscellaneous Expenses,05-Apr-2016,3110325-22MARCH2016,500.00,CLAIRE MEGGINSON T/A SWEET SALLY CINNAMON.
Regeneration & Economic Development,Spatial Policy Planning Assets & Environment,Supplies and Services,372009,Subscriptions,05-Apr-2016,3110373-10906,"5,806.51",DISTRICT SURVEYORS LTD T/A LABC.
Regeneration & Economic Development,Transport and Contracted Services,Supplies and Services,338078,Services,05-Apr-2016,3110378-20014522,"8,500.00",DURHAM POLICE & CRIME COMMISSIONER.
Regeneration & Economic Development,Economic Development and Housing,Supplies and Services,384700,Miscellaneous Expenses,05-Apr-2016,3110404-RED-04-2016-001,500.00,EVERMOR SOLUTIONS LTD.
Regeneration & Economic Development,Economic Development and Housing,Cap Exp on Grants & Other Financial Assistance (REFCUS),918401,Capital grants,05-Apr-2016,3110406-RED-03-2016-261,"6,189.00",F TIFFEN BUILDING SERVICES.
Regeneration & Economic Development,Economic Development and Housing,Cap Exp on Grants & Other Financial Assistance (REFCUS),918401,Capital grants,05-Apr-2016,3110406-RED-03-2016-263,"5,435.00",F TIFFEN BUILDING SERVICES.
Regeneration & Economic Development,Economic Development and Housing,Cap Exp on Grants & Other Financial Assistance (REFCUS),918401,Capital grants,05-Apr-2016,3110450-RES-04-2016-032,"2,100.00",REDACTED - PAYMENT TO INDIVIDUAL
Regeneration & Economic Development,Economic Development and Housing,Supplies and Services,384899,Miscellaneous Expenses,05-Apr-2016,3110454-RED-04-2016-029,"3,072.00",HERITAGE CRAFT ALLIANCE LTD.
Regeneration & Economic Development,Economic Development and Housing,Cap Exp on Grants & Other Financial Assistance (REFCUS),918004,Contributions to other bodies,05-Apr-2016,3110456-014075,685.99,HODGSONS COACH OPERATORS LTD.
Regeneration & Economic Development,Economic Development and Housing,Cap Exp on Grants & Other Financial Assistance (REFCUS),918401,Capital grants,05-Apr-2016,3110486-RED-04-2016-004,"1,900.00",JON BEST ELECTRICAL SERVICES.
Regeneration & Economic Development,Economic Development and Housing,Cap Exp on Grants & Other Financial Assistance (REFCUS),918401,Capital grants,05-Apr-2016,3110505-RED-03-2016-291,"8,421.00",LEAF BARK & BERRIES LTD.
Regeneration & Economic Development,Economic Development and Housing,Cap Exp on Grants & Other Financial Assistance (REFCUS),918401,Capital grants,05-Apr-2016,3110508-RED-04-2016-018,"3,500.00",LICKETY SPLIT CREAMERY LTD.
Regeneration & Economic Development,Economic Development and Housing,Cap Exp on Grants & Other Financial Assistance (REFCUS),918401,Capital grants,05-Apr-2016,3110512-RED-03-2016-290,"2,765.00",LOCAL TRANSPORT LTD.
Regeneration & Economic Development,Economic Development and Housing,Cap Exp on Grants & Other Financial Assistance (REFCUS),918401,Capital grants,05-Apr-2016,3110549-RED-04-2016-006,576.94,REDACTED - PAYMENT TO INDIVIDUAL
Regeneration & Economic Development,Economic Development and Housing,Cap Exp on Grants & Other Financial Assistance (REFCUS),918401,Capital grants,05-Apr-2016,3110565-RED-03-2016-260,"3,972.00",NEIL BELL PLUMBERS HEATING & GAS INS.
Regeneration & Economic Development,Economic Development and Housing,Supplies and Services,338066,Services,05-Apr-2016,3110566-929,"75,863.90",NEPRO LTD.
Regeneration & Economic Development,RED Departmental Support Costs,Supplies and Services,384199,Miscellaneous Expenses,05-Apr-2016,3110579-RED-04-2016-017,"2,004.00",NORTHERN GAS NETWORKS LTD.
Regeneration & Economic Development,Transport and Contracted Services,Third Party Payments,430100,Rendered by Private Contractors,05-Apr-2016,3110609-5612,"5,385.93",QW SECURITY LTD.
Regeneration & Economic Development,Economic Development and Housing,Supplies and Services,324500,Provisions,05-Apr-2016,3110611-0000002909,"1,379.00",RAMSIDE EVENT CATERING.
Regeneration & Economic Development,Economic Development and Housing,Cap Exp on Grants & Other Financial Assistance (REFCUS),918401,Capital grants,05-Apr-2016,3110651-RED-04-2016-014,"3,927.00",REDACTED - PAYMENT TO INDIVIDUAL
Regeneration & Economic Development,Transport and Contracted Services,Supplies and Services,384899,Miscellaneous Expenses,05-Apr-2016,3110660-RED-04-2016-003,912.00,SPENNYMOOR TOWN COUNCIL.
Regeneration & Economic Development,Economic Development and Housing,Cap Exp on Grants & Other Financial Assistance (REFCUS),918401,Capital grants,05-Apr-2016,3110689-RED-03-2016-292,"9,486.00",THE HARBOUR PIZZA.
Regeneration & Economic Development,Economic Development and Housing,Supplies and Services,384899,Miscellaneous Expenses,05-Apr-2016,3110692-RED-04-2016-010,"1,014.00",THE WARM AGE WOOD COMPANY CIC.
Regeneration & Economic Development,Economic Development and Housing,Cap Exp on Grants & Other Financial Assistance (REFCUS),918004,Contributions to other bodies,05-Apr-2016,3110693-RED-04-2016-009,"10,000.00",THE WITHAM.
Regeneration & Economic Development,Economic Development and Housing,Cap Exp on Grants & Other Financial Assistance (REFCUS),918004,Contributions to other bodies,05-Apr-2016,3110739-RED-04-2016-011,"2,393.00",WINSTON PAROCHIAL CHURCH COUNCIL.
Resources,Financial Services,Supplies and Services,384199,Miscellaneous Expenses,05-Apr-2016,3110249-8020931015,649.84,ADVANCED PAYMENT SOLUTIONS LTD.
Resources,Financial Services,Supplies and Services,384199,Miscellaneous Expenses,05-Apr-2016,3110249-8020931215,870.00,ADVANCED PAYMENT SOLUTIONS LTD.
Resources,I.C.T. Services,Debtors,930167,Debtor-Telephone Holding Account,05-Apr-2016,3110297-VP16860270I10101,"7,856.90",BRITISH TELECOMMUNICATIONS PLC.
Resources,Legal & Democratic Services,Supplies and Services,338042,Services,05-Apr-2016,3110366-RES-04-2016-001,720.00,DERE STREET BARRISTERS.
Resources,Legal & Democratic Services,Supplies and Services,338042,Services,05-Apr-2016,3110551-215044,900.00,MR JUSTIN GRAY.
Children and Adult Services,Childrens Services,Supplies and Services,384302,Miscellaneous Expenses,06-Apr-2016,3111276-SUMMER2016,500.00,PELTON FELL COMMUNITY PARTNERSHIP.
Children and Adult Services,Head of Adults,Supplies and Services,384199,Miscellaneous Expenses,06-Apr-2016,303092-DEVELOPMENTDAY7/3/16,638.59,CLB
Children and Adult Services,Education,Construction Work,908105,Construction work,06-Apr-2016,3111098-INS1-HARELAWSCHOOL,"46,662.82",JOHN WADE (HAULAGE) LTD.
Children and Adult Services,Childrens Services,Supplies and Services,338042,Services,06-Apr-2016,3110929-321237/INVHMU74,600.00,DERE STREET BARRISTERS.
Children and Adult Services,Childrens Services,Transport,235073,Public Transport,06-Apr-2016,3111097-CAS-04-2016-022,"1,696.34",REDACTED - PAYMENT TO INDIVIDUAL
Children and Adult Services,Commissioning inc Supporting People,Third Party Payments,470111,Purchase of Care,06-Apr-2016,3111130-RINVTP/00393450,"4,128.14",LEONARD CHESHIRE DISABILITY.
Children and Adult Services,Education,Premises,135005,Water Services,06-Apr-2016,3111245-260100310040098,"5,965.35",NORTHUMBRIAN WATER LTD.
Children and Adult Services,Childrens Services,Supplies and Services,364310,Grants to Voluntary Organisations,06-Apr-2016,3111385-CAS-04-2016-016,541.32,REDACTED - PAYMENT TO INDIVIDUAL
Children and Adult Services,Education,Transport,230008,Contract Hire,06-Apr-2016,3111473-WESTLEA240316,904.68,WESTLEA TAXIS.
Children and Adult Services,Education,Transport,230007,Contract Hire,06-Apr-2016,3110772-SAS0316ESH/2,522.00,AIRPORT CARS DURHAM
Children and Adult Services,Planning & Service Strategy,Supplies and Services,338091,Services,06-Apr-2016,3111451-15385987-001,750.00,UNIVERSITY OF TEESSIDE.
Children and Adult Services,Childrens Services,Third Party Payments,425041,Rendered by Voluntary Organisations,06-Apr-2016,3110794-ARC1516-064,"18,000.00",REDACTED - PAYMENT TO INDIVIDUAL
Children and Adult Services,Education,Transport,230006,Contract Hire,06-Apr-2016,3111408-DCC/2015/80,"1,272.00",TAYLOR`S TAXIS.
Children and Adult Services,Education,Transport,230008,Contract Hire,06-Apr-2016,3111469-OAKS/MAR/16,"2,700.00",WEARDALE MOTOR SERVICES LTD.
Children and Adult Services,Education,Transport,230007,Contract Hire,06-Apr-2016,3110772-SAS0316ESH,810.00,AIRPORT CARS DURHAM
Children and Adult Services,Childrens Services,Third Party Payments,425040,Rendered by Voluntary Organisations,06-Apr-2016,3110991-0000057633,"3,277.14",FIVE RIVERS CHILD CARE LTD.
Children and Adult Services,Childrens Services,Third Party Payments,425040,Rendered by Voluntary Organisations,06-Apr-2016,3110991-0000058801,"3,277.14",FIVE RIVERS CHILD CARE LTD.
Children and Adult Services,Education,Supplies and Services,304259,Equipment and Materials,06-Apr-2016,3111041-OP/0060508,690.00,HCL SAFETY LTD.
Children and Adult Services,Public Health,Third Party Payments,460802,Contract Payments,06-Apr-2016,3111173-0000117482,568.00,MEDWAY NHS FOUNDATION TRUST.
Children and Adult Services,Childrens Services,Supplies and Services,304259,Equipment and Materials,06-Apr-2016,3111253-CN19196017,792.96,OCS GROUP UK LTD T/A CANNON HYGIENE.
Children and Adult Services,Education,Transport,230008,Contract Hire,06-Apr-2016,3110809-10MARCH16,"1,537.38",BEELINE PRIVATE HIRE.
Children and Adult Services,Education,Supplies and Services,338035,Services,06-Apr-2016,3110878-804032022,"1,712.00",CITY & GUILDS OF LONDON INSTITUTE.
Children and Adult Services,Education,Transport,230008,Contract Hire,06-Apr-2016,3111066-IR1603004,"1,842.97",I & R EXECUTIVE TRAVEL.
Children and Adult Services,Education,Transport,230008,Contract Hire,06-Apr-2016,3111066-IR1603006,720.00,I & R EXECUTIVE TRAVEL.
Children and Adult Services,Childrens Services,Premises,145037,Cleaning and Domestic Supplies,06-Apr-2016,3111133-SI041211,"1,245.00",LEWIS`S MEDICAL SUPPLIES.
Children and Adult Services,Education,Transport,230008,Contract Hire,06-Apr-2016,3111172-MCD44601,"1,088.00",MCDONALD TRAVEL.
Children and Adult Services,Education,Transport,230008,Contract Hire,06-Apr-2016,3111204-SV/03/16,537.20,MR J AGAR T/A PARK TAXIS.
Children and Adult Services,Public Health,Third Party Payments,460802,Contract Payments,06-Apr-2016,3111464-15347912,540.75,WARRINGTON & HALTON NHS FT.
Children and Adult Services,Education,Transport,230008,Contract Hire,06-Apr-2016,3110763-14/S015,810.00,ABLE NOVAK TAXIS.
Children and Adult Services,Education,Supplies and Services,312011,Newspapers Books and Periodicals,06-Apr-2016,3110797-4960629,810.16,ASKEWS & HOLTS LIBRARY SERVICES LTD.
Children and Adult Services,Education,Transport,230008,Contract Hire,06-Apr-2016,3110809-MARCH16,"1,195.61",BEELINE PRIVATE HIRE.
Children and Adult Services,Childrens Services,Supplies and Services,308013,Furniture,06-Apr-2016,3111147-3743762,988.80,LONDON GENERAL SALES LTD.
Children and Adult Services,Education,Transport,230008,Contract Hire,06-Apr-2016,3111172-MCD6602,"1,892.00",MCDONALD TRAVEL.
Children and Adult Services,Education,Transport,230006,Contract Hire,06-Apr-2016,3111172-MCD6603,583.00,MCDONALD TRAVEL.
Children and Adult Services,Education,Transport,230007,Contract Hire,06-Apr-2016,3111177-MARCHE5,"1,320.00",MICHAEL A BODDY T/A MBS TAXIS.
Children and Adult Services,Education,Transport,230008,Contract Hire,06-Apr-2016,3111466-0001139,"2,102.22",WATSON OF SPENNYMOOR.
Children and Adult Services,Education,Supplies and Services,384199,Miscellaneous Expenses,06-Apr-2016,303154-DANCE01,"1,000.00",PETER WATKINSON.
Children and Adult Services,Education,Transport,230008,Contract Hire,06-Apr-2016,3110761-M22/SH,"1,120.00",AABAT TAXIS.
Children and Adult Services,Education,Transport,230008,Contract Hire,06-Apr-2016,3110761-M23/SA,"1,852.80",AABAT TAXIS.
Children and Adult Services,Education,Transport,230008,Contract Hire,06-Apr-2016,3110761-M25/SC,"1,128.00",AABAT TAXIS.
Children and Adult Services,Education,Transport,230008,Contract Hire,06-Apr-2016,3110761-M26/SD,"1,620.00",AABAT TAXIS.
Children and Adult Services,Education,Transport,230007,Contract Hire,06-Apr-2016,3110761-M29/SL,792.00,AABAT TAXIS.
Children and Adult Services,Education,Transport,230008,Contract Hire,06-Apr-2016,3111270-DCC109,"1,440.00",PB PRIVATE HIRE.
Children and Adult Services,Education,Transport,230008,Contract Hire,06-Apr-2016,3111270-DCC110,765.00,PB PRIVATE HIRE.
Children and Adult Services,Education,Transport,230008,Contract Hire,06-Apr-2016,3111270-DCC111,765.00,PB PRIVATE HIRE.
Children and Adult Services,Education,Transport,230008,Contract Hire,06-Apr-2016,3111270-DCC112,702.00,PB PRIVATE HIRE.
Children and Adult Services,Education,Transport,230009,Contract Hire,06-Apr-2016,3111270-DCC114,810.00,PB PRIVATE HIRE.
Children and Adult Services,Childrens Services,Supplies and Services,352001,Conference Expenses,06-Apr-2016,3111370-940710,552.00,SOLIHULL APPROACH.
Children and Adult Services,Childrens Services,Third Party Payments,425040,Rendered by Voluntary Organisations,06-Apr-2016,3111397-180090,"2,500.00",SWIIS FOSTER CARE LTD.
Children and Adult Services,Childrens Services,Third Party Payments,425040,Rendered by Voluntary Organisations,06-Apr-2016,3111397-180091,"2,928.50",SWIIS FOSTER CARE LTD.
Children and Adult Services,Childrens Services,Third Party Payments,425040,Rendered by Voluntary Organisations,06-Apr-2016,3111397-180093,"2,607.25",SWIIS FOSTER CARE LTD.
Children and Adult Services,Childrens Services,Third Party Payments,425040,Rendered by Voluntary Organisations,06-Apr-2016,3111397-180094,"2,607.25",SWIIS FOSTER CARE LTD.
Children and Adult Services,Childrens Services,Third Party Payments,425040,Rendered by Voluntary Organisations,06-Apr-2016,3111397-180095,"2,714.25",SWIIS FOSTER CARE LTD.
Children and Adult Services,Childrens Services,Third Party Payments,425040,Rendered by Voluntary Organisations,06-Apr-2016,3111397-180096,"2,607.25",SWIIS FOSTER CARE LTD.
Children and Adult Services,Childrens Services,Third Party Payments,425040,Rendered by Voluntary Organisations,06-Apr-2016,3111397-180097,"3,500.00",SWIIS FOSTER CARE LTD.
Children and Adult Services,Childrens Services,Third Party Payments,425040,Rendered by Voluntary Organisations,06-Apr-2016,3111397-180098,"2,500.00",SWIIS FOSTER CARE LTD.
Children and Adult Services,Childrens Services,Third Party Payments,425040,Rendered by Voluntary Organisations,06-Apr-2016,3111397-180099,819.98,SWIIS FOSTER CARE LTD.
Children and Adult Services,Childrens Services,Third Party Payments,425040,Rendered by Voluntary Organisations,06-Apr-2016,3111397-180100,730.03,SWIIS FOSTER CARE LTD.
Children and Adult Services,Childrens Services,Third Party Payments,425040,Rendered by Voluntary Organisations,06-Apr-2016,3111397-180101,980.00,SWIIS FOSTER CARE LTD.
Children and Adult Services,Planning & Service Strategy,Supplies and Services,338026,Services,06-Apr-2016,3111454-2/2016,"1,067.50",REDACTED - PAYMENT TO INDIVIDUAL
Children and Adult Services,Education,Transport,230009,Contract Hire,06-Apr-2016,3111478-240316,936.00,WIL TRAVEL.
Children and Adult Services,Childrens Services,Supplies and Services,384199,Miscellaneous Expenses,06-Apr-2016,3111480-EDB359,500.00,WINGATE & STATION TOWN FAMILY CENTRE.
Children and Adult Services,Head of Adults,Supplies and Services,338045,Services,06-Apr-2016,303128-922880,"2,100.00",M JOB.
Children and Adult Services,Head of Adults,Supplies and Services,338045,Services,06-Apr-2016,303128-923638,"6,750.00",M JOB.
Children and Adult Services,Education,Transport,230008,Contract Hire,06-Apr-2016,3111038-HT215,960.00,HARRY`S TAXI`S.
Children and Adult Services,Education,Transport,230006,Contract Hire,06-Apr-2016,3111038-HT219,920.00,HARRY`S TAXI`S.
Children and Adult Services,Education,Transport,230008,Contract Hire,06-Apr-2016,3111038-HT220,"1,080.00",HARRY`S TAXI`S.
Children and Adult Services,Education,Transport,230007,Contract Hire,06-Apr-2016,3111038-HT221,"2,350.00",HARRY`S TAXI`S.
Children and Adult Services,Central/Other,Debtors,930133,Debtor IC+ Out of Hours - Home Care,06-Apr-2016,3111052-DOO24,"8,333.33",HOMECARE SUPPORT LTD T/A THE HUMAN SUPPORT GROUP.
Children and Adult Services,Education,Transport,230007,Contract Hire,06-Apr-2016,3111211-TN029,651.24,MR THOMAS G GRIFFITHS T/A TNL TAXIS.
Children and Adult Services,Education,Transport,230008,Contract Hire,06-Apr-2016,3111269-DCC75,"1,016.00",PAUL`S TAXIS..
Children and Adult Services,Education,Transport,230008,Contract Hire,06-Apr-2016,3111269-DCC76,"1,275.00",PAUL`S TAXIS..
Dedicated Schools Grant,Dedicated Schools Grant,Transport,230011,Contract Hire,06-Apr-2016,3111269-DCC79,569.60,PAUL`S TAXIS..
Children and Adult Services,Childrens Services,Supplies and Services,338044,Services,06-Apr-2016,3111273-804LA,"2,369.87",PEAK ASSOCIATES LTD.
Children and Adult Services,Childrens Services,Supplies and Services,384491,Miscellaneous Expenses,06-Apr-2016,3111391-11957,528.00,SUNSHINE DAY NURSERY.
Children and Adult Services,Education,Transport,230007,Contract Hire,06-Apr-2016,3111405-01672,"1,681.20",TALLENTIRES LTD.
Dedicated Schools Grant,Dedicated Schools Grant,Transport,230010,Contract Hire,06-Apr-2016,3111437-18007,770.00,TRAVEL 6.
Children and Adult Services,Education,Transport,230007,Contract Hire,06-Apr-2016,3111477-DC107,"1,080.00",WHITTONSTALL TAXIS SERVICE.
Children and Adult Services,Childrens Services,Construction Work,908105,Construction work,06-Apr-2016,3110758-INS2,690.00,A BUCKLER (HAULAGE) LTD.
Children and Adult Services,Childrens Services,Supplies and Services,338044,Services,06-Apr-2016,3110780-4973,660.00,ALPHA BIOLABORATORIES LTD.
Children and Adult Services,Education,Transport,230008,Contract Hire,06-Apr-2016,3110823-1404,"2,833.22",BOBBY DOVE.
Children and Adult Services,Commissioning inc Supporting People,Supplies and Services,304259,Equipment and Materials,06-Apr-2016,3110933-1271,"1,360.00",DIGITAL HEARING CARE SOLUTIONS LTD.
Children and Adult Services,Education,Supplies and Services,342053,Computers and Communications,06-Apr-2016,3111033-3835,"13,995.00",HANLON COMPUTER SYSTEMS LTD.
Children and Adult Services,Planning & Service Strategy,Supplies and Services,338091,Services,06-Apr-2016,3111075-9644,"1,773.00",IT TRAINING SOLUTIONS LTD.
Children and Adult Services,Education,Transport,230008,Contract Hire,06-Apr-2016,3111078-1632,720.00,J YOUNG T/A VIP TAXIS.
Children and Adult Services,Education,Transport,230008,Contract Hire,06-Apr-2016,3111078-1633,792.00,J YOUNG T/A VIP TAXIS.
Children and Adult Services,Education,Transport,230008,Contract Hire,06-Apr-2016,3111078-1634,646.00,J YOUNG T/A VIP TAXIS.
Children and Adult Services,Education,Transport,230008,Contract Hire,06-Apr-2016,3111078-1636,904.68,J YOUNG T/A VIP TAXIS.
Children and Adult Services,Education,Transport,230008,Contract Hire,06-Apr-2016,3111078-1637,900.00,J YOUNG T/A VIP TAXIS.
Children and Adult Services,Education,Transport,230008,Contract Hire,06-Apr-2016,3111078-1639,768.00,J YOUNG T/A VIP TAXIS.
Children and Adult Services,Education,Transport,230008,Contract Hire,06-Apr-2016,3111078-1640,768.00,J YOUNG T/A VIP TAXIS.
Children and Adult Services,Education,Transport,230007,Contract Hire,06-Apr-2016,3111078-1641,"1,044.00",J YOUNG T/A VIP TAXIS.
Children and Adult Services,Education,Transport,230007,Contract Hire,06-Apr-2016,3111078-1642,576.00,J YOUNG T/A VIP TAXIS.
Children and Adult Services,Education,Transport,230008,Contract Hire,06-Apr-2016,3111078-1643,"1,080.00",J YOUNG T/A VIP TAXIS.
Children and Adult Services,Education,Transport,230008,Contract Hire,06-Apr-2016,3111078-1645,"1,404.00",J YOUNG T/A VIP TAXIS.
Children and Adult Services,Education,Transport,230006,Contract Hire,06-Apr-2016,3111125-1062,"1,940.00",LD TAXIS.
Children and Adult Services,Education,Transport,230007,Contract Hire,06-Apr-2016,3111136-3340,"1,054.50",LINCAB TAXIS.
Children and Adult Services,Education,Transport,230008,Contract Hire,06-Apr-2016,3111146-2530,"1,188.00",LOCAL TRANSPORT LTD.
Children and Adult Services,Education,Construction Work,908105,Construction work,06-Apr-2016,3111176-VAL1,"47,500.00",MGL DEMOLITION LTD.
Children and Adult Services,Education,Transport,230007,Contract Hire,06-Apr-2016,3111178-0334,520.00,MICHAEL TYRES T/A AM PRIVATE HIRE.
Children and Adult Services,Education,Transport,230008,Contract Hire,06-Apr-2016,3111208-1034,743.22,MR PETER YOUNG.
Children and Adult Services,Education,Transport,230007,Contract Hire,06-Apr-2016,3111259-6493,"1,665.00",OVERLANDER LTD.
Children and Adult Services,Education,Transport,230006,Contract Hire,06-Apr-2016,3111403-1317,647.50,TALBOTS TAXIS.
Children and Adult Services,Childrens Services,Supplies and Services,338094,Services,06-Apr-2016,3111416-3635,620.75,THE DURHAM CENTRE LTD.
Children and Adult Services,Education,Transport,230008,Contract Hire,06-Apr-2016,3110808-520,"1,396.80",BEELINE MINI BUSES.
Children and Adult Services,Education,Transport,230008,Contract Hire,06-Apr-2016,3110808-521,"1,281.46",BEELINE MINI BUSES.
Children and Adult Services,Childrens Services,Supplies and Services,384302,Miscellaneous Expenses,06-Apr-2016,3110927-485,"1,100.00",DEL BUONO LTD.
Children and Adult Services,Education,Transport,230008,Contract Hire,06-Apr-2016,3111090-889,"1,219.92",JDS PRIVATE HIRE DURHAM.
Children and Adult Services,Education,Transport,230008,Contract Hire,06-Apr-2016,3111090-890,"1,502.63",JDS PRIVATE HIRE DURHAM.
Children and Adult Services,Education,Transport,230008,Contract Hire,06-Apr-2016,3111090-892,"1,366.97",JDS PRIVATE HIRE DURHAM.
Children and Adult Services,Education,Transport,230008,Contract Hire,06-Apr-2016,3111090-896,"1,314.00",JDS PRIVATE HIRE DURHAM.
Children and Adult Services,Education,Transport,230007,Contract Hire,06-Apr-2016,3111090-897,828.00,JDS PRIVATE HIRE DURHAM.
Children and Adult Services,Education,Transport,230007,Contract Hire,06-Apr-2016,3111090-903,666.00,JDS PRIVATE HIRE DURHAM.
Children and Adult Services,Education,Transport,230007,Contract Hire,06-Apr-2016,3111280-36A,720.00,PETER HOLMES T/A PETERS TAXIS.
Children and Adult Services,Education,Transport,230008,Contract Hire,06-Apr-2016,3111282-516,"1,305.60",PETERLEE EXECUTIVE CARS.
Children and Adult Services,Education,Transport,230008,Contract Hire,06-Apr-2016,3111282-517,"1,404.00",PETERLEE EXECUTIVE CARS.
Children and Adult Services,Education,Transport,230007,Contract Hire,06-Apr-2016,3111299-311,"1,450.98",PREMIER PRIVATE HIRE.
Children and Adult Services,Education,Transport,230008,Contract Hire,06-Apr-2016,3111301-G71,"1,098.00",PRESTYS HACKNEY & PRIVATE HIRE TAXIS.
Children and Adult Services,Education,Transport,230007,Contract Hire,06-Apr-2016,3111311-938,"2,880.00",PYGALL COACH HIRE.
Children and Adult Services,Education,Transport,230007,Contract Hire,06-Apr-2016,3111311-939,"2,250.00",PYGALL COACH HIRE.
Children and Adult Services,Education,Transport,230007,Contract Hire,06-Apr-2016,3111311-940,"5,780.00",PYGALL COACH HIRE.
Children and Adult Services,Education,Transport,230007,Contract Hire,06-Apr-2016,3111311-941,"3,150.00",PYGALL COACH HIRE.
Children and Adult Services,Education,Transport,230007,Contract Hire,06-Apr-2016,3111311-942,"2,403.00",PYGALL COACH HIRE.
Children and Adult Services,Education,Transport,230007,Contract Hire,06-Apr-2016,3111311-943,"2,250.00",PYGALL COACH HIRE.
Children and Adult Services,Education,Transport,230007,Contract Hire,06-Apr-2016,3111320-39A,"1,157.94",RAYNERS COACHES.
Children and Adult Services,Education,Transport,230007,Contract Hire,06-Apr-2016,3111320-39B,"1,962.54",RAYNERS COACHES.
Children and Adult Services,Education,Transport,230007,Contract Hire,06-Apr-2016,3111320-39C,"5,427.54",RAYNERS COACHES.
Children and Adult Services,Education,Transport,230008,Contract Hire,06-Apr-2016,3111331-503,936.00,ROAD RUNNERS (NE) LTD.
Children and Adult Services,Education,Transport,230008,Contract Hire,06-Apr-2016,3111331-504,"1,870.00",ROAD RUNNERS (NE) LTD.
Children and Adult Services,Education,Transport,230008,Contract Hire,06-Apr-2016,3111331-506,918.00,ROAD RUNNERS (NE) LTD.
Children and Adult Services,Education,Transport,230008,Contract Hire,06-Apr-2016,3111331-507,"1,780.00",ROAD RUNNERS (NE) LTD.
Children and Adult Services,Education,Transport,230008,Contract Hire,06-Apr-2016,3111331-509,"1,904.00",ROAD RUNNERS (NE) LTD.
Children and Adult Services,Education,Transport,230008,Contract Hire,06-Apr-2016,3111336-028,"1,445.00",RONS TAXI (CHESTER LE ST).
Children and Adult Services,Childrens Services,Supplies and Services,384871,Miscellaneous Expenses,06-Apr-2016,3111349-900,650.00,SCHOOL & FAMILY NURTURING T/A TRAINING LADDER LTD.
Children and Adult Services,Planning & Service Strategy,Supplies and Services,338026,Services,06-Apr-2016,3111398-015,691.25,SWIPHT SOCIAL WORK CONSULTANCY.
Children and Adult Services,Planning & Service Strategy,Supplies and Services,338026,Services,06-Apr-2016,3111398-017,"1,942.50",SWIPHT SOCIAL WORK CONSULTANCY.
Children and Adult Services,Childrens Services,Supplies and Services,364352,Grants to Voluntary Organisations,06-Apr-2016,303091-813,757.90,CITY OF SUNDERLAND YMCA LTD.
Children and Adult Services,Childrens Services,Supplies and Services,364352,Grants to Voluntary Organisations,06-Apr-2016,303091-814,700.00,CITY OF SUNDERLAND YMCA LTD.
Children and Adult Services,Education,Transport,230008,Contract Hire,06-Apr-2016,3110915-75,"1,059.97",D CROOK T/A CK TAXIS.
Children and Adult Services,Education,Transport,230006,Contract Hire,06-Apr-2016,3111266-07,"2,232.00",PAUL ROSE T/A PAUL`S TAXIS.
Children and Adult Services,Education,Transport,230007,Contract Hire,06-Apr-2016,303095-23,935.00,DAVID WILKINSON...
Children and Adult Services,Education,Transport,230006,Contract Hire,06-Apr-2016,303112-36,645.20,GILLY`S TAXIS.
Neighbourhood Services,Direct Services,Construction Work,908105,Construction work,06-Apr-2016,3110758,"2,100.00",A BUCKLER (HAULAGE) LTD.
Neighbourhood Services,Technical Services,Stock,926900,Stock in hand-Inventory system,06-Apr-2016,303121-105244,"6,536.00",MALLATITE LTD.
Neighbourhood Services,Culture & Sport,Supplies and Services,384700,Miscellaneous Expenses,06-Apr-2016,303153-03-2016-055,500.00,PAUL LYSAGHT.
Neighbourhood Services,Culture & Sport,Supplies and Services,384700,Miscellaneous Expenses,06-Apr-2016,303155-03-2016-064,"3,000.00",ROCKING HORSES REHEARSAL ROOMS.
Neighbourhood Services,Projects and Business services,Third Party Payments,430103,Rendered by Private Contractors,06-Apr-2016,303156-03-2016-088,575.10,RSPCA.
Neighbourhood Services,Direct Services,Premises,108301,Service Repairs and Maintenance,06-Apr-2016,3110766-32062202-61,859.00,ADT FIRE & SECURITY PLC.
Neighbourhood Services,Technical Services,Supplies and Services,304221,Equipment and Materials,06-Apr-2016,3110769-22831303,"1,173.28",AGGREGATE INDUSTRIES UK LTD.
Neighbourhood Services,Technical Services,Supplies and Services,304221,Equipment and Materials,06-Apr-2016,3110769-22831399,"1,562.07",AGGREGATE INDUSTRIES UK LTD.
Neighbourhood Services,Technical Services,Supplies and Services,304221,Equipment and Materials,06-Apr-2016,3110769-22831403,"3,764.51",AGGREGATE INDUSTRIES UK LTD.
Neighbourhood Services,Technical Services,Stock,926900,Stock in hand-Inventory system,06-Apr-2016,3110795-926755566,"1,001.80",ARCO LTD.
Neighbourhood Services,Projects and Business services,Third Party Payments,430103,Rendered by Private Contractors,06-Apr-2016,3110833,584.16,BRITISH HEART FOUNDATION.
Neighbourhood Services,Culture & Sport,Supplies and Services,324001,Provisions,06-Apr-2016,3110857-842372046,"4,760.10",CARLSBERG UK LTD.
Neighbourhood Services,Direct Services,Third Party Payments,430100,Rendered by Private Contractors,06-Apr-2016,3110863-756,924.68,CATHEDRAL LOCK & SAFE SERVICES LTD.
Neighbourhood Services,Direct Services,Third Party Payments,430100,Rendered by Private Contractors,06-Apr-2016,3110863-781,"3,466.49",CATHEDRAL LOCK & SAFE SERVICES LTD.
Neighbourhood Services,Culture & Sport,Premises,120037,Energy Costs,06-Apr-2016,3110867-6016557,724.20,CERTAS ENERGY UK LTD.
Neighbourhood Services,Culture & Sport,Supplies and Services,384199,Miscellaneous Expenses,06-Apr-2016,3110869-RBF08JL,800.00,CHAPTERHOUSE THEATRE CO.
Neighbourhood Services,Direct Services,Premises,145009,Cleaning and Domestic Supplies,06-Apr-2016,3110879-CC103213,500.75,CITY CLEAN NORTHERN LTD.
Neighbourhood Services,Culture & Sport,Supplies and Services,384199,Miscellaneous Expenses,06-Apr-2016,3110906-INV-00052,774.88,CRAIG WALTON.
Neighbourhood Services,Technical Services,Third Party Payments,430127,Rendered by Private Contractors,06-Apr-2016,3110913-19,675.50,D & L HOPPS.
Neighbourhood Services,Projects and Business services,Third Party Payments,430103,Rendered by Private Contractors,06-Apr-2016,3110957,982.60,EAST DURHAM PARTNERSHIP LTD.
Neighbourhood Services,Culture & Sport,Supplies and Services,338047,Services,06-Apr-2016,3110964-EM160403,679.82,ELEANOR MCEVOY.
Neighbourhood Services,Technical Services,Stock,926900,Stock in hand-Inventory system,06-Apr-2016,3110975-18SI/198904,519.68,ENCON INSULATION LTD.
Neighbourhood Services,Culture & Sport,Construction Work,908105,Construction work,06-Apr-2016,3110978-133470,"367,641.94",ESH CONSTRUCTION LTD FORMERLY LUMSDEN & CARROLL CONSTRUCTION LTD.
Neighbourhood Services,Direct Services,Third Party Payments,430100,Rendered by Private Contractors,06-Apr-2016,3111010-SI30786,"3,262.50",GEOFFREY ROBINSON LTD.
Neighbourhood Services,Technical Services,Supplies and Services,304221,Equipment and Materials,06-Apr-2016,3111019-33439,640.00,GRAB & DELIVER LTD.
Neighbourhood Services,Technical Services,Stock,926900,Stock in hand-Inventory system,06-Apr-2016,3111023-06/585005,905.14,GREENHAM TRADING LTD.
Neighbourhood Services,Technical Services,Stock,926900,Stock in hand-Inventory system,06-Apr-2016,3111023-06/587954,532.59,GREENHAM TRADING LTD.
Neighbourhood Services,Technical Services,Stock,926900,Stock in hand-Inventory system,06-Apr-2016,3111023-06/592731,"1,331.32",GREENHAM TRADING LTD.
Neighbourhood Services,Technical Services,Third Party Payments,430127,Rendered by Private Contractors,06-Apr-2016,3111067-2263,619.50,IAN C LIDDLE.
Neighbourhood Services,Direct Services,Supplies and Services,304221,Equipment and Materials,06-Apr-2016,3111102-BAI259933,"2,570.40",JT DOVE LTD.
Neighbourhood Services,Technical Services,Supplies and Services,304221,Equipment and Materials,06-Apr-2016,3111102-CNI24194/D,"3,243.80",JT DOVE LTD.
Neighbourhood Services,Technical Services,Supplies and Services,304221,Equipment and Materials,06-Apr-2016,3111102-CNI24195/D,"2,617.04",JT DOVE LTD.
Neighbourhood Services,Technical Services,Supplies and Services,304221,Equipment and Materials,06-Apr-2016,3111102-CNI24206/D,"1,195.00",JT DOVE LTD.
Neighbourhood Services,Direct Services,Supplies and Services,304221,Equipment and Materials,06-Apr-2016,3111133-SI041240,"1,120.00",LEWIS`S MEDICAL SUPPLIES.
Neighbourhood Services,Technical Services,Supplies and Services,304221,Equipment and Materials,06-Apr-2016,3111163-ZDB0025138,"11,075.22",MARSHALLS MONO LTD.
Neighbourhood Services,Technical Services,Supplies and Services,304221,Equipment and Materials,06-Apr-2016,3111170-37963,717.84,MAY GURNEY LTD.
Neighbourhood Services,Culture & Sport,Vehicles Equipment Furniture and Fittings,912521,Purchase-furniture and fittings,06-Apr-2016,3111234-12499148,655.31,NISBETS PLC.
Neighbourhood Services,Direct Services,Supplies and Services,304259,Equipment and Materials,06-Apr-2016,3111242-1864012,988.00,NORTHERN TOOLS & ACCESSORIES.
Neighbourhood Services,Direct Services,Supplies and Services,384199,Miscellaneous Expenses,06-Apr-2016,3111246-419,525.00,NOUVEAU FITNESS CIC.
Neighbourhood Services,Technical Services,Stock,926900,Stock in hand-Inventory system,06-Apr-2016,3111262-XL165019,865.75,PARK ELECTRICAL DISTRIBUTORS LTD.
Neighbourhood Services,Technical Services,Stock,926900,Stock in hand-Inventory system,06-Apr-2016,3111262-XL166643,"1,170.00",PARK ELECTRICAL DISTRIBUTORS LTD.
Neighbourhood Services,Technical Services,Stock,926900,Stock in hand-Inventory system,06-Apr-2016,3111262-XL166675,"1,492.70",PARK ELECTRICAL DISTRIBUTORS LTD.
Neighbourhood Services,Direct Services,Supplies and Services,304221,Equipment and Materials,06-Apr-2016,3111262-XL166684,527.12,PARK ELECTRICAL DISTRIBUTORS LTD.
Neighbourhood Services,Culture & Sport,Supplies and Services,338047,Services,06-Apr-2016,3111265-CINDERELLA15/16,"3,430.00",PAUL LAVELLE T/A MASCOT MINIATURES.
Neighbourhood Services,Direct Services,Premises,125009,Rents,06-Apr-2016,3111283-16021,"15,690.00",PETHERICKS LTD.
Neighbourhood Services,Direct Services,Supplies and Services,304999,Equipment and Materials,06-Apr-2016,3111287-9235,978.00,PIXL ID LTD.
Neighbourhood Services,Technical Services,Third Party Payments,430100,Rendered by Private Contractors,06-Apr-2016,3111300-138651,"34,575.63",PREMIER TRAFFIC MANAGEMENT LTD.
Neighbourhood Services,Culture & Sport,Supplies and Services,332029,Printing Stationery and Gen Off Exps,06-Apr-2016,3111318-0000052252,500.00,RATCLIFFE MEDIA LTD T/A ADVERTA.
Neighbourhood Services,Projects and Business services,Supplies and Services,338066,Services,06-Apr-2016,3111322-3748,"1,700.00",RESOURCE FUTURES LTD.
Neighbourhood Services,Culture & Sport,Supplies and Services,304259,Equipment and Materials,06-Apr-2016,3111330-SI333526-1,642.00,RLSS UK ENTERPRISES LTD T/A LIFESAVERS DIRECT.
Neighbourhood Services,Direct Services,Supplies and Services,384167,Miscellaneous Expenses,06-Apr-2016,3111358-WWB1091978,625.30,SGS UNITED KINGDOM LTD.
Neighbourhood Services,Direct Services,Supplies and Services,304221,Equipment and Materials,06-Apr-2016,3111382-R050014169,789.94,STANNAH LIFT SERVICE LTD.
Neighbourhood Services,Technical Services,Supplies and Services,304221,Equipment and Materials,06-Apr-2016,3111387-080182,"1,761.20",STONEGRAVE AGGREGATES LTD.
Neighbourhood Services,Technical Services,Stock,926900,Stock in hand-Inventory system,06-Apr-2016,3111396-126,793.06,SW DIRECTIONAL DRILLING LTD T/A TEESSIDE INDUSTRIAL SUPPLIES.
Neighbourhood Services,Technical Services,Stock,926900,Stock in hand-Inventory system,06-Apr-2016,3111420-N/IN167169,682.30,THOMAS OWEN & SONS (NEWCASTLE) LTD.
Neighbourhood Services,Technical Services,Stock,926900,Stock in hand-Inventory system,06-Apr-2016,3111425-14/03/2016,"1,616.00",TOFCO LTD.
Neighbourhood Services,Culture & Sport,Premises,106080,Centrally Controlled Rep and Maint,06-Apr-2016,3111445-795129,800.00,TYCO FIRE & INTEGRATED SOLUTIONS (UK) LTD.
Neighbourhood Services,Culture & Sport,Supplies and Services,338047,Services,06-Apr-2016,3111448-22314079115-1,"1,110.84",UNIVERSAL PICTURES INTERNATIONAL UK & EIRE LTD.
Neighbourhood Services,Culture & Sport,Supplies and Services,304259,Equipment and Materials,06-Apr-2016,3111453-IN00009109,675.83,VANGUARD DOWSON LTD.
Neighbourhood Services,Technical Services,Third Party Payments,430100,Rendered by Private Contractors,06-Apr-2016,3111470-201650074,"1,514.80",WEMO-TEC UK LTD.
Neighbourhood Services,Technical Services,Third Party Payments,430100,Rendered by Private Contractors,06-Apr-2016,3111470-201650075,"1,514.80",WEMO-TEC UK LTD.
Neighbourhood Services,Direct Services,Supplies and Services,304221,Equipment and Materials,06-Apr-2016,3111483-30189173,651.00,WOLSELEY UK LTD.
Neighbourhood Services,Technical Services,Stock,926900,Stock in hand-Inventory system,06-Apr-2016,3111483-30682762,"1,302.47",WOLSELEY UK LTD.
Regeneration & Economic Development,Economic Development and Housing,Supplies and Services,304337,Equipment and Materials,06-Apr-2016,3110762-253412E,681.42,ABACUS CARDS LTD.
Regeneration & Economic Development,Economic Development and Housing,Supplies and Services,342053,Computers and Communications,06-Apr-2016,3110785-9932442,750.00,ANCHOR COMPUTER SYSTEMS LTD.
Regeneration & Economic Development,Transport and Contracted Services,Third Party Payments,430109,Rendered by Private Contractors,06-Apr-2016,3110849-108779,717.00,CA TRAFFIC LTD.
Regeneration & Economic Development,Economic Development and Housing,Cap Exp on Grants & Other Financial Assistance (REFCUS),918401,Capital grants,06-Apr-2016,3110882-RED-04-2016-033,"25,513.60",CLEARWATER DEVELOPMENTS LTD.
Regeneration & Economic Development,Economic Development and Housing,Supplies and Services,384899,Miscellaneous Expenses,06-Apr-2016,3110944-RED-04-2016-016,762.00,DURHAM CHRISTIAN PARTNERSHIP.
Regeneration & Economic Development,Economic Development and Housing,Supplies and Services,336005,Advertising,06-Apr-2016,3110950-292699,"1,000.00",DURHAM UNIVERSITY.
Regeneration & Economic Development,Spatial Policy Planning Assets & Environment,Supplies and Services,384700,Miscellaneous Expenses,06-Apr-2016,3110984-RED-04-2016-044,"1,790.25",REDACTED - PAYMENT TO INDIVIDUAL
Regeneration & Economic Development,Economic Development and Housing,Supplies and Services,384540,Miscellaneous Expenses,06-Apr-2016,3111103-0016/00297,"1,285.50",JUDE IRWIN T/A WORD DOCTOR.
Regeneration & Economic Development,Economic Development and Housing,Cap Exp on Grants & Other Financial Assistance (REFCUS),918501,Exp assets not owned by authority,06-Apr-2016,3111106-RED-04-2016-037,"8,996.64",K HARRISON (BUILDER) NE LTD.
Regeneration & Economic Development,Spatial Policy Planning Assets & Environment,Supplies and Services,384700,Miscellaneous Expenses,06-Apr-2016,3111171-BURSARY2MAR16,577.80,REDACTED - PAYMENT TO INDIVIDUAL
Regeneration & Economic Development,Spatial Policy Planning Assets & Environment,Supplies and Services,384700,Miscellaneous Expenses,06-Apr-2016,3111194-RED-04-2016-045,"2,829.30",MORTHAM ESTATES (TRUSTEES) LTD.
Regeneration & Economic Development,Spatial Policy Planning Assets & Environment,Supplies and Services,384700,Miscellaneous Expenses,06-Apr-2016,3111201-RED-04-2016-040,"1,849.20",REDACTED - PAYMENT TO INDIVIDUAL
Regeneration & Economic Development,Spatial Policy Planning Assets & Environment,Supplies and Services,384700,Miscellaneous Expenses,06-Apr-2016,3111205-RED-04-2016-039,717.00,REDACTED - PAYMENT TO INDIVIDUAL
Regeneration & Economic Development,Spatial Policy Planning Assets & Environment,Supplies and Services,384700,Miscellaneous Expenses,06-Apr-2016,3111207-RED-04-2016-046,"2,946.20",REDACTED - PAYMENT TO INDIVIDUAL
Regeneration & Economic Development,Spatial Policy Planning Assets & Environment,Supplies and Services,384700,Miscellaneous Expenses,06-Apr-2016,3111209-RED-04-2016-041,533.40,REDACTED - PAYMENT TO INDIVIDUAL
Regeneration & Economic Development,Economic Development and Housing,Fees,901002,Professional fees,06-Apr-2016,3111229-7527,"1,800.00",NEWCASTLE GATESHEAD INITIATIVE.
Regeneration & Economic Development,Transport and Contracted Services,Third Party Payments,430100,Rendered by Private Contractors,06-Apr-2016,3111249-037548,"26,370.28",NSL LTD.
Regeneration & Economic Development,Transport and Contracted Services,Third Party Payments,430100,Rendered by Private Contractors,06-Apr-2016,3111249-037550,"1,015.70",NSL LTD.
Regeneration & Economic Development,Transport and Contracted Services,Third Party Payments,430100,Rendered by Private Contractors,06-Apr-2016,3111249-037557,"49,664.66",NSL LTD.
Regeneration & Economic Development,Transport and Contracted Services,Third Party Payments,430100,Rendered by Private Contractors,06-Apr-2016,3111249-037559,"2,968.30",NSL LTD.
Regeneration & Economic Development,Transport and Contracted Services,Third Party Payments,430100,Rendered by Private Contractors,06-Apr-2016,3111249-037560,"6,496.81",NSL LTD.
Regeneration & Economic Development,Transport and Contracted Services,Third Party Payments,430100,Rendered by Private Contractors,06-Apr-2016,3111249-037561,"15,944.07",NSL LTD.
Regeneration & Economic Development,Transport and Contracted Services,Third Party Payments,430100,Rendered by Private Contractors,06-Apr-2016,3111249-037706,"1,064.53",NSL LTD.
Regeneration & Economic Development,Transport and Contracted Services,Third Party Payments,430100,Rendered by Private Contractors,06-Apr-2016,3111249-037707,"9,279.32",NSL LTD.
Regeneration & Economic Development,Transport and Contracted Services,Third Party Payments,430100,Rendered by Private Contractors,06-Apr-2016,3111249-037708,"8,149.24",NSL LTD.
Regeneration & Economic Development,Economic Development and Housing,Supplies and Services,384700,Miscellaneous Expenses,06-Apr-2016,3111271-RED-04-2016-034,"2,000.00",PB SKIP HIRE.
Regeneration & Economic Development,Economic Development and Housing,Supplies and Services,338035,Services,06-Apr-2016,3111278-PEO-02550-Y9T8X,"1,060.00",PEOPLE 1ST TRAINING COMPANY.
Regeneration & Economic Development,Spatial Policy Planning Assets & Environment,Supplies and Services,384700,Miscellaneous Expenses,06-Apr-2016,3111324-RED-04-2016-042,567.00,REDACTED - PAYMENT TO INDIVIDUAL
Regeneration & Economic Development,Economic Development and Housing,Supplies and Services,312010,Newspapers Books and Periodicals,06-Apr-2016,3111332-SI-477,"1,200.00",ROAM LEAFLET DISTRIBUTION.
Regeneration & Economic Development,Spatial Policy Planning Assets & Environment,Supplies and Services,384700,Miscellaneous Expenses,06-Apr-2016,3111365-BURSARY2MAR16,506.15,REDACTED - PAYMENT TO INDIVIDUAL
Regeneration & Economic Development,Economic Development and Housing,Cap Exp on Grants & Other Financial Assistance (REFCUS),918004,Contributions to other bodies,06-Apr-2016,3111419-RED-04-2016-030,"27,725.00",THE WITHAM.
Regeneration & Economic Development,Economic Development and Housing,Construction Work,908105,Construction work,06-Apr-2016,3111421-INS2,"2,034.00",THOMPSONS OF PRUDHOE LTD.
Regeneration & Economic Development,Transport and Contracted Services,Third Party Payments,430106,Rendered by Private Contractors,06-Apr-2016,3111427-PPT3308/MAR2016,"2,377.51",TONYS TAXIS (A BIRCH).
Resources,Financial Services,Supplies and Services,384199,Miscellaneous Expenses,06-Apr-2016,3110767-8020931115,"2,599.35",ADVANCED PAYMENT SOLUTIONS LTD.
Resources,I.C.T. Services,Supplies and Services,332029,Printing Stationery and Gen Off Exps,06-Apr-2016,3110770-223988,"1,325.00",AGNE LTD T/A ALPHAGRAPHICS.
Resources,I.C.T. Services,Vehicles Equipment Furniture and Fittings,912701,Computer equipment,06-Apr-2016,3110928-7402275951,"101,866.00",DELL COMPUTER CORPORATION LTD.
Resources,Legal & Democratic Services,Supplies and Services,338042,Services,06-Apr-2016,3110929-316423/INVJB248,"2,160.00",DERE STREET BARRISTERS.
Resources,Legal & Democratic Services,Supplies and Services,338042,Services,06-Apr-2016,3110929-316793/INVSW310,"4,850.00",DERE STREET BARRISTERS.
Resources,Legal & Democratic Services,Supplies and Services,338042,Services,06-Apr-2016,3110929-318184/INVSPA96,"2,550.00",DERE STREET BARRISTERS.
Resources,Legal & Democratic Services,Supplies and Services,338042,Services,06-Apr-2016,3110929-319632/INVMT176,"2,880.00",DERE STREET BARRISTERS.
Resources,Legal & Democratic Services,Supplies and Services,338042,Services,06-Apr-2016,3110929-320841/INVCF29,540.00,DERE STREET BARRISTERS.
Resources,Legal & Democratic Services,Supplies and Services,338042,Services,06-Apr-2016,3110929-320923/INVCF30,550.00,DERE STREET BARRISTERS.
Resources,Legal & Democratic Services,Supplies and Services,338042,Services,06-Apr-2016,3110929-320923/INVMM142,660.00,DERE STREET BARRISTERS.
Resources,Legal & Democratic Services,Supplies and Services,338042,Services,06-Apr-2016,3110929-321064/INVMM143,"1,320.00",DERE STREET BARRISTERS.
Resources,I.C.T. Services,Stock,926900,Stock in hand-Inventory system,06-Apr-2016,3111071-2810137,538.56,INSIGHT DIRECT (UK) LTD.
Resources,I.C.T. Services,Stock,926900,Stock in hand-Inventory system,06-Apr-2016,3111071-2810316,"2,549.25",INSIGHT DIRECT (UK) LTD.
Resources,I.C.T. Services,Stock,926900,Stock in hand-Inventory system,06-Apr-2016,3111071-2810788,600.00,INSIGHT DIRECT (UK) LTD.
Resources,I.C.T. Services,Supplies and Services,338099,Services,06-Apr-2016,3111210-07032016,600.00,REDACTED - PAYMENT TO INDIVIDUAL
Resources,I.C.T. Services,Supplies and Services,342051,Computers and Communications,06-Apr-2016,3111258-1528520,"67,496.83",ORACLE CORPORATION UK LTD.
Resources,I.C.T. Services,Stock,926900,Stock in hand-Inventory system,06-Apr-2016,3111285-OP/I772760,"2,376.64",PHOENIX SOFTWARE LTD.
Resources,Corporate Finance,Supplies and Services,308011,Furniture,06-Apr-2016,3111296-INV0317703,536.41,POSTURITE (UK) LTD.
Resources,I.C.T. Services,Debtors,930174,MFD - Paper Holdings,06-Apr-2016,3111298-7999790,860.00,PREMIER PAPER GROUP LTD.
Resources,I.C.T. Services,Supplies and Services,332029,Printing Stationery and Gen Off Exps,06-Apr-2016,3111315-13467,"1,387.50",RADECAL SIGNS GRAPHICS & ADVERTISING.
Resources,I.C.T. Services,Supplies and Services,332029,Printing Stationery and Gen Off Exps,06-Apr-2016,3111315-13468,"3,180.00",RADECAL SIGNS GRAPHICS & ADVERTISING.
Resources,I.C.T. Services,Supplies and Services,340001,Postages,06-Apr-2016,3111339-9051763668,"13,665.62",ROYAL MAIL GROUP PLC.
Children and Adult Services,Head of Adults,Supplies and Services,384199,Miscellaneous Expenses,07-Apr-2016,3111758-3140-ACCOUNTFISH033,995.00,PENINSULA BUSINESS SERVICES LTD.
Children and Adult Services,Public Health,Third Party Payments,460802,Contract Payments,07-Apr-2016,3111523-A83021/Q3HC2015,"1,300.00",AUCKLAND MEDICAL GROUP.
Children and Adult Services,Public Health,Third Party Payments,460802,Contract Payments,07-Apr-2016,3111540-A83630/Q3HC2015,700.00,BRANDON LANE SURGERY.
Children and Adult Services,Public Health,Third Party Payments,460802,Contract Payments,07-Apr-2016,3111555-A83038/Q3HC2015,"1,450.00",CEDARS MEDICAL GROUP.
Children and Adult Services,Public Health,Third Party Payments,460802,Contract Payments,07-Apr-2016,3111573-A83027/Q3HC2015,"1,025.00",COXHOE MEDICAL PRACTICE.
Children and Adult Services,Public Health,Third Party Payments,460802,Contract Payments,07-Apr-2016,3111707-A83051/Q3HC2015,"3,250.00",MARLBOROUGH SURGERY.
Children and Adult Services,Public Health,Third Party Payments,460802,Contract Payments,07-Apr-2016,3111712-A83028/Q3HC2015,"2,600.00",MIDDLE CHARE MEDICAL GROUP.
Children and Adult Services,Public Health,Third Party Payments,460802,Contract Payments,07-Apr-2016,3111734-A83020/Q2HC2015,"1,025.00",NORTH HOUSE SURGERY.
Children and Adult Services,Public Health,Third Party Payments,460802,Contract Payments,07-Apr-2016,3111824-A83015/Q2HC2015,500.00,STATION VIEW MEDICAL CENTRE.
Dedicated Schools Grant,Dedicated Schools Grant,Third Party Payments,410037,Rendered by Other Local Authorities,07-Apr-2016,3111643-0040183854,"13,460.00",HARTLEPOOL BOROUGH COUNCIL.
Children and Adult Services,Public Health,Third Party Payments,460802,Contract Payments,07-Apr-2016,3111730-1000047654,"67,844.02",NHS BUSINESS SERVICES AUTHORITY.
Children and Adult Services,Head of Adults,Third Party Payments,479102,Purchase of Care,07-Apr-2016,3111732-0000023507,559.35,NORTH EAST AUTISM SOCIETY.
Children and Adult Services,Head of Adults,Third Party Payments,479102,Purchase of Care,07-Apr-2016,3111732-0000024045,723.65,NORTH EAST AUTISM SOCIETY.
Children and Adult Services,Education,Transfer Payments,510026,School Children,07-Apr-2016,3111855-15032016EM,"1,005.00",TILLY MINTS CHERUBS DAY NURSERY.
Children and Adult Services,Childrens Services,Transfer Payments,515207,Social Services Clients,07-Apr-2016,3111750-22629128,980.00,PARK RETAIL LTD.
Children and Adult Services,Head of Adults,Supplies and Services,338099,Services,07-Apr-2016,3111827-SA076-15,"1,323.47",STRAY AID LTD.
Children and Adult Services,Public Health,Third Party Payments,460802,Contract Payments,07-Apr-2016,3111523-A83021,"1,295.00",AUCKLAND MEDICAL GROUP.
Children and Adult Services,Public Health,Third Party Payments,460802,Contract Payments,07-Apr-2016,3111527-A83046,710.00,BARNARD CASTLE SURGERY.
Children and Adult Services,Public Health,Third Party Payments,460802,Contract Payments,07-Apr-2016,3111529-A83037,"1,285.00",BEWICK CRESCENT SURGERY.
Children and Adult Services,Public Health,Third Party Payments,460802,Contract Payments,07-Apr-2016,3111534-A83025,"1,200.00",BISHOPGATE MEDICAL CENTRE.
Children and Adult Services,Public Health,Third Party Payments,460802,Contract Payments,07-Apr-2016,3111541-A83009,650.00,BRIDGE END SURGERY.
Children and Adult Services,Public Health,Third Party Payments,460802,Contract Payments,07-Apr-2016,3111597-A83075,500.00,DR KV REDDY (DENESIDE MEDICAL CENTRE).
Children and Adult Services,Public Health,Third Party Payments,460802,Contract Payments,07-Apr-2016,3111599-A83054,850.00,DR PRM JONES & PARTNERS.
Children and Adult Services,Public Health,Third Party Payments,460802,Contract Payments,07-Apr-2016,3111686-A83066,875.00,JUBILEE MEDICAL GROUP.
Children and Adult Services,Public Health,Third Party Payments,460802,Contract Payments,07-Apr-2016,3111723-A83041,"1,150.00",MURTON MEDICAL GROUP.
Children and Adult Services,Public Health,Third Party Payments,460802,Contract Payments,07-Apr-2016,3111755-A83074,650.00,PEASEWAY PARTNERSHIP.
Children and Adult Services,Public Health,Third Party Payments,460802,Contract Payments,07-Apr-2016,3111765-A83017,650.00,PHOENIX MEDICAL GROUP T/A DR NAING & PARTNERS.
Children and Adult Services,Public Health,Third Party Payments,460802,Contract Payments,07-Apr-2016,3111767-A83060,710.00,PINFOLD MEDICAL PRACTICE.
Children and Adult Services,Public Health,Third Party Payments,460802,Contract Payments,07-Apr-2016,3111793-A83026,920.00,SACRISTON SURGERY.
Children and Adult Services,Public Health,Third Party Payments,460802,Contract Payments,07-Apr-2016,3111805-A83627,650.00,SILVERDALE FAMILY PRACTICE.
Children and Adult Services,Childrens Services,Supplies and Services,384638,Miscellaneous Expenses,07-Apr-2016,3111818-SI-538,"4,125.00",SPORT WORKS LTD.
Children and Adult Services,Public Health,Third Party Payments,460802,Contract Payments,07-Apr-2016,3111846-A83022,685.00,THE MEDICAL GROUP.
Children and Adult Services,Childrens Services,Supplies and Services,344033,Telephones,07-Apr-2016,3111865-202496,"1,058.31",UNIFY BUSINESS SOLUTIONS LTD.
Children and Adult Services,Public Health,Third Party Payments,460802,Contract Payments,07-Apr-2016,3111879-A83003,995.00,WILLINGTON MEDICAL GROUP.
Children and Adult Services,Commissioning inc Supporting People,Premises,145050,Cleaning and Domestic Supplies,07-Apr-2016,3111511-59968,"33,327.45",ANLABY OFFICE CLEANING SERVICES LTD.
Children and Adult Services,Childrens Services,Supplies and Services,304403,Equipment and Materials,07-Apr-2016,3111582-10658,"2,265.44",D & WP.
Children and Adult Services,Planning & Service Strategy,Supplies and Services,384540,Miscellaneous Expenses,07-Apr-2016,3111693-10984,"3,900.00",LIFE CHANNEL GROUP LTD.
Children and Adult Services,Education,Transport,230008,Contract Hire,07-Apr-2016,3111752-DCC77,"1,366.97",PAUL`S TAXIS..
Children and Adult Services,Planning & Service Strategy,Supplies and Services,338089,Services,07-Apr-2016,3111514-4354,"2,985.00",APT TRAINING & CONSULTANCY LTD.
Children and Adult Services,Planning & Service Strategy,Supplies and Services,338089,Services,07-Apr-2016,3111514-4355,"2,985.00",APT TRAINING & CONSULTANCY LTD.
Children and Adult Services,Planning & Service Strategy,Supplies and Services,338089,Services,07-Apr-2016,3111514-4356,"2,985.00",APT TRAINING & CONSULTANCY LTD.
Children and Adult Services,Education,Construction Work,908105,Construction work,07-Apr-2016,3111602-5794,822.50,DUNELM GEOTECHNICAL & ENVIRONMENTAL LTD.
Children and Adult Services,Childrens Services,Supplies and Services,308011,Furniture,07-Apr-2016,3111616-8817,958.00,FAST ENGINEERING LTD.
Children and Adult Services,Education,Transport,230005,Contract Hire,07-Apr-2016,3111630-3119,"1,008.00",GEM TRAVEL.
Children and Adult Services,Education,Transport,230005,Contract Hire,07-Apr-2016,3111630-3174,"1,134.00",GEM TRAVEL.
Children and Adult Services,Head of Adults,Third Party Payments,478101,Purchase of Care,07-Apr-2016,3111659-1324,"4,312.32",INCLUSION HOUSING CIC LTD.
Neighbourhood Services,Technical Services,Employees,080025,Agency Staff,07-Apr-2016,3111499-28254511,"8,041.42",AECOM LTD.
Neighbourhood Services,Technical Services,Supplies and Services,304221,Equipment and Materials,07-Apr-2016,3111501-22613956,"1,228.92",AGGREGATE INDUSTRIES UK LTD.
Neighbourhood Services,Technical Services,Supplies and Services,304221,Equipment and Materials,07-Apr-2016,3111501-22813959,860.86,AGGREGATE INDUSTRIES UK LTD.
Neighbourhood Services,Technical Services,Supplies and Services,304221,Equipment and Materials,07-Apr-2016,3111501-22813961,918.58,AGGREGATE INDUSTRIES UK LTD.
Neighbourhood Services,Technical Services,Supplies and Services,304221,Equipment and Materials,07-Apr-2016,3111501-22813962,"4,994.69",AGGREGATE INDUSTRIES UK LTD.
Neighbourhood Services,Technical Services,Supplies and Services,304221,Equipment and Materials,07-Apr-2016,3111501-22813963,"1,021.07",AGGREGATE INDUSTRIES UK LTD.
Neighbourhood Services,Technical Services,Supplies and Services,304221,Equipment and Materials,07-Apr-2016,3111501-22820606,"1,245.22",AGGREGATE INDUSTRIES UK LTD.
Neighbourhood Services,Technical Services,Supplies and Services,304221,Equipment and Materials,07-Apr-2016,3111501-22820610,799.73,AGGREGATE INDUSTRIES UK LTD.
Neighbourhood Services,Technical Services,Supplies and Services,304221,Equipment and Materials,07-Apr-2016,3111501-22820611,"2,034.75",AGGREGATE INDUSTRIES UK LTD.
Neighbourhood Services,Technical Services,Supplies and Services,304221,Equipment and Materials,07-Apr-2016,3111501-22827552,"9,507.83",AGGREGATE INDUSTRIES UK LTD.
Neighbourhood Services,Technical Services,Supplies and Services,304221,Equipment and Materials,07-Apr-2016,3111501-22827553,"7,501.44",AGGREGATE INDUSTRIES UK LTD.
Neighbourhood Services,Technical Services,Supplies and Services,304221,Equipment and Materials,07-Apr-2016,3111501-22831398,"1,269.05",AGGREGATE INDUSTRIES UK LTD.
Neighbourhood Services,Technical Services,Supplies and Services,304221,Equipment and Materials,07-Apr-2016,3111501-22831401,729.11,AGGREGATE INDUSTRIES UK LTD.
Neighbourhood Services,Technical Services,Supplies and Services,304221,Equipment and Materials,07-Apr-2016,3111501-22838034,"1,266.54",AGGREGATE INDUSTRIES UK LTD.
Neighbourhood Services,Technical Services,Supplies and Services,304221,Equipment and Materials,07-Apr-2016,3111501-22838035,741.30,AGGREGATE INDUSTRIES UK LTD.
Neighbourhood Services,Technical Services,Supplies and Services,304221,Equipment and Materials,07-Apr-2016,3111501-22838036,804.97,AGGREGATE INDUSTRIES UK LTD.
Neighbourhood Services,Technical Services,Supplies and Services,304221,Equipment and Materials,07-Apr-2016,3111501-22838037,"1,020.01",AGGREGATE INDUSTRIES UK LTD.
Neighbourhood Services,Technical Services,Supplies and Services,304221,Equipment and Materials,07-Apr-2016,3111501-22838038,"9,473.98",AGGREGATE INDUSTRIES UK LTD.
Neighbourhood Services,Direct Services,Supplies and Services,338066,Services,07-Apr-2016,3111502-R126/16/91014,"1,094.00",ALAN M RANSON FUNERAL SERVICE.
Neighbourhood Services,Direct Services,Supplies and Services,338066,Services,07-Apr-2016,3111502-R137/16/91015,930.00,ALAN M RANSON FUNERAL SERVICE.
Neighbourhood Services,Direct Services,Supplies and Services,338066,Services,07-Apr-2016,3111502-R143/16/91016,930.00,ALAN M RANSON FUNERAL SERVICE.
Neighbourhood Services,Direct Services,Supplies and Services,338066,Services,07-Apr-2016,3111502-R143/16/91017,930.00,ALAN M RANSON FUNERAL SERVICE.
Neighbourhood Services,Direct Services,Third Party Payments,430100,Rendered by Private Contractors,07-Apr-2016,3111506-06118,"1,144.80",ALL EVENTS SECURITY LTD (AES).
Neighbourhood Services,Direct Services,Third Party Payments,430100,Rendered by Private Contractors,07-Apr-2016,3111506-06126,"1,335.60",ALL EVENTS SECURITY LTD (AES).
Neighbourhood Services,Direct Services,Third Party Payments,430100,Rendered by Private Contractors,07-Apr-2016,3111506-06136,"1,335.60",ALL EVENTS SECURITY LTD (AES).
Neighbourhood Services,Direct Services,Third Party Payments,430100,Rendered by Private Contractors,07-Apr-2016,3111506-06143,"1,335.60",ALL EVENTS SECURITY LTD (AES).
Neighbourhood Services,EnvironmentHealth & Consumer Protection,Supplies and Services,338027,Services,07-Apr-2016,3111515-6429,"2,435.00",ARC ENVIRONMENTAL LTD.
Neighbourhood Services,Culture & Sport,Supplies and Services,312013,Newspapers Books and Periodicals,07-Apr-2016,3111520-4959448,720.45,ASKEWS & HOLTS LIBRARY SERVICES LTD.
Neighbourhood Services,Culture & Sport,Supplies and Services,338099,Services,07-Apr-2016,3111522-33912,"10,300.00",AUCKLAND CASTLE TRADING.
Neighbourhood Services,Culture & Sport,Supplies and Services,338099,Services,07-Apr-2016,3111522-34196,"5,150.00",AUCKLAND CASTLE TRADING.
Neighbourhood Services,Direct Services,Third Party Payments,430100,Rendered by Private Contractors,07-Apr-2016,3111524-1573,584.00,AWR ROOFING & ALUMIN RAINWATER SYSTEMS LTD.
Neighbourhood Services,Direct Services,Third Party Payments,430100,Rendered by Private Contractors,07-Apr-2016,3111525-29646,575.00,AYCLIFFE FABRICATIONS LTD.
Neighbourhood Services,Technical Services,Third Party Payments,430100,Rendered by Private Contractors,07-Apr-2016,3111543-37969,"9,454.50",BRIDGEWAY CONSULTING LTD.
Neighbourhood Services,Projects and Business services,Third Party Payments,430103,Rendered by Private Contractors,07-Apr-2016,3111544,617.60,BRITISH HEART FOUNDATION.
Neighbourhood Services,Direct Services,Third Party Payments,430100,Rendered by Private Contractors,07-Apr-2016,3111552-693,"1,585.98",CATHEDRAL LOCK & SAFE SERVICES LTD.
Neighbourhood Services,Direct Services,Third Party Payments,430100,Rendered by Private Contractors,07-Apr-2016,3111593-0000045382,"4,188.92",DORMA UK LTD.
Neighbourhood Services,Culture & Sport,Supplies and Services,384237,Miscellaneous Expenses,07-Apr-2016,3111603-C2706,"3,030.00",DURHAM CATHEDRAL LTD.
Neighbourhood Services,Direct Services,Cap Exp on Grants & Other Financial Assistance (REFCUS),918004,Contributions to other bodies,07-Apr-2016,3111605-10721,"40,000.00",EAST COAST MAIN LINE COMPANY LTD.
Neighbourhood Services,Direct Services,Supplies and Services,304259,Equipment and Materials,07-Apr-2016,3111606-6030612,"3,254.24",EAST RIDING HORTICULTURE LTD.
Neighbourhood Services,Direct Services,Supplies and Services,304259,Equipment and Materials,07-Apr-2016,3111606-6030613,"3,141.00",EAST RIDING HORTICULTURE LTD.
Neighbourhood Services,Technical Services,Third Party Payments,430127,Rendered by Private Contractors,07-Apr-2016,3111634-14606,"10,937.50",GJ CONTRACTORS.
Neighbourhood Services,Technical Services,Supplies and Services,304221,Equipment and Materials,07-Apr-2016,3111638-31905A,"1,191.00",GRAB & DELIVER LTD.
Neighbourhood Services,Technical Services,Third Party Payments,430100,Rendered by Private Contractors,07-Apr-2016,3111639-30/03/2016,560.00,GRAEME HOPPER LTD.
Neighbourhood Services,Direct Services,Transport,215005,Running Costs of Vehicles,07-Apr-2016,3111644-0000009983,"13,008.68",HARVEST ENERGY LTD.
Neighbourhood Services,Direct Services,Transport,215005,Running Costs of Vehicles,07-Apr-2016,3111644-0000009984,"14,907.24",HARVEST ENERGY LTD.
Neighbourhood Services,Direct Services,Supplies and Services,304221,Equipment and Materials,07-Apr-2016,3111645-SI1135861,"1,815.00",HC SLINGSBY PLC.
Neighbourhood Services,Technical Services,Supplies and Services,304358,Equipment and Materials,07-Apr-2016,3111656-C289,"4,552.80",IAN WILSON.
Neighbourhood Services,Technical Services,Supplies and Services,304358,Equipment and Materials,07-Apr-2016,3111671-1067,746.00,J & JG GILL & SONS LTD.
Neighbourhood Services,Technical Services,Construction Work,908105,Construction work,07-Apr-2016,3111673-12215,"2,028.32",JACK COUPE & SONS LTD T/A COUPE LINE.
Neighbourhood Services,Direct Services,Third Party Payments,430100,Rendered by Private Contractors,07-Apr-2016,3111675-3702,798.00,JAMES INGLEFORD SCAFFOLDING LTD.
Neighbourhood Services,Direct Services,Third Party Payments,430100,Rendered by Private Contractors,07-Apr-2016,3111675-3707,"5,024.29",JAMES INGLEFORD SCAFFOLDING LTD.
Neighbourhood Services,Direct Services,Third Party Payments,430100,Rendered by Private Contractors,07-Apr-2016,3111675-3710,504.00,JAMES INGLEFORD SCAFFOLDING LTD.
Neighbourhood Services,Technical Services,Stock,926900,Stock in hand-Inventory system,07-Apr-2016,3111679-NI030693,"10,816.58",JOHN MACLEAN & SONS ELECTRICAL (DINGWALL) LTD.
Neighbourhood Services,Direct Services,Supplies and Services,304221,Equipment and Materials,07-Apr-2016,3111685-CNI24171/D,712.73,JT DOVE LTD.
Neighbourhood Services,Technical Services,Stock,926900,Stock in hand-Inventory system,07-Apr-2016,3111685-STI434062,991.20,JT DOVE LTD.
Neighbourhood Services,Technical Services,Third Party Payments,430100,Rendered by Private Contractors,07-Apr-2016,3111689-1902,"69,167.00",L & G PLANT HIRE & SALES LTD.
Neighbourhood Services,Technical Services,Employees,040149,Recruitment Instruction and Training,07-Apr-2016,3111690-125482,825.00,LEARNING NEXUS LTD.
Neighbourhood Services,Direct Services,Third Party Payments,430100,Rendered by Private Contractors,07-Apr-2016,3111697-3170,"6,850.00",LION TRADING (GB) LTD.
Neighbourhood Services,Direct Services,Supplies and Services,304221,Equipment and Materials,07-Apr-2016,3111714-0000062841,770.23,MIKROFILL SYSTEMS LTD.
Neighbourhood Services,Culture & Sport,Vehicles Equipment Furniture and Fittings,912521,Purchase-furniture and fittings,07-Apr-2016,3111731-12420758,"1,671.95",NISBETS PLC.
Neighbourhood Services,Direct Services,Third Party Payments,430100,Rendered by Private Contractors,07-Apr-2016,3111738-16021187,565.96,NOVUS PROPERTY SOLUTIONS LTD.
Neighbourhood Services,Technical Services,Third Party Payments,430100,Rendered by Private Contractors,07-Apr-2016,3111741-18026,765.00,OLIVERS TREE SERVICES LTD.
Neighbourhood Services,Culture & Sport,Supplies and Services,304259,Equipment and Materials,07-Apr-2016,3111741-18027,765.00,OLIVERS TREE SERVICES LTD.
Neighbourhood Services,Technical Services,Construction Work,908202,Capital - Public Utilities - Telephones Services,07-Apr-2016,3111743-A145187,"21,924.44",OPENREACH LLU.
Neighbourhood Services,Technical Services,Stock,926900,Stock in hand-Inventory system,07-Apr-2016,3111748-XL165151,"1,478.73",PARK ELECTRICAL DISTRIBUTORS LTD.
Neighbourhood Services,Technical Services,Stock,926900,Stock in hand-Inventory system,07-Apr-2016,3111771-11493,884.50,PLUMBING & HEATING SUPPLIES LTD.
Neighbourhood Services,Direct Services,Supplies and Services,304221,Equipment and Materials,07-Apr-2016,3111772-55140,619.36,POLLOCK LIFTS.
Neighbourhood Services,Technical Services,Third Party Payments,430100,Rendered by Private Contractors,07-Apr-2016,3111783-2580/160306,"149,275.42",RAINTON CONSTRUCTION LTD.
Neighbourhood Services,Projects and Business services,Supplies and Services,340001,Postages,07-Apr-2016,3111790-9051765728,"2,016.95",ROYAL MAIL GROUP PLC.
Neighbourhood Services,Direct Services,Supplies and Services,304221,Equipment and Materials,07-Apr-2016,3111801-CD970311138,"1,100.00",SHERRIFF AMENITY.
Neighbourhood Services,Technical Services,Stock,926900,Stock in hand-Inventory system,07-Apr-2016,3111809-188428,"3,787.20",SNAPFAST.
Neighbourhood Services,Technical Services,Stock,926900,Stock in hand-Inventory system,07-Apr-2016,3111810-SI16002443,568.40,SOLON SECURITY LTD.
Neighbourhood Services,Technical Services,Supplies and Services,304221,Equipment and Materials,07-Apr-2016,3111826-080226,686.40,STONEGRAVE AGGREGATES LTD.
Neighbourhood Services,Culture & Sport,Supplies and Services,338047,Services,07-Apr-2016,3111828-INV-1466,"7,172.95",STUDIO MB LTD.
Neighbourhood Services,Direct Services,Supplies and Services,304221,Equipment and Materials,07-Apr-2016,3111832-14783,"1,221.93",SURESET UK LTD.
Neighbourhood Services,Technical Services,Supplies and Services,304221,Equipment and Materials,07-Apr-2016,3111837-9034081127,"1,518.09",TARMAC TRADING LTD.
Neighbourhood Services,Direct Services,Supplies and Services,304221,Equipment and Materials,07-Apr-2016,3111848-0000091083,"1,984.60",THE SEKURA GROUP.
Neighbourhood Services,Technical Services,Stock,926900,Stock in hand-Inventory system,07-Apr-2016,3111856-102219,"3,738.00",TOFCO LTD.
Neighbourhood Services,Direct Services,Supplies and Services,304221,Equipment and Materials,07-Apr-2016,3111858-106189,869.72,TOMMY WARDLE.
Neighbourhood Services,Direct Services,Premises,108135,Service Repairs and Maintenance,07-Apr-2016,3111864-TUC044500,"4,105.00",TUC PLANT HIRE LTD.
Neighbourhood Services,Direct Services,Premises,108135,Service Repairs and Maintenance,07-Apr-2016,3111864-TUC044501,"3,140.00",TUC PLANT HIRE LTD.
Neighbourhood Services,Direct Services,Supplies and Services,304221,Equipment and Materials,07-Apr-2016,3111880-39114,742.00,WILLOWCRETE MFG CO LTD.
Neighbourhood Services,Technical Services,Stock,926900,Stock in hand-Inventory system,07-Apr-2016,3111881-31143659,758.10,WOLSELEY UK LTD.
Neighbourhood Services,Projects and Business services,Third Party Payments,430119,Rendered by Private Contractors,07-Apr-2016,3111885-12172,"2,567.50",XYLEM ANALYTICS UK LTD.
Neighbourhood Services,Technical Services,Supplies and Services,304358,Equipment and Materials,07-Apr-2016,3111887-5414,"1,685.00",YOULL CONSTRUCTION LTD.
Neighbourhood Services,Technical Services,Supplies and Services,304358,Equipment and Materials,07-Apr-2016,3111887-5416,"7,760.00",YOULL CONSTRUCTION LTD.
Neighbourhood Services,Technical Services,Supplies and Services,304358,Equipment and Materials,07-Apr-2016,3111887-5419,"8,740.00",YOULL CONSTRUCTION LTD.
Regeneration & Economic Development,Spatial Policy Planning Assets & Environment,Supplies and Services,384199,Miscellaneous Expenses,07-Apr-2016,3111537-4,600.00,BLUE KAYAK.
Regeneration & Economic Development,Economic Development and Housing,Premises,120021,Energy Costs,07-Apr-2016,3111569-10947426,"1,326.35",CORONA ENERGY RETAIL 2 LTD.
Regeneration & Economic Development,Economic Development and Housing,Premises,120021,Energy Costs,07-Apr-2016,3111569-10950780,541.01,CORONA ENERGY RETAIL 2 LTD.
Regeneration & Economic Development,Economic Development and Housing,Premises,120021,Energy Costs,07-Apr-2016,3111569-10950781,671.63,CORONA ENERGY RETAIL 2 LTD.
Regeneration & Economic Development,Economic Development and Housing,Premises,120021,Energy Costs,07-Apr-2016,3111569-10951300,785.16,CORONA ENERGY RETAIL 2 LTD.
Regeneration & Economic Development,Economic Development and Housing,Premises,120021,Energy Costs,07-Apr-2016,3111569-10952861,"1,713.85",CORONA ENERGY RETAIL 2 LTD.
Regeneration & Economic Development,Economic Development and Housing,Supplies and Services,384700,Miscellaneous Expenses,07-Apr-2016,3111572-RED-04-2016-053,"1,000.00",COUNTY DURHAM JOINERY LTD.
Regeneration & Economic Development,Economic Development and Housing,Cap Exp on Grants & Other Financial Assistance (REFCUS),918401,Capital grants,07-Apr-2016,3111615-RED-04-2016-049,"3,675.00",F TIFFEN BUILDING SERVICES.
Regeneration & Economic Development,Economic Development and Housing,Supplies and Services,384199,Miscellaneous Expenses,07-Apr-2016,3111654-1000227119,"1,800.00",HULL CITY COUNCIL.
Regeneration & Economic Development,Transport and Contracted Services,Supplies and Services,338027,Services,07-Apr-2016,3111674-B225H008-005,"20,138.61",JACOBS UK LTD.
Regeneration & Economic Development,Economic Development and Housing,Cap Exp on Grants & Other Financial Assistance (REFCUS),918401,Capital grants,07-Apr-2016,3111722-RED-04-2016-051,"2,575.00",MR S SMITH T/A SEBASTIAN ENTERPRISES LTD.
Regeneration & Economic Development,Economic Development and Housing,Cap Exp on Grants & Other Financial Assistance (REFCUS),918401,Capital grants,07-Apr-2016,3111722-RED-04-2016-052,"5,250.00",MR S SMITH T/A SEBASTIAN ENTERPRISES LTD.
Regeneration & Economic Development,Economic Development and Housing,Cap Exp on Grants & Other Financial Assistance (REFCUS),918401,Capital grants,07-Apr-2016,3111725-RED-04-2016-048,"3,686.02",NEIL BELL PLUMBERS HEATING & GAS INS.
Regeneration & Economic Development,Economic Development and Housing,Cap Exp on Grants & Other Financial Assistance (REFCUS),918401,Capital grants,07-Apr-2016,3111782-RED-04-2016-050,"4,453.00",R TINDALE (BUILDER) LTD.
Regeneration & Economic Development,Economic Development and Housing,Third Party Payments,440999,Other Third Party Payments,07-Apr-2016,3111798-5855028645,"25,738.97",SCOTTISH GAS T/A WARM UP NORTH.
Regeneration & Economic Development,Transport and Contracted Services,Supplies and Services,336005,Advertising,07-Apr-2016,3111844-109305,"1,394.40",TEESDALE MERCURY LTD.
Regeneration & Economic Development,Economic Development and Housing,Cap Exp on Grants & Other Financial Assistance (REFCUS),918401,Capital grants,07-Apr-2016,3111854-RED-04-2016-047,"2,747.00",THYSSENKRUPP ENCASA A DIVISION OF THYSSENKRUPP ACCESS LTD.
Resources,Legal & Democratic Services,Supplies and Services,342051,Computers and Communications,07-Apr-2016,3111658-IK24411,"5,625.00",IKEN BUSINESS LTD.
Resources,Legal & Democratic Services,Supplies and Services,342051,Computers and Communications,07-Apr-2016,3111658-IK24412,"1,500.00",IKEN BUSINESS LTD.
Resources,Financial Services,Supplies and Services,384180,Miscellaneous Expenses,07-Apr-2016,3111699-0876815,"4,996.52",LOOMIS UK LTD.
Resources,I.C.T. Services,Supplies and Services,342033,Computers and Communications,07-Apr-2016,3111788-DE4295818,900.00,RM EDUCATION PLC.
Assistant Chief Executive,Partnerships & Community Engagement Div.,Transfer Payments,525030,Other,08-Apr-2016,3112066-SI-002943,"20,000.00",LEISUREWORKS.
Children and Adult Services,Childrens Services,Supplies and Services,364352,Grants to Voluntary Organisations,08-Apr-2016,3112204-68617-70067848,711.72,STONHAM HOUSING ASSOCIATION LTD.
Children and Adult Services,Public Health,Third Party Payments,460803,Contract Payments,08-Apr-2016,3112081-DRKN/41,512.50,LYDON PHARMACY GROUP LTD.
Children and Adult Services,Public Health,Third Party Payments,460803,Contract Payments,08-Apr-2016,3112083-FPZD/35,877.50,LYDON PHARMACY GROUP LTD.
Children and Adult Services,Head of Adults,Transport,230005,Contract Hire,08-Apr-2016,3112200-DCC083/SLD005,"1,422.00",STEPHEN COXON.
Children and Adult Services,Public Health,Third Party Payments,460803,Contract Payments,08-Apr-2016,3112264-DWFD/30,692.50,WHITWORTH CHEMISTS LTD.
Children and Adult Services,Education,Transport,230007,Contract Hire,08-Apr-2016,3111989-5202/MAR/16,900.00,EMMA RAMSHAW T/A EMMA`S CABS.
Children and Adult Services,Head of Adults,Transport,230005,Contract Hire,08-Apr-2016,3111901-SAS0316NCL,"1,445.00",AIRPORT CARS DURHAM
Children and Adult Services,Head of Adults,Transport,230005,Contract Hire,08-Apr-2016,3112109-SLD010/316,540.00,MR D DONNELLY.
Children and Adult Services,Education,Transport,230008,Contract Hire,08-Apr-2016,3111986-E014/0316,"1,358.30",ELLIOTTS OF TRIMDON.
Children and Adult Services,Education,Transport,230008,Contract Hire,08-Apr-2016,3111986-E112/0316,"1,108.40",ELLIOTTS OF TRIMDON.
Children and Adult Services,Head of Adults,Transport,230005,Contract Hire,08-Apr-2016,3111998-WV079/024,765.00,FERRYHILL VILLAGE TRAVEL.
Children and Adult Services,Head of Adults,Transport,230005,Contract Hire,08-Apr-2016,3112030-IR1603003,"1,571.00",I & R EXECUTIVE TRAVEL.
Children and Adult Services,Head of Adults,Transport,230005,Contract Hire,08-Apr-2016,3112030-IR1603012,"1,302.00",I & R EXECUTIVE TRAVEL.
Children and Adult Services,Childrens Services,Supplies and Services,304259,Equipment and Materials,08-Apr-2016,3112270-498529695,596.00,YORKSHIRE PURCHASING ORGANISATION.
Children and Adult Services,Head of Adults,Transport,230005,Contract Hire,08-Apr-2016,3111894-EA220774,960.00,A MURRAY TRAVEL.
Children and Adult Services,Head of Adults,Supplies and Services,384616,Miscellaneous Expenses,08-Apr-2016,3111908-AHS00997,"1,312.71",AUCKLAND HOME SOLUTIONS CIC.
Children and Adult Services,Education,Transfer Payments,510026,School Children,08-Apr-2016,3111927-16032016,"1,206.00",REDACTED - PAYMENT TO INDIVIDUAL
Children and Adult Services,Education,Transport,230008,Contract Hire,08-Apr-2016,3112014-W082/040,"1,525.50",GMC TAXIS NORTH EAST.
Children and Adult Services,Education,Transport,230008,Contract Hire,08-Apr-2016,3112014-W084/040,"1,574.82",GMC TAXIS NORTH EAST.
Children and Adult Services,Head of Adults,Transport,230005,Contract Hire,08-Apr-2016,3112057-07/DW109,924.00,KD TAXIS.
Children and Adult Services,Head of Adults,Transport,230005,Contract Hire,08-Apr-2016,3112110-2014-210,"2,079.00",MR D KEMP T/A ACE EXECUTIVE.
Children and Adult Services,Childrens Services,Transfer Payments,515207,Social Services Clients,08-Apr-2016,3112147-22575777,506.00,PARK RETAIL LTD.
Children and Adult Services,Head of Adults,Supplies and Services,338099,Services,08-Apr-2016,3112205-SA086-15,"1,260.83",STRAY AID LTD.
Children and Adult Services,Head of Adults,Supplies and Services,338099,Services,08-Apr-2016,3112205-SA094-15,"1,409.00",STRAY AID LTD.
Children and Adult Services,Head of Adults,Transport,230005,Contract Hire,08-Apr-2016,3112216-1319/MAR,630.00,TALBOTS TAXIS.
Children and Adult Services,Head of Adults,Transport,230005,Contract Hire,08-Apr-2016,3112258-1057/MAR,500.00,WAYNE`S TAXIS.
Children and Adult Services,Head of Adults,Transport,230005,Contract Hire,08-Apr-2016,3112102-MARCHE4,"1,282.00",MICHAEL A BODDY T/A MBS TAXIS.
Children and Adult Services,Childrens Services,Supplies and Services,308011,Furniture,08-Apr-2016,3111902-155023,518.00,ALBANY CONTRACT FURNITURE.
Children and Adult Services,Head of Adults,Transport,230005,Contract Hire,08-Apr-2016,3111917-2014/1,840.00,BOBBY DOVE.
Children and Adult Services,Head of Adults,Transport,230005,Contract Hire,08-Apr-2016,3111926-PSO130,"1,008.00",BURNDALE PRIVATE HIRE.
Children and Adult Services,Childrens Services,Third Party Payments,425040,Rendered by Voluntary Organisations,08-Apr-2016,3112002-125972,730.00,FOSTER CARES LTD.
Children and Adult Services,Childrens Services,Third Party Payments,425040,Rendered by Voluntary Organisations,08-Apr-2016,3112002-125976,"1,180.00",FOSTER CARES LTD.
Children and Adult Services,Childrens Services,Third Party Payments,425040,Rendered by Voluntary Organisations,08-Apr-2016,3112002-125979,820.00,FOSTER CARES LTD.
Children and Adult Services,Childrens Services,Third Party Payments,425040,Rendered by Voluntary Organisations,08-Apr-2016,3112002-125980,730.00,FOSTER CARES LTD.
Children and Adult Services,Childrens Services,Third Party Payments,425040,Rendered by Voluntary Organisations,08-Apr-2016,3112002-125986,730.00,FOSTER CARES LTD.
Children and Adult Services,Childrens Services,Third Party Payments,425040,Rendered by Voluntary Organisations,08-Apr-2016,3112002-125987,730.00,FOSTER CARES LTD.
Children and Adult Services,Childrens Services,Third Party Payments,425040,Rendered by Voluntary Organisations,08-Apr-2016,3112002-125991,730.00,FOSTER CARES LTD.
Children and Adult Services,Childrens Services,Third Party Payments,425040,Rendered by Voluntary Organisations,08-Apr-2016,3112002-125994,730.00,FOSTER CARES LTD.
Children and Adult Services,Childrens Services,Third Party Payments,425040,Rendered by Voluntary Organisations,08-Apr-2016,3112002-125995,730.00,FOSTER CARES LTD.
Children and Adult Services,Childrens Services,Third Party Payments,425040,Rendered by Voluntary Organisations,08-Apr-2016,3112002-126000,700.00,FOSTER CARES LTD.
Children and Adult Services,Childrens Services,Third Party Payments,425040,Rendered by Voluntary Organisations,08-Apr-2016,3112002-126005,760.00,FOSTER CARES LTD.
Children and Adult Services,Public Health,Construction Work,908105,Construction work,08-Apr-2016,3112033-160301,"83,295.00",INITIAL DEVELOPMENTS (PROPERTIES LTD).
Children and Adult Services,Head of Adults,Transport,230005,Contract Hire,08-Apr-2016,3112046-NUM888,"1,122.45",JDS PRIVATE HIRE DURHAM.
Children and Adult Services,Head of Adults,Transport,230005,Contract Hire,08-Apr-2016,3112053-DM1497,792.00,JOVIAL PRIVATE HIRE.
Children and Adult Services,Head of Adults,Transport,230005,Contract Hire,08-Apr-2016,3112097-590316,"1,170.00",MARK MUSGROVE T/A MARKS TAXIS.
Children and Adult Services,Head of Adults,Transport,230005,Contract Hire,08-Apr-2016,3112116-201611,650.00,MR JR FORT.
Children and Adult Services,Planning & Service Strategy,Supplies and Services,338089,Services,08-Apr-2016,3112227-INV799,"2,950.00",THE SOCIAL RESEARCH ASSOCIATION.
Children and Adult Services,Childrens Services,Supplies and Services,342223,Computers and Communications,08-Apr-2016,3112245-113591,592.00,UNIFY BUSINESS SOLUTIONS LTD.
Children and Adult Services,Childrens Services,Supplies and Services,384199,Miscellaneous Expenses,08-Apr-2016,3111913-69249,731.76,BAILEYS BLINDS LTD.
Children and Adult Services,Head of Adults,Supplies and Services,338365,Services,08-Apr-2016,3111979-28157,813.37,EASIBATHE LTD.
Children and Adult Services,Education,Transport,230007,Contract Hire,08-Apr-2016,3112001-FONA1,720.00,FONACAB DURHAM.
Children and Adult Services,Head of Adults,Transport,230005,Contract Hire,08-Apr-2016,3112112-66213,"1,255.80",MR GN ROBBINS T/A GNR MINIBUS HIRE.
Children and Adult Services,Head of Adults,Transport,230005,Contract Hire,08-Apr-2016,3112112-66214,"1,722.00",MR GN ROBBINS T/A GNR MINIBUS HIRE.
Children and Adult Services,Education,Transport,230008,Contract Hire,08-Apr-2016,3112121-AA342,"2,595.48",MR T GUNN.
Children and Adult Services,Head of Adults,Transport,230005,Contract Hire,08-Apr-2016,3112151-DCC78,550.00,PAUL`S TAXIS..
Children and Adult Services,Head of Adults,Transport,230005,Contract Hire,08-Apr-2016,3112175-7/MAR,742.50,ROUTE 1.
Children and Adult Services,Head of Adults,Transport,230005,Contract Hire,08-Apr-2016,3112235-MAR16,972.00,TONYS TAXIS (A BIRCH).
Children and Adult Services,Head of Adults,Transport,230005,Contract Hire,08-Apr-2016,3111957-5950,628.70,CROFT BUSINESS SERVICES (UK) LTD T/A CROFT TAXIS.
Children and Adult Services,Head of Adults,Transport,230005,Contract Hire,08-Apr-2016,3111957-6016,"1,575.20",CROFT BUSINESS SERVICES (UK) LTD T/A CROFT TAXIS.
Children and Adult Services,Head of Adults,Transport,230005,Contract Hire,08-Apr-2016,3111957-6023,732.27,CROFT BUSINESS SERVICES (UK) LTD T/A CROFT TAXIS.
Children and Adult Services,Childrens Services,Supplies and Services,384871,Miscellaneous Expenses,08-Apr-2016,3111995-0092,500.00,FEEL GOOD FACTORY CIC.
Children and Adult Services,Education,Transport,230008,Contract Hire,08-Apr-2016,3112003-1603,"2,450.88",FRANK ATKINSON T/A FJ MINIBUS TRAVEL.
Children and Adult Services,Head of Adults,Transport,230005,Contract Hire,08-Apr-2016,3112061-7MAR,"1,260.00",KT TAXIS.
Children and Adult Services,Education,Transport,230007,Contract Hire,08-Apr-2016,3112064-1722,"4,301.82",LEE`S COACHES LTD.
Children and Adult Services,Education,Transport,230007,Contract Hire,08-Apr-2016,3112064-1759,"12,079.10",LEE`S COACHES LTD.
Children and Adult Services,Education,Transport,230007,Contract Hire,08-Apr-2016,3112069-3359,888.00,LINCAB TAXIS.
Children and Adult Services,Education,Transport,230007,Contract Hire,08-Apr-2016,3112092-5253,"1,594.24",MAKEPEACE MOTORS.
Children and Adult Services,Education,Transport,230007,Contract Hire,08-Apr-2016,3112092-5254,"1,160.96",MAKEPEACE MOTORS.
Children and Adult Services,Education,Transport,230007,Contract Hire,08-Apr-2016,3112092-5255,"1,313.28",MAKEPEACE MOTORS.
Children and Adult Services,Head of Adults,Transport,230005,Contract Hire,08-Apr-2016,3112132-6059,"1,239.00",NIGHTINGALE COACHES.
Children and Adult Services,Head of Adults,Transport,230005,Contract Hire,08-Apr-2016,3112132-6060,"1,228.00",NIGHTINGALE COACHES.
Children and Adult Services,Head of Adults,Transport,230005,Contract Hire,08-Apr-2016,3112132-6061,882.00,NIGHTINGALE COACHES.
Children and Adult Services,Head of Adults,Transport,230005,Contract Hire,08-Apr-2016,3112132-6062,"1,151.50",NIGHTINGALE COACHES.
Children and Adult Services,Head of Adults,Transport,230005,Contract Hire,08-Apr-2016,3112153-0443,924.00,PETER`S PRIVATE HIRE/PETER BEST.
Children and Adult Services,Childrens Services,Supplies and Services,338078,Services,08-Apr-2016,3112169-5605,"15,153.96",QW SECURITY LTD.
Children and Adult Services,Childrens Services,Third Party Payments,425017,Rendered by Voluntary Organisations,08-Apr-2016,3112197-5056,"6,264.00",ST OSWALD`S HOSPICE.
Children and Adult Services,Head of Adults,Transport,230005,Contract Hire,08-Apr-2016,3112217-B793,"1,516.62",TALBOTS TRAVEL LTD.
Children and Adult Services,Planning & Service Strategy,Supplies and Services,384199,Miscellaneous Expenses,08-Apr-2016,3112234-1247,"1,645.00",TMT BUILDING SERVICES.
Children and Adult Services,Head of Adults,Transport,230005,Contract Hire,08-Apr-2016,3112241-0116,940.40,TRANSPORT.ADVENTURE.XI.
Children and Adult Services,Head of Adults,Transport,230005,Contract Hire,08-Apr-2016,3112241-0216,"1,197.00",TRANSPORT.ADVENTURE.XI.
Children and Adult Services,Head of Adults,Transport,230005,Contract Hire,08-Apr-2016,3112258-1056,"1,260.00",WAYNE`S TAXIS.
Children and Adult Services,Head of Adults,Transport,230005,Contract Hire,08-Apr-2016,3112260-5434,"1,459.50",WEARDALE PRIVATE HIRE.
Children and Adult Services,Head of Adults,Transport,230005,Contract Hire,08-Apr-2016,3112260-5435,"3,872.20",WEARDALE PRIVATE HIRE.
Children and Adult Services,Head of Adults,Transport,230005,Contract Hire,08-Apr-2016,3112261-0316,675.00,WEST AUCKLAND TOWN TRAVEL (WATT).
Children and Adult Services,Head of Adults,Transport,230005,Contract Hire,08-Apr-2016,3111897-207,740.00,ACE TAXIS..
Children and Adult Services,Education,Transport,230006,Contract Hire,08-Apr-2016,3112001-003,"1,465.00",FONACAB DURHAM.
Children and Adult Services,Head of Adults,Transport,230005,Contract Hire,08-Apr-2016,3112031-191,748.00,I CLYDESDALE T/A BURNOPFIELD TAXIS.
Children and Adult Services,Head of Adults,Transport,230005,Contract Hire,08-Apr-2016,3112046-898,880.00,JDS PRIVATE HIRE DURHAM.
Children and Adult Services,Head of Adults,Transport,230005,Contract Hire,08-Apr-2016,3112048-061,920.00,JK TAXIS.
Children and Adult Services,Education,Transport,230008,Contract Hire,08-Apr-2016,3112065-141,"1,858.64",LEE`S TAXIS.
Children and Adult Services,Head of Adults,Transport,230005,Contract Hire,08-Apr-2016,3112106-636,"1,870.00",MOLLYS TAXIS.
Children and Adult Services,Education,Transport,230008,Contract Hire,08-Apr-2016,3112123-186,"1,656.00",N FORBES.
Children and Adult Services,Head of Adults,Transport,230005,Contract Hire,08-Apr-2016,3112165-W21,585.00,PRESTYS HACKNEY & PRIVATE HIRE TAXIS.
Children and Adult Services,Head of Adults,Transport,230005,Contract Hire,08-Apr-2016,3112191-205,776.00,SIMONS TAXIS.
Children and Adult Services,Head of Adults,Transport,230005,Contract Hire,08-Apr-2016,3112201-002,554.80,STEPHEN VALLANCE T/A SELECT CABS.
Children and Adult Services,Head of Adults,Transport,230005,Contract Hire,08-Apr-2016,3112228-166,640.00,THE TAXI COMPANY (MURTON) LTD.
Neighbourhood Services,Technical Services,Supplies and Services,304221,Equipment and Materials,08-Apr-2016,3111900-22845479,752.30,AGGREGATE INDUSTRIES UK LTD.
Neighbourhood Services,Technical Services,Supplies and Services,304221,Equipment and Materials,08-Apr-2016,3111900-22845480,924.95,AGGREGATE INDUSTRIES UK LTD.
Neighbourhood Services,Technical Services,Supplies and Services,304221,Equipment and Materials,08-Apr-2016,3111900-22845481,737.54,AGGREGATE INDUSTRIES UK LTD.
Neighbourhood Services,Technical Services,Supplies and Services,304221,Equipment and Materials,08-Apr-2016,3111900-22845482,"6,295.08",AGGREGATE INDUSTRIES UK LTD.
Neighbourhood Services,Technical Services,Stock,926900,Stock in hand-Inventory system,08-Apr-2016,3111905-926927533,889.80,ARCO LTD.
Neighbourhood Services,Technical Services,Supplies and Services,338027,Services,08-Apr-2016,3111907-15048228,"1,173.43",ATKINS GLOBAL.
Neighbourhood Services,Direct Services,Supplies and Services,304259,Equipment and Materials,08-Apr-2016,3111909-116794,643.00,AUTOCRAFT EQUIPMENT LTD.
Neighbourhood Services,Technical Services,Third Party Payments,430100,Rendered by Private Contractors,08-Apr-2016,3111914-1547004,"3,338.29",BCE NORTHERN LTD.
Neighbourhood Services,Technical Services,Third Party Payments,430100,Rendered by Private Contractors,08-Apr-2016,3111914-1550003,"49,322.81",BCE NORTHERN LTD.
Neighbourhood Services,Technical Services,Third Party Payments,430100,Rendered by Private Contractors,08-Apr-2016,3111914-1550004,"7,074.47",BCE NORTHERN LTD.
Neighbourhood Services,Technical Services,Third Party Payments,430100,Rendered by Private Contractors,08-Apr-2016,3111914-1551003,"9,275.80",BCE NORTHERN LTD.
Neighbourhood Services,Technical Services,Third Party Payments,430100,Rendered by Private Contractors,08-Apr-2016,3111914-1551004,"4,332.11",BCE NORTHERN LTD.
Neighbourhood Services,Culture & Sport,Premises,145023,Cleaning and Domestic Supplies,08-Apr-2016,3111922-22SI2212748,"1,313.74",BRENNTAG UK LTD.
Neighbourhood Services,Technical Services,Supplies and Services,304259,Equipment and Materials,08-Apr-2016,3111931-466861,518.00,CARRS BILLINGTON AGRICULTURE.
Neighbourhood Services,Direct Services,Third Party Payments,430100,Rendered by Private Contractors,08-Apr-2016,3111932-789,"2,762.04",CATHEDRAL LOCK & SAFE SERVICES LTD.
Neighbourhood Services,Technical Services,Stock,926900,Stock in hand-Inventory system,08-Apr-2016,3111936-9950/01687882,"4,071.64",CERAMIC TILE DISTRIBUTORS (CTD).
Neighbourhood Services,Direct Services,Supplies and Services,304221,Equipment and Materials,08-Apr-2016,3111941-4524,560.00,CITY FABRICATIONS LTD.
Neighbourhood Services,EnvironmentHealth & Consumer Protection,Supplies and Services,372009,Subscriptions,08-Apr-2016,3111942-M/RG035649,"16,119.26",CIVICA UK LTD.
Neighbourhood Services,Direct Services,Supplies and Services,304999,Equipment and Materials,08-Apr-2016,3111948,520.00,CONSIDERATE CONSTRUCTORS SCHEME.
Neighbourhood Services,Culture & Sport,Employees,080030,Agency Staff,08-Apr-2016,3111970-4100525636,800.00,DUNCAN BROWN.
Neighbourhood Services,Projects and Business services,Construction Work,908105,Construction work,08-Apr-2016,3111971-5816,"10,806.70",DUNELM GEOTECHNICAL & ENVIRONMENTAL LTD.
Neighbourhood Services,Technical Services,Third Party Payments,430100,Rendered by Private Contractors,08-Apr-2016,3112007-108541940,"6,175.85",GATESHEAD COUNCIL.
Neighbourhood Services,Direct Services,Supplies and Services,304252,Equipment and Materials,08-Apr-2016,3112008-1113991,906.00,GEMCO SERVICE LTD.
Neighbourhood Services,Technical Services,Stock,926900,Stock in hand-Inventory system,08-Apr-2016,3112016-06/595359,"1,953.91",GREENHAM TRADING LTD.
Neighbourhood Services,Technical Services,Stock,926900,Stock in hand-Inventory system,08-Apr-2016,3112016-06/595599,655.23,GREENHAM TRADING LTD.
Neighbourhood Services,Direct Services,Vehicles Equipment Furniture and Fittings,912541,Purchase-vehicles,08-Apr-2016,3112017-127866,"139,566.00",GREENLAY (GRASS MACHINERY) LTD.
Neighbourhood Services,Direct Services,Supplies and Services,304259,Equipment and Materials,08-Apr-2016,3112017-127875,"1,665.80",GREENLAY (GRASS MACHINERY) LTD.
Neighbourhood Services,Culture & Sport,Supplies and Services,304259,Equipment and Materials,08-Apr-2016,3112025-13492,"2,776.00",HERCULES SECURITY FABRICATIONS LTD.
Neighbourhood Services,Technical Services,Employees,040149,Recruitment Instruction and Training,08-Apr-2016,3112029-2326,"1,770.00",HSF TRAINING LTD.
Neighbourhood Services,Technical Services,Third Party Payments,430127,Rendered by Private Contractors,08-Apr-2016,3112039-1148,"1,005.00",J & JG GILL & SONS LTD.
Neighbourhood Services,Technical Services,Third Party Payments,430127,Rendered by Private Contractors,08-Apr-2016,3112042-5305084,"1,716.00",JA GILSON (AGRICULTURAL CONTRACTORS) LTD.
Neighbourhood Services,Technical Services,Construction Work,908105,Construction work,08-Apr-2016,3112043-12305,"25,207.90",JACK COUPE & SONS LTD T/A COUPE LINE.
Neighbourhood Services,Technical Services,Third Party Payments,430100,Rendered by Private Contractors,08-Apr-2016,3112043-12321,738.46,JACK COUPE & SONS LTD T/A COUPE LINE.
Neighbourhood Services,Technical Services,Supplies and Services,304221,Equipment and Materials,08-Apr-2016,3112056-AS1733635,"2,127.16",JT DOVE LTD.
Neighbourhood Services,Technical Services,Supplies and Services,304221,Equipment and Materials,08-Apr-2016,3112056-BI1185991,509.80,JT DOVE LTD.
Neighbourhood Services,Technical Services,Stock,926900,Stock in hand-Inventory system,08-Apr-2016,3112056-STI433935,544.91,JT DOVE LTD.
Neighbourhood Services,Technical Services,Supplies and Services,304221,Equipment and Materials,08-Apr-2016,3112068-900198,"4,990.00",LIGHTING & ILLUMINATION TECHNOLOGY EXPERIENCE LTD (LITE).
Neighbourhood Services,Technical Services,Stock,926900,Stock in hand-Inventory system,08-Apr-2016,3112068-900199,"4,875.00",LIGHTING & ILLUMINATION TECHNOLOGY EXPERIENCE LTD (LITE).
Neighbourhood Services,Technical Services,Supplies and Services,304221,Equipment and Materials,08-Apr-2016,3112068-900200,"4,990.00",LIGHTING & ILLUMINATION TECHNOLOGY EXPERIENCE LTD (LITE).
Neighbourhood Services,Culture & Sport,Supplies and Services,384237,Miscellaneous Expenses,08-Apr-2016,3112071-600180,900.00,LITEWHITE LTD T/A BLUMILK.
Neighbourhood Services,Technical Services,Supplies and Services,304221,Equipment and Materials,08-Apr-2016,3112099-38371,"1,912.58",MAY GURNEY LTD.
Neighbourhood Services,Technical Services,Supplies and Services,304221,Equipment and Materials,08-Apr-2016,3112099-38374,"1,024.84",MAY GURNEY LTD.
Neighbourhood Services,Direct Services,Supplies and Services,304221,Equipment and Materials,08-Apr-2016,3112105-0000062919,770.23,MIKROFILL SYSTEMS LTD.
Neighbourhood Services,Culture & Sport,Fees,901002,Professional fees,08-Apr-2016,3112108-LEESR160024,700.00,MOVVEO LTD.
Neighbourhood Services,Direct Services,Third Party Payments,430100,Rendered by Private Contractors,08-Apr-2016,3112144-840,"1,168.90",PARAMOUNT CEILINGS & PARTITIONS.
Neighbourhood Services,Technical Services,Third Party Payments,430100,Rendered by Private Contractors,08-Apr-2016,3112167-86379,550.00,PROTECTOR SECURITY GROUP LTD.
Neighbourhood Services,Technical Services,Third Party Payments,430100,Rendered by Private Contractors,08-Apr-2016,3112167-86380,550.00,PROTECTOR SECURITY GROUP LTD.
Neighbourhood Services,Culture & Sport,Employees,080030,Agency Staff,08-Apr-2016,3112182-PHOO540,570.00,S & S TRAVEL LTD.
Neighbourhood Services,Projects and Business services,Third Party Payments,430100,Rendered by Private Contractors,08-Apr-2016,3112184-2505,"1,342.86",SAFE STRIP UK LTD.
Neighbourhood Services,Direct Services,Supplies and Services,384194,Miscellaneous Expenses,08-Apr-2016,3112184-2508,706.14,SAFE STRIP UK LTD.
Neighbourhood Services,Direct Services,Third Party Payments,430100,Rendered by Private Contractors,08-Apr-2016,3112184-2564,520.00,SAFE STRIP UK LTD.
Neighbourhood Services,Technical Services,Employees,040149,Recruitment Instruction and Training,08-Apr-2016,3112189-ACI05555,"3,500.00",SHEFFIELD HALLAM UNIVERSITY.
Neighbourhood Services,Culture & Sport,Supplies and Services,304259,Equipment and Materials,08-Apr-2016,3112192-914/19558,714.00,SITELINK COMMUNICATIONS LTD.
Neighbourhood Services,Technical Services,Supplies and Services,304221,Equipment and Materials,08-Apr-2016,3112203-080264,"8,506.44",STONEGRAVE AGGREGATES LTD.
Neighbourhood Services,Direct Services,Third Party Payments,430100,Rendered by Private Contractors,08-Apr-2016,3112243-DCCGT7,744.00,TYNE VALLEY FLOORING & CARPETS.
Neighbourhood Services,Culture & Sport,Supplies and Services,384956,Miscellaneous Expenses,08-Apr-2016,3112244-UKAPPL/98044,674.69,UKACTIVE.
Neighbourhood Services,Technical Services,Third Party Payments,430127,Rendered by Private Contractors,08-Apr-2016,3112252-41064,"3,218.00",W MARLEY AGRICULTURAL CONTRACTORS LTD.
Neighbourhood Services,Direct Services,Supplies and Services,304221,Equipment and Materials,08-Apr-2016,3112267-ProForma1169,"8,553.18",WITTUR UK LTD.
Neighbourhood Services,Technical Services,Stock,926900,Stock in hand-Inventory system,08-Apr-2016,3112268-369246,600.00,WM SMITH & SONS (BARNARD CASTLE) LTD.
Neighbourhood Services,Technical Services,Stock,926900,Stock in hand-Inventory system,08-Apr-2016,3112269-31083187,928.74,WOLSELEY UK LTD.
Neighbourhood Services,Technical Services,Stock,926900,Stock in hand-Inventory system,08-Apr-2016,3112269-31083196,"1,062.66",WOLSELEY UK LTD.
Neighbourhood Services,Technical Services,Stock,926900,Stock in hand-Inventory system,08-Apr-2016,3112269-31083200,"1,017.40",WOLSELEY UK LTD.
Neighbourhood Services,Technical Services,Supplies and Services,304358,Equipment and Materials,08-Apr-2016,3112271-5381,"2,355.00",YOULL CONSTRUCTION LTD.
Neighbourhood Services,Technical Services,Supplies and Services,304358,Equipment and Materials,08-Apr-2016,3112271-5439,"5,265.00",YOULL CONSTRUCTION LTD.
Regeneration & Economic Development,Economic Development and Housing,Cap Exp on Grants & Other Financial Assistance (REFCUS),918401,Capital grants,08-Apr-2016,3111930-RED-04-2016-078,"5,000.00",REDACTED - PAYMENT TO INDIVIDUAL
Regeneration & Economic Development,Transport and Contracted Services,Transport,230005,Contract Hire,08-Apr-2016,3111946-0001656,980.00,COLORS TAXIS LTD.
Regeneration & Economic Development,Economic Development and Housing,Supplies and Services,384700,Miscellaneous Expenses,08-Apr-2016,3111952-RED-04-2016-067,"1,000.00",CORNFORTH PARTNERSHIP.
Regeneration & Economic Development,Economic Development and Housing,Supplies and Services,384700,Miscellaneous Expenses,08-Apr-2016,3111965-RED-03-2016-003A,"1,000.00",DESIGN REVEL.
Regeneration & Economic Development,Economic Development and Housing,Supplies and Services,384199,Miscellaneous Expenses,08-Apr-2016,3111967-15024,"1,513.00",DIFFERENT ADVERTISING DESIGN & MARKETING LTD.
Regeneration & Economic Development,Economic Development and Housing,Supplies and Services,384999,Miscellaneous Expenses,08-Apr-2016,3111974-RED-04-2016-061,"4,147.51",DURHAM CITY HOMES LTD.
Regeneration & Economic Development,Economic Development and Housing,Cap Exp on Grants & Other Financial Assistance (REFCUS),918401,Capital grants,08-Apr-2016,3112026-RED-04-2016-075,"7,216.23",HES GROUP UK LTD.
Regeneration & Economic Development,Transport and Contracted Services,Third Party Payments,430106,Rendered by Private Contractors,08-Apr-2016,3112028-014071,"5,285.24",HODGSONS COACH OPERATORS LTD.
Regeneration & Economic Development,Transport and Contracted Services,Third Party Payments,430106,Rendered by Private Contractors,08-Apr-2016,3112050-DCC3/16,"2,039.96",JOHN JAMES BRUNSKILL.
Regeneration & Economic Development,Economic Development and Housing,Cap Exp on Grants & Other Financial Assistance (REFCUS),918401,Capital grants,08-Apr-2016,3112077-RED-04-2016-071,"4,407.00",LORMOR & HALL CONSTRUCTION.
Regeneration & Economic Development,Economic Development and Housing,Fees,901002,Professional fees,08-Apr-2016,3112108-LEEND160025,"2,733.00",MOVVEO LTD.
Regeneration & Economic Development,Economic Development and Housing,Cap Exp on Grants & Other Financial Assistance (REFCUS),918004,Contributions to other bodies,08-Apr-2016,3112114-001,"4,400.00",REDACTED - PAYMENT TO INDIVIDUAL
Regeneration & Economic Development,Spatial Policy Planning Assets & Environment,Supplies and Services,384700,Miscellaneous Expenses,08-Apr-2016,3112115-RED-04-2016-064,"2,078.00",MR JOHN HUTCHINSON T/A JF & F HUTCHINSON.
Regeneration & Economic Development,Economic Development and Housing,Cap Exp on Grants & Other Financial Assistance (REFCUS),918401,Capital grants,08-Apr-2016,3112124-RED-04-2016-076,"5,508.52",NEW AGE PLUMBING & HEATING SERVICES.
Regeneration & Economic Development,Spatial Policy Planning Assets & Environment,Supplies and Services,384199,Miscellaneous Expenses,08-Apr-2016,3112126-1800007851186,"5,000.00",NEWCASTLE UPON TYNE CITY COUNCIL.
Regeneration & Economic Development,Economic Development and Housing,Cap Exp on Grants & Other Financial Assistance (REFCUS),918401,Capital grants,08-Apr-2016,3112140-RED-04-2016-072,"5,661.01",OAKLEY REFURBISHMENTS LTD.
Regeneration & Economic Development,Transport and Contracted Services,Supplies and Services,340001,Postages,08-Apr-2016,3112178-1109132510,"2,146.69",ROYAL MAIL GROUP PLC.
Regeneration & Economic Development,Spatial Policy Planning Assets & Environment,Supplies and Services,384899,Miscellaneous Expenses,08-Apr-2016,3112179-RED-04-2016-065,"4,197.79",ROYAL SOCIETY FOR THE PROTECTION OF BIRDS (RSPB).
Regeneration & Economic Development,Transport and Contracted Services,Third Party Payments,430106,Rendered by Private Contractors,08-Apr-2016,3112198-18622,"15,084.20",STANLEY TRAVEL (NORTH EAST) LTD.
Regeneration & Economic Development,Economic Development and Housing,Supplies and Services,384700,Miscellaneous Expenses,08-Apr-2016,3112229-RED-04-2016-066,"1,000.00",THE WOODPILE COMMUNITY INTEREST COMPANY.
Regeneration & Economic Development,Economic Development and Housing,Cap Exp on Grants & Other Financial Assistance (REFCUS),918401,Capital grants,08-Apr-2016,3112232-RED-04-2016-068,"1,194.00",THYSSENKRUPP ENCASA A DIVISION OF THYSSENKRUPP ACCESS LTD.
Regeneration & Economic Development,Economic Development and Housing,Cap Exp on Grants & Other Financial Assistance (REFCUS),918401,Capital grants,08-Apr-2016,3112232-RED-04-2016-070,"1,565.00",THYSSENKRUPP ENCASA A DIVISION OF THYSSENKRUPP ACCESS LTD.
Regeneration & Economic Development,Economic Development and Housing,Cap Exp on Grants & Other Financial Assistance (REFCUS),918401,Capital grants,08-Apr-2016,3112232-RED-04-2016-073,"1,495.00",THYSSENKRUPP ENCASA A DIVISION OF THYSSENKRUPP ACCESS LTD.
Regeneration & Economic Development,Economic Development and Housing,Cap Exp on Grants & Other Financial Assistance (REFCUS),918401,Capital grants,08-Apr-2016,3112232-RED-04-2016-077,970.00,THYSSENKRUPP ENCASA A DIVISION OF THYSSENKRUPP ACCESS LTD.
Regeneration & Economic Development,Transport and Contracted Services,Employees,040149,Recruitment Instruction and Training,08-Apr-2016,3112242-88496462,595.00,TRL LTD.
Regeneration & Economic Development,Economic Development and Housing,Supplies and Services,336005,Advertising,08-Apr-2016,3112250-3469,"4,727.00",VISIT COUNTY DURHAM LTD.
Resources,Corporate Finance,Supplies and Services,372009,Subscriptions,08-Apr-2016,3111939-3118023,"32,167.50",CIPFA BUSINESS LTD.
Resources,Financial Services,Supplies and Services,364999,Grants to Voluntary Organisations,08-Apr-2016,3111940-CACD234,"95,075.50",CITIZENS ADVICE COUNTY DURHAM.
Resources,Financial Services,Supplies and Services,364999,Grants to Voluntary Organisations,08-Apr-2016,3111940-CACD235,"59,500.00",CITIZENS ADVICE COUNTY DURHAM.
Resources,Financial Services,Supplies and Services,364999,Grants to Voluntary Organisations,08-Apr-2016,3111940-CACD236,"15,000.00",CITIZENS ADVICE COUNTY DURHAM.
Resources,Financial Services,Supplies and Services,364999,Grants to Voluntary Organisations,08-Apr-2016,3111940-CACD237,"45,986.00",CITIZENS ADVICE COUNTY DURHAM.
Resources,Financial Services,Supplies and Services,342051,Computers and Communications,08-Apr-2016,3111942-C/RB142043,"18,572.58",CIVICA UK LTD.
Resources,I.C.T. Services,Supplies and Services,304259,Equipment and Materials,08-Apr-2016,3111985-SI18708,654.25,ELECTROMASTER TELECOMMUNICATIONS LTD.
Resources,I.C.T. Services,Supplies and Services,338066,Services,08-Apr-2016,3112007-102074015,"14,031.38",GATESHEAD COUNCIL.
Resources,I.C.T. Services,Stock,926900,Stock in hand-Inventory system,08-Apr-2016,3112034-2814612,"1,200.00",INSIGHT DIRECT (UK) LTD.
Resources,Legal & Democratic Services,Supplies and Services,384151,Miscellaneous Expenses,08-Apr-2016,3112127-R0256788,"2,670.00",NEWCASTLE UPON TYNE HOSPITALS NHS FOUNDATION TRUST.
Resources,Legal & Democratic Services,Supplies and Services,384151,Miscellaneous Expenses,08-Apr-2016,3112127-R0256798,"3,265.00",NEWCASTLE UPON TYNE HOSPITALS NHS FOUNDATION TRUST.
Resources,Legal & Democratic Services,Employees,040149,Recruitment Instruction and Training,08-Apr-2016,3112156-070,"1,790.00",PHF TRAINING LTD.
Resources,I.C.T. Services,Construction Work,908105,Construction work,08-Apr-2016,3112213-123428,"4,900.00",SWITCHSHOP LTD.
Resources,I.C.T. Services,Vehicles Equipment Furniture and Fittings,912701,Computer equipment,08-Apr-2016,3112213-123480,"3,000.00",SWITCHSHOP LTD.
Assistant Chief Executive,Partnerships & Community Engagement Div.,Supplies and Services,384085,Miscellaneous Expenses,11-Apr-2016,3112324-CARJ01,612.00,BURNOPFIELD GOSPEL FELLOWSHIP.
Assistant Chief Executive,Planning & Performance Division,Supplies and Services,342051,Computers and Communications,11-Apr-2016,3112407-SIN001562,922.50,GEOWISE LTD.
Children and Adult Services,Public Health,Third Party Payments,460802,Contract Payments,11-Apr-2016,3112596-A83057/IUCD2014-2015,"6,424.08",SHINWELL MEDICAL GROUP.
Children and Adult Services,Childrens Services,Supplies and Services,384491,Miscellaneous Expenses,11-Apr-2016,3112380-16C/CT/362FIRSTAID,576.00,EMERALD NURSERY.
Dedicated Schools Grant,Dedicated Schools Grant,Supplies and Services,384199,Miscellaneous Expenses,11-Apr-2016,3112465-OUTREACHSUPJAN-MAR,"1,215.00",LITTLE DUCKLINGS NURSERY.
Children and Adult Services,Public Health,Third Party Payments,460802,Contract Payments,11-Apr-2016,3112313-A83025/Q3IUCD2015,"4,790.90",BISHOPGATE MEDICAL CENTRE.
Children and Adult Services,Public Health,Third Party Payments,460802,Contract Payments,11-Apr-2016,3112385-A83626/Q3IUCD2015,641.90,EVENWOOD MEDICAL PRACTICE.
Children and Adult Services,Public Health,Third Party Payments,460802,Contract Payments,11-Apr-2016,3112518-A83020/Q3IUCD2015,"2,339.35",NORTH HOUSE SURGERY.
Children and Adult Services,Education,Transfer Payments,510026,School Children,11-Apr-2016,3112321-01/02-24/03/2016,562.80,BRANDON HAPPYTIMES DAYCARE.
Children and Adult Services,Education,Transfer Payments,510026,School Children,11-Apr-2016,3112321-24/01-24/03/2016,643.20,BRANDON HAPPYTIMES DAYCARE.
Children and Adult Services,Childrens Services,Third Party Payments,440037,Other Third Party Payments,11-Apr-2016,3112444-CAS-04-2016-036,598.00,JENNIFLOWERS CHILDCARE LTD.
Children and Adult Services,Childrens Services,Supplies and Services,364301,Grants to Voluntary Organisations,11-Apr-2016,3112493-CAS-04-2016-037,684.00,REDACTED - PAYMENT TO INDIVIDUAL
Children and Adult Services,Childrens Services,Income,705174,Government Grants,11-Apr-2016,3112502-CAS-04-2016-005,"7,889.98",REDACTED - PAYMENT TO INDIVIDUAL
Children and Adult Services,Education,Employees,040001,Recruitment Instruction and Training,11-Apr-2016,3112636-TARINV/15418861,710.10,TES GLOBAL LTD.
Children and Adult Services,Education,Transfer Payments,510026,School Children,11-Apr-2016,3112360-DCATCHMARCH16W,"4,263.35",DAYPARK LTD T/A YELLOW WELLIES.
Children and Adult Services,Education,Employees,040001,Recruitment Instruction and Training,11-Apr-2016,3112636-TARINW15418852,710.10,TES GLOBAL LTD.
Dedicated Schools Grant,Dedicated Schools Grant,Supplies and Services,304259,Equipment and Materials,11-Apr-2016,3112541-88415930HDI,"1,992.03",PEARSON EDUCATION LTD.
Dedicated Schools Grant,Dedicated Schools Grant,Third Party Payments,440080,Other Third Party Payments,11-Apr-2016,3112311-SINV23160,"42,374.12",BISHOP AUCKLAND COLLEGE.
Children and Adult Services,Education,Transport,230008,Contract Hire,11-Apr-2016,3112390-N071-028,"3,396.00",FERRYHILL VILLAGE TRAVEL.
Children and Adult Services,Central Charges (CYPS),Creditors,952258,Creditor-West Durham Cluster,11-Apr-2016,3112418-INV05121,"1,618.33",HEADLAM HALL HOTEL.
Children and Adult Services,Childrens Services,Transfer Payments,515207,Social Services Clients,11-Apr-2016,3112538-22632495,"1,078.00",PARK RETAIL LTD.
Children and Adult Services,Childrens Services,Transfer Payments,515207,Social Services Clients,11-Apr-2016,3112538-22632497,506.00,PARK RETAIL LTD.
Children and Adult Services,Planning & Service Strategy,Supplies and Services,338091,Services,11-Apr-2016,3112664-91406209,610.00,UNIVERSITY OF NORTHUMBRIA.
Children and Adult Services,Childrens Services,Third Party Payments,425040,Rendered by Voluntary Organisations,11-Apr-2016,3112277-16/1980,"3,232.68",ACORN HOUSE (FOSTERING SERVICES) LTD.
Children and Adult Services,Head of Adults,Supplies and Services,304516,Equipment and Materials,11-Apr-2016,3112326-1270/03,913.00,CABLES TAXI CONTRACTS.
Children and Adult Services,Education,Third Party Payments,440999,Other Third Party Payments,11-Apr-2016,3112335-2-15/16,"5,790.72",CDC ENTERPRISE AGENCY.
Children and Adult Services,Education,Transfer Payments,510026,School Children,11-Apr-2016,3112682-01-2016,546.00,WINGATE CHILDRENS CENTRE CHILDCARE.
Children and Adult Services,Planning & Service Strategy,Supplies and Services,338094,Services,11-Apr-2016,3112533-031473,"1,041.67",OXFORD HOTELS & INNS MANAGEMENT LTD T/A DERWENT MANOR HOTEL.
Children and Adult Services,Commissioning inc Supporting People,Supplies and Services,338066,Services,11-Apr-2016,3112556-055592,823.15,PROSPECTS SERVICES LTD.
Children and Adult Services,Commissioning inc Supporting People,Supplies and Services,384540,Miscellaneous Expenses,11-Apr-2016,3112287-34321,547.50,ALLWAG PROMOTIONS LTD.
Children and Adult Services,Childrens Services,Supplies and Services,304259,Equipment and Materials,11-Apr-2016,3112336-18311,754.08,CELL SECURITY SYSTEMS LTD.
Children and Adult Services,Head of Adults,Third Party Payments,472101,Purchase of Care,11-Apr-2016,3112511-19072,884.50,NEURO PARTNERS LTD.
Children and Adult Services,Childrens Services,Employees,080025,Agency Staff,11-Apr-2016,3112548-24671,"1,590.00",PK EDUCATION.
Children and Adult Services,Head of Adults,Supplies and Services,304516,Equipment and Materials,11-Apr-2016,3112310-0020,"1,394.50",BILL SCOTT (BILL SCOTT TAXIS).
Children and Adult Services,Childrens Services,Supplies and Services,352001,Conference Expenses,11-Apr-2016,3112400-7112,"1,350.00",FREEDOM PROGRAMME.
Dedicated Schools Grant,Dedicated Schools Grant,Supplies and Services,352001,Conference Expenses,11-Apr-2016,3112573-7950,520.00,RIVERGREEN DEVELOPMENTS PLC.
Children and Adult Services,Planning & Service Strategy,Supplies and Services,384540,Miscellaneous Expenses,11-Apr-2016,3112353-810,880.00,CURIOUS 12 LTD.
Children and Adult Services,Planning & Service Strategy,Supplies and Services,338026,Services,11-Apr-2016,3112627-019,796.25,SWIPHT SOCIAL WORK CONSULTANCY.
Children and Adult Services,Head of Adults,Supplies and Services,304516,Equipment and Materials,11-Apr-2016,3112310-1,621.50,BILL SCOTT (BILL SCOTT TAXIS).
Neighbourhood Services,Culture & Sport,Supplies and Services,304252,Equipment and Materials,11-Apr-2016,3112275-90114362,817.36,ABACUS LIGHTING LTD.
Neighbourhood Services,Technical Services,Supplies and Services,304221,Equipment and Materials,11-Apr-2016,3112282-22852085,"1,240.21",AGGREGATE INDUSTRIES UK LTD.
Neighbourhood Services,Technical Services,Supplies and Services,304221,Equipment and Materials,11-Apr-2016,3112282-22852086,"1,802.64",AGGREGATE INDUSTRIES UK LTD.
Neighbourhood Services,Technical Services,Supplies and Services,304221,Equipment and Materials,11-Apr-2016,3112282-22852087,"1,198.14",AGGREGATE INDUSTRIES UK LTD.
Neighbourhood Services,Technical Services,Supplies and Services,304221,Equipment and Materials,11-Apr-2016,3112282-22852088,787.40,AGGREGATE INDUSTRIES UK LTD.
Neighbourhood Services,Technical Services,Supplies and Services,304221,Equipment and Materials,11-Apr-2016,3112282-22852089,"8,819.38",AGGREGATE INDUSTRIES UK LTD.
Neighbourhood Services,Technical Services,Supplies and Services,304221,Equipment and Materials,11-Apr-2016,3112282-22858739,585.23,AGGREGATE INDUSTRIES UK LTD.
Neighbourhood Services,Technical Services,Supplies and Services,304221,Equipment and Materials,11-Apr-2016,3112282-22858854,"1,231.43",AGGREGATE INDUSTRIES UK LTD.
Neighbourhood Services,Technical Services,Supplies and Services,304221,Equipment and Materials,11-Apr-2016,3112282-22858855,980.80,AGGREGATE INDUSTRIES UK LTD.
Neighbourhood Services,Culture & Sport,Supplies and Services,304337,Equipment and Materials,11-Apr-2016,3112286-6190,665.75,ALISON BLACK LTD T/A SPORTMAX.
Neighbourhood Services,Culture & Sport,Premises,115125,Repairs to Grounds,11-Apr-2016,3112292-192751,"3,210.00",APEX RADIO SYSTEMS LTD.
Neighbourhood Services,Culture & Sport,Supplies and Services,304252,Equipment and Materials,11-Apr-2016,3112302-12302,632.50,BATSON LANDSCAPE & TREE CARE LTD.
Neighbourhood Services,Direct Services,Supplies and Services,304221,Equipment and Materials,11-Apr-2016,3112320-160289,"3,640.00",BRAMBLEDOWN LANDSCAPE SERVICES LTD.
Neighbourhood Services,Direct Services,Supplies and Services,304259,Equipment and Materials,11-Apr-2016,3112320-160290,"4,512.00",BRAMBLEDOWN LANDSCAPE SERVICES LTD.
Neighbourhood Services,Technical Services,Supplies and Services,372009,Subscriptions,11-Apr-2016,3112323-0000065782,"2,044.00",BRITISH BOARD OF AGREMENT.
Neighbourhood Services,Direct Services,Supplies and Services,304221,Equipment and Materials,11-Apr-2016,3112329-8516008706,"6,585.70",CARLISLE CONSTRUCTION MATERIALS LTD.
Neighbourhood Services,Direct Services,Supplies and Services,304259,Equipment and Materials,11-Apr-2016,3112331-466915,781.30,CARRS BILLINGTON AGRICULTURE.
Neighbourhood Services,Technical Services,Stock,926900,Stock in hand-Inventory system,11-Apr-2016,3112338-9950/01688244,516.00,CERAMIC TILE DISTRIBUTORS (CTD).
Neighbourhood Services,Culture & Sport,Supplies and Services,324001,Provisions,11-Apr-2016,3112347-9102830341,669.54,COCA COLA ENTERPRISES LTD.
Neighbourhood Services,Culture & Sport,Supplies and Services,332029,Printing Stationery and Gen Off Exps,11-Apr-2016,3112414-0000061812,"2,713.95",HARRISON EXTERNAL DISPLAY SYSTEMS.
Neighbourhood Services,Direct Services,Transport,215005,Running Costs of Vehicles,11-Apr-2016,3112416-0000002857,"4,712.40",HARVEST ENERGY LTD.
Neighbourhood Services,Direct Services,Transport,215005,Running Costs of Vehicles,11-Apr-2016,3112416-0000003578,"27,530.96",HARVEST ENERGY LTD.
Neighbourhood Services,Direct Services,Transport,215005,Running Costs of Vehicles,11-Apr-2016,3112416-0000005645,"7,681.60",HARVEST ENERGY LTD.
Neighbourhood Services,Technical Services,Third Party Payments,430100,Rendered by Private Contractors,11-Apr-2016,3112421-2507,"12,488.67",HIGHWAY CONSTRUCTION SERVICES LTD.
Neighbourhood Services,Technical Services,Third Party Payments,430100,Rendered by Private Contractors,11-Apr-2016,3112421-2508,"3,770.53",HIGHWAY CONSTRUCTION SERVICES LTD.
Neighbourhood Services,Culture & Sport,Supplies and Services,384199,Miscellaneous Expenses,11-Apr-2016,3112422-HBBATH52,700.00,HILARITY BITES COMEDY CLUB.
Neighbourhood Services,Culture & Sport,Supplies and Services,304221,Equipment and Materials,11-Apr-2016,3112429-1388,"2,405.58",HOUSE OF PLAY LTD.
Neighbourhood Services,Technical Services,Stock,926900,Stock in hand-Inventory system,11-Apr-2016,3112436-524639,"2,424.80",INSTARMAC GROUP PLC.
Neighbourhood Services,Technical Services,Employees,040149,Recruitment Instruction and Training,11-Apr-2016,3112438-SIN042370,"4,050.00",IQL UK LTD.
Neighbourhood Services,Technical Services,Construction Work,908105,Construction work,11-Apr-2016,3112440-12319,"1,250.00",JACK COUPE & SONS LTD T/A COUPE LINE.
Neighbourhood Services,Technical Services,Third Party Payments,430100,Rendered by Private Contractors,11-Apr-2016,3112440-12320,"1,234.32",JACK COUPE & SONS LTD T/A COUPE LINE.
Neighbourhood Services,Culture & Sport,Supplies and Services,304259,Equipment and Materials,11-Apr-2016,3112451-796095,"1,055.13",JP LENNARD LTD.
Neighbourhood Services,Culture & Sport,Supplies and Services,304221,Equipment and Materials,11-Apr-2016,3112451-796314,981.16,JP LENNARD LTD.
Neighbourhood Services,Technical Services,Stock,926900,Stock in hand-Inventory system,11-Apr-2016,3112453-STI434382,852.00,JT DOVE LTD.
Neighbourhood Services,Technical Services,Stock,926900,Stock in hand-Inventory system,11-Apr-2016,3112453-STI434384,725.00,JT DOVE LTD.
Neighbourhood Services,Direct Services,Third Party Payments,430100,Rendered by Private Contractors,11-Apr-2016,3112464-SI2118401,900.00,LINDEN FLUID POWER LTD.
Neighbourhood Services,Technical Services,Supplies and Services,304358,Equipment and Materials,11-Apr-2016,3112477-45A,"2,603.50",M & E & MR WALTON.
Neighbourhood Services,Technical Services,Third Party Payments,430127,Rendered by Private Contractors,11-Apr-2016,3112478-5256,"2,463.00",MAKEPEACE MOTORS.
Neighbourhood Services,Technical Services,Third Party Payments,430127,Rendered by Private Contractors,11-Apr-2016,3112478-5257,"2,463.00",MAKEPEACE MOTORS.
Neighbourhood Services,Technical Services,Third Party Payments,430127,Rendered by Private Contractors,11-Apr-2016,3112478-5259,"2,464.00",MAKEPEACE MOTORS.
Neighbourhood Services,Technical Services,Third Party Payments,430127,Rendered by Private Contractors,11-Apr-2016,3112478-5260,"2,293.00",MAKEPEACE MOTORS.
Neighbourhood Services,Technical Services,Third Party Payments,430127,Rendered by Private Contractors,11-Apr-2016,3112478-5262,"2,376.00",MAKEPEACE MOTORS.
Neighbourhood Services,Technical Services,Third Party Payments,430127,Rendered by Private Contractors,11-Apr-2016,3112478-5263,"2,376.00",MAKEPEACE MOTORS.
Neighbourhood Services,Technical Services,Third Party Payments,430127,Rendered by Private Contractors,11-Apr-2016,3112478-5265,"2,258.50",MAKEPEACE MOTORS.
Neighbourhood Services,Technical Services,Third Party Payments,430127,Rendered by Private Contractors,11-Apr-2016,3112478-5266,"2,258.50",MAKEPEACE MOTORS.
Neighbourhood Services,Technical Services,Third Party Payments,460502,Contract Payments,11-Apr-2016,3112488-2150953,707.14,METEO GROUP UK LTD.
Neighbourhood Services,Direct Services,Third Party Payments,430100,Rendered by Private Contractors,11-Apr-2016,3112489-4855/102/16,"24,847.61",MGL DEMOLITION LTD.
Neighbourhood Services,Culture & Sport,Supplies and Services,304259,Equipment and Materials,11-Apr-2016,3112490-0000089558,739.00,MILLENNIUM BUSINESS SYSTEMS LTD.
Neighbourhood Services,Technical Services,Third Party Payments,430100,Rendered by Private Contractors,11-Apr-2016,3112508-NC5/C445/BW,"7,606.12",NEDCO CONTRACTS (NE) LTD.
Neighbourhood Services,Technical Services,Third Party Payments,430100,Rendered by Private Contractors,11-Apr-2016,3112508-NC6/C445/BW,"14,031.06",NEDCO CONTRACTS (NE) LTD.
Neighbourhood Services,Technical Services,Third Party Payments,430100,Rendered by Private Contractors,11-Apr-2016,3112508-NC7/C445/BW,"2,417.84",NEDCO CONTRACTS (NE) LTD.
Neighbourhood Services,EnvironmentHealth & Consumer Protection,Supplies and Services,384540,Miscellaneous Expenses,11-Apr-2016,3112512-14749219,603.44,NEWSQUEST (YORKSHIRE & NORTH EAST) LTD.
Neighbourhood Services,Direct Services,Supplies and Services,304259,Equipment and Materials,11-Apr-2016,3112516-SI/02903708,"2,214.20",NOMIX ENVIRO A DIVISION OF FRONTIER AGRICULTURE LTD.
Neighbourhood Services,Technical Services,Stock,926900,Stock in hand-Inventory system,11-Apr-2016,3112523-1915781,588.20,NORTHERN TOOLS & ACCESSORIES.
Neighbourhood Services,Direct Services,Supplies and Services,304221,Equipment and Materials,11-Apr-2016,3112523-1918981,572.00,NORTHERN TOOLS & ACCESSORIES.
Neighbourhood Services,Technical Services,Stock,926900,Stock in hand-Inventory system,11-Apr-2016,3112523-1921078,556.08,NORTHERN TOOLS & ACCESSORIES.
Neighbourhood Services,Projects and Business services,Third Party Payments,430100,Rendered by Private Contractors,11-Apr-2016,3112528-CN19199627,846.40,OCS GROUP UK LTD T/A CANNON HYGIENE.
Neighbourhood Services,Technical Services,Third Party Payments,430101,Rendered by Private Contractors,11-Apr-2016,3112529-18037,"5,865.00",OLIVERS TREE SERVICES LTD.
Neighbourhood Services,Direct Services,Third Party Payments,430100,Rendered by Private Contractors,11-Apr-2016,3112536-843,"2,599.26",PARAMOUNT CEILINGS & PARTITIONS.
Neighbourhood Services,Direct Services,Supplies and Services,304221,Equipment and Materials,11-Apr-2016,3112549-55142,511.12,POLLOCK LIFTS.
Neighbourhood Services,Culture & Sport,Supplies and Services,324117,Provisions,11-Apr-2016,3112563-0000002908,"1,195.00",RAMSIDE ESTATES LTD T/A RAMSIDE HALL HOTEL.
Neighbourhood Services,Technical Services,Stock,926900,Stock in hand-Inventory system,11-Apr-2016,3112571-237793,711.78,RITHERDON & CO LTD.
Neighbourhood Services,Culture & Sport,Supplies and Services,338047,Services,11-Apr-2016,3112591-1597,772.40,SCOTT PENROSE.
Neighbourhood Services,Direct Services,Transport,230005,Contract Hire,11-Apr-2016,3112594-10676920,591.00,SHB HIRE LTD.
Neighbourhood Services,Direct Services,Supplies and Services,304259,Equipment and Materials,11-Apr-2016,3112595-CD970311658,"1,328.80",SHERRIFF AMENITY.
Neighbourhood Services,Technical Services,Supplies and Services,304221,Equipment and Materials,11-Apr-2016,3112595-CD970312662,529.08,SHERRIFF AMENITY.
Neighbourhood Services,Technical Services,Supplies and Services,304221,Equipment and Materials,11-Apr-2016,3112601-302027/120259,"7,349.64",SIGNATURE LTD T/A POST & COLUMN CO LTD.
Neighbourhood Services,Technical Services,Supplies and Services,304221,Equipment and Materials,11-Apr-2016,3112602-228707,"1,013.32",SIGNPOST SOLUTIONS LTD.
Neighbourhood Services,Technical Services,Stock,926900,Stock in hand-Inventory system,11-Apr-2016,3112603-70465,"2,539.26",SIMMONSIGNS LTD.
Neighbourhood Services,Culture & Sport,Supplies and Services,304259,Equipment and Materials,11-Apr-2016,3112606-INV-01137,537.75,SJD SPORTS INTERNATIONAL.
Neighbourhood Services,Direct Services,Supplies and Services,304259,Equipment and Materials,11-Apr-2016,3112613-SP16003884,"2,736.00",ST JOHN AMBULANCE.
Neighbourhood Services,Direct Services,Supplies and Services,384999,Miscellaneous Expenses,11-Apr-2016,3112615-RES-04-2016-022,"2,700.00",STANHOPE PARISH COUNCIL.
Neighbourhood Services,Technical Services,Stock,926900,Stock in hand-Inventory system,11-Apr-2016,3112620-079921,"1,277.13",STONEGRAVE AGGREGATES LTD.
Neighbourhood Services,Technical Services,Supplies and Services,304221,Equipment and Materials,11-Apr-2016,3112620-080307,"3,860.04",STONEGRAVE AGGREGATES LTD.
Neighbourhood Services,Direct Services,Supplies and Services,304221,Equipment and Materials,11-Apr-2016,3112629-1923985,562.37,T CROSSLING & CO LTD.
Neighbourhood Services,Technical Services,Supplies and Services,304221,Equipment and Materials,11-Apr-2016,3112631-9033844973,670.00,TARMAC TRADING LTD.
